Workbook

Sheet Kinematik
A1: Kurbelwinkel | B1: Kolbenweg | C1: Geschwindigkeit | D1: Beschleunigung | H1: Kurbelradius mm | I1: Pleuellänge mm | J1: Drehzahl 1/min | K1: vmax m/s | L1: vmittel m/s | N1: r = 39 l = 141,5
A2: 0 | B2: =I$2+H$2-SQRT(I$2^2-H$2^2*SIN(A2*PI()/180)^2)-H$2*COS(A2*PI()/180) -> 0 | C2: =(H$2^2*(PI()*J$2/30)*SIN(A2*PI()/180)*COS(A2*PI()/180)/SQRT(I$2^2-H$2^2*SIN(A2*PI()/180)^2)+H$2*(PI()*J$2/30)*SIN(A2*PI()/180))/1000 -> 0 | D2: =(PI()^2*J$2^2*H$2*COS(PI()*A2/180)/900+SQRT(2)*PI()^2*J$2^2*H$2^2*(4*(2*I$2^2-H$2^2)*COS(PI()*A2/90)+H$2^2*(COS(PI()*A2/45)+3))/(3600*(H$2^2*COS(PI()*A2/90)+2*I$2^2-H$2^2)^(3/2)))/1000 -> 39416.71805 | E2: =D2/1000 -> 39.41671805 | H2: 39 | I2: 141.5 | J2: 8500 | K2: =MAX(C2:C74) -> 36.01328119 | L2: =H2*J2/15000 -> 22.1 | N2: KTM 640
A3: 5 | B3: =I$2+H$2-SQRT(I$2^2-H$2^2*SIN(A3*PI()/180)^2)-H$2*COS(A3*PI()/180) -> 0.1892384743 | C3: =(H$2^2*(PI()*J$2/30)*SIN(A3*PI()/180)*COS(A3*PI()/180)/SQRT(I$2^2-H$2^2*SIN(A3*PI()/180)^2)+H$2*(PI()*J$2/30)*SIN(A3*PI()/180))/1000 -> 3.856547691 | D3: =(PI()^2*J$2^2*H$2*COS(PI()*A3/180)/900+SQRT(2)*PI()^2*J$2^2*H$2^2*(4*(2*I$2^2-H$2^2)*COS(PI()*A3/90)+H$2^2*(COS(PI()*A3/45)+3))/(3600*(H$2^2*COS(PI()*A3/90)+2*I$2^2-H$2^2)^(3/2)))/1000 -> 39177.04942 | E3: =D3/1000 -> 39.17704942
A4: 10 | B4: =I$2+H$2-SQRT(I$2^2-H$2^2*SIN(A4*PI()/180)^2)-H$2*COS(A4*PI()/180) -> 0.7546533087 | C4: =(H$2^2*(PI()*J$2/30)*SIN(A4*PI()/180)*COS(A4*PI()/180)/SQRT(I$2^2-H$2^2*SIN(A4*PI()/180)^2)+H$2*(PI()*J$2/30)*SIN(A4*PI()/180))/1000 -> 7.666225214 | D4: =(PI()^2*J$2^2*H$2*COS(PI()*A4/180)/900+SQRT(2)*PI()^2*J$2^2*H$2^2*(4*(2*I$2^2-H$2^2)*COS(PI()*A4/90)+H$2^2*(COS(PI()*A4/45)+3))/(3600*(H$2^2*COS(PI()*A4/90)+2*I$2^2-H$2^2)^(3/2)))/1000 -> 38461.82784 | E4: =D4/1000 -> 38.46182784
A5: 15 | B5: =I$2+H$2-SQRT(I$2^2-H$2^2*SIN(A5*PI()/180)^2)-H$2*COS(A5*PI()/180) -> 1.689379103 | C5: =(H$2^2*(PI()*J$2/30)*SIN(A5*PI()/180)*COS(A5*PI()/180)/SQRT(I$2^2-H$2^2*SIN(A5*PI()/180)^2)+H$2*(PI()*J$2/30)*SIN(A5*PI()/180))/1000 -> 11.38290407 | D5: =(PI()^2*J$2^2*H$2*COS(PI()*A5/180)/900+SQRT(2)*PI()^2*J$2^2*H$2^2*(4*(2*I$2^2-H$2^2)*COS(PI()*A5/90)+H$2^2*(COS(PI()*A5/45)+3))/(3600*(H$2^2*COS(PI()*A5/90)+2*I$2^2-H$2^2)^(3/2)))/1000 -> 37282.39527 | E5: =D5/1000 -> 37.28239527
A6: 20 | B6: =I$2+H$2-SQRT(I$2^2-H$2^2*SIN(A6*PI()/180)^2)-H$2*COS(A6*PI()/180) -> 2.982094629 | C6: =(H$2^2*(PI()*J$2/30)*SIN(A6*PI()/180)*COS(A6*PI()/180)/SQRT(I$2^2-H$2^2*SIN(A6*PI()/180)^2)+H$2*(PI()*J$2/30)*SIN(A6*PI()/180))/1000 -> 14.96193677 | D6: =(PI()^2*J$2^2*H$2*COS(PI()*A6/180)/900+SQRT(2)*PI()^2*J$2^2*H$2^2*(4*(2*I$2^2-H$2^2)*COS(PI()*A6/90)+H$2^2*(COS(PI()*A6/45)+3))/(3600*(H$2^2*COS(PI()*A6/90)+2*I$2^2-H$2^2)^(3/2)))/1000 -> 35657.6126 | E6: =D6/1000 -> 35.6576126
A7: 25 | B7: =I$2+H$2-SQRT(I$2^2-H$2^2*SIN(A7*PI()/180)^2)-H$2*COS(A7*PI()/180) -> 4.617204051 | C7: =(H$2^2*(PI()*J$2/30)*SIN(A7*PI()/180)*COS(A7*PI()/180)/SQRT(I$2^2-H$2^2*SIN(A7*PI()/180)^2)+H$2*(PI()*J$2/30)*SIN(A7*PI()/180))/1000 -> 18.36089024 | D7: =(PI()^2*J$2^2*H$2*COS(PI()*A7/180)/900+SQRT(2)*PI()^2*J$2^2*H$2^2*(4*(2*I$2^2-H$2^2)*COS(PI()*A7/90)+H$2^2*(COS(PI()*A7/45)+3))/(3600*(H$2^2*COS(PI()*A7/90)+2*I$2^2-H$2^2)^(3/2)))/1000 -> 33613.77383 | E7: =D7/1000 -> 33.61377383
A8: 30 | B8: =I$2+H$2-SQRT(I$2^2-H$2^2*SIN(A8*PI()/180)^2)-H$2*COS(A8*PI()/180) -> 6.575089524 | C8: =(H$2^2*(PI()*J$2/30)*SIN(A8*PI()/180)*COS(A8*PI()/180)/SQRT(I$2^2-H$2^2*SIN(A8*PI()/180)^2)+H$2*(PI()*J$2/30)*SIN(A8*PI()/180))/1000 -> 21.54026739 | D8: =(PI()^2*J$2^2*H$2*COS(PI()*A8/180)/900+SQRT(2)*PI()^2*J$2^2*H$2^2*(4*(2*I$2^2-H$2^2)*COS(PI()*A8/90)+H$2^2*(COS(PI()*A8/45)+3))/(3600*(H$2^2*COS(PI()*A8/90)+2*I$2^2-H$2^2)^(3/2)))/1000 -> 31184.44294 | E8: =D8/1000 -> 31.18444294
A9: 35 | B9: =I$2+H$2-SQRT(I$2^2-H$2^2*SIN(A9*PI()/180)^2)-H$2*COS(A9*PI()/180) -> 8.832433576 | C9: =(H$2^2*(PI()*J$2/30)*SIN(A9*PI()/180)*COS(A9*PI()/180)/SQRT(I$2^2-H$2^2*SIN(A9*PI()/180)^2)+H$2*(PI()*J$2/30)*SIN(A9*PI()/180))/1000 -> 24.46420722 | D9: =(PI()^2*J$2^2*H$2*COS(PI()*A9/180)/900+SQRT(2)*PI()^2*J$2^2*H$2^2*(4*(2*I$2^2-H$2^2)*COS(PI()*A9/90)+H$2^2*(COS(PI()*A9/45)+3))/(3600*(H$2^2*COS(PI()*A9/90)+2*I$2^2-H$2^2)^(3/2)))/1000 -> 28410.17286 | E9: =D9/1000 -> 28.41017286
A10: 40 | B10: =I$2+H$2-SQRT(I$2^2-H$2^2*SIN(A10*PI()/180)^2)-H$2*COS(A10*PI()/180) -> 11.36260854 | C10: =(H$2^2*(PI()*J$2/30)*SIN(A10*PI()/180)*COS(A10*PI()/180)/SQRT(I$2^2-H$2^2*SIN(A10*PI()/180)^2)+H$2*(PI()*J$2/30)*SIN(A10*PI()/180))/1000 -> 27.10114962 | D10: =(PI()^2*J$2^2*H$2*COS(PI()*A10/180)/900+SQRT(2)*PI()^2*J$2^2*H$2^2*(4*(2*I$2^2-H$2^2)*COS(PI()*A10/90)+H$2^2*(COS(PI()*A10/45)+3))/(3600*(H$2^2*COS(PI()*A10/90)+2*I$2^2-H$2^2)^(3/2)))/1000 -> 25338.05874 | E10: =D10/1000 -> 25.33805874
A11: 45 | B11: =I$2+H$2-SQRT(I$2^2-H$2^2*SIN(A11*PI()/180)^2)-H$2*COS(A11*PI()/180) -> 14.13612868 | C11: =(H$2^2*(PI()*J$2/30)*SIN(A11*PI()/180)*COS(A11*PI()/180)/SQRT(I$2^2-H$2^2*SIN(A11*PI()/180)^2)+H$2*(PI()*J$2/30)*SIN(A11*PI()/180))/1000 -> 29.42444635 | D11: =(PI()^2*J$2^2*H$2*COS(PI()*A11/180)/900+SQRT(2)*PI()^2*J$2^2*H$2^2*(4*(2*I$2^2-H$2^2)*COS(PI()*A11/90)+H$2^2*(COS(PI()*A11/45)+3))/(3600*(H$2^2*COS(PI()*A11/90)+2*I$2^2-H$2^2)^(3/2)))/1000 -> 22021.07609 | E11: =D11/1000 -> 22.02107609
A12: 50 | B12: =I$2+H$2-SQRT(I$2^2-H$2^2*SIN(A12*PI()/180)^2)-H$2*COS(A12*PI()/180) -> 17.12115864 | C12: =(H$2^2*(PI()*J$2/30)*SIN(A12*PI()/180)*COS(A12*PI()/180)/SQRT(I$2^2-H$2^2*SIN(A12*PI()/180)^2)+H$2*(PI()*J$2/30)*SIN(A12*PI()/180))/1000 -> 31.41289456 | D12: =(PI()^2*J$2^2*H$2*COS(PI()*A12/180)/900+SQRT(2)*PI()^2*J$2^2*H$2^2*(4*(2*I$2^2-H$2^2)*COS(PI()*A12/90)+H$2^2*(COS(PI()*A12/45)+3))/(3600*(H$2^2*COS(PI()*A12/90)+2*I$2^2-H$2^2)^(3/2)))/1000 -> 18517.15811 | E12: =D12/1000 -> 18.51715811
A13: 55 | B13: =I$2+H$2-SQRT(I$2^2-H$2^2*SIN(A13*PI()/180)^2)-H$2*COS(A13*PI()/180) -> 20.28406933 | C13: =(H$2^2*(PI()*J$2/30)*SIN(A13*PI()/180)*COS(A13*PI()/180)/SQRT(I$2^2-H$2^2*SIN(A13*PI()/180)^2)+H$2*(PI()*J$2/30)*SIN(A13*PI()/180))/1000 -> 33.05116574 | D13: =(PI()^2*J$2^2*H$2*COS(PI()*A13/180)/900+SQRT(2)*PI()^2*J$2^2*H$2^2*(4*(2*I$2^2-H$2^2)*COS(PI()*A13/90)+H$2^2*(COS(PI()*A13/45)+3))/(3600*(H$2^2*COS(PI()*A13/90)+2*I$2^2-H$2^2)^(3/2)))/1000 -> 14887.98022 | E13: =D13/1000 -> 14.88798022
A14: 60 | B14: =I$2+H$2-SQRT(I$2^2-H$2^2*SIN(A14*PI()/180)^2)-H$2*COS(A14*PI()/180) -> 23.59002947 | C14: =(H$2^2*(PI()*J$2/30)*SIN(A14*PI()/180)*COS(A14*PI()/180)/SQRT(I$2^2-H$2^2*SIN(A14*PI()/180)^2)+H$2*(PI()*J$2/30)*SIN(A14*PI()/180))/1000 -> 34.33010066 | D14: =(PI()^2*J$2^2*H$2*COS(PI()*A14/180)/900+SQRT(2)*PI()^2*J$2^2*H$2^2*(4*(2*I$2^2-H$2^2)*COS(PI()*A14/90)+H$2^2*(COS(PI()*A14/45)+3))/(3600*(H$2^2*COS(PI()*A14/90)+2*I$2^2-H$2^2)^(3/2)))/1000 -> 11197.44265 | E14: =D14/1000 -> 11.19744265
A15: 65 | B15: =I$2+H$2-SQRT(I$2^2-H$2^2*SIN(A15*PI()/180)^2)-H$2*COS(A15*PI()/180) -> 27.00361838 | C15: =(H$2^2*(PI()*J$2/30)*SIN(A15*PI()/180)*COS(A15*PI()/180)/SQRT(I$2^2-H$2^2*SIN(A15*PI()/180)^2)+H$2*(PI()*J$2/30)*SIN(A15*PI()/180))/1000 -> 35.24684147 | D15: =(PI()^2*J$2^2*H$2*COS(PI()*A15/180)/900+SQRT(2)*PI()^2*J$2^2*H$2^2*(4*(2*I$2^2-H$2^2)*COS(PI()*A15/90)+H$2^2*(COS(PI()*A15/45)+3))/(3600*(H$2^2*COS(PI()*A15/90)+2*I$2^2-H$2^2)^(3/2)))/1000 -> 7509.874028 | E15: =D15/1000 -> 7.509874028
A16: 70 | B16: =I$2+H$2-SQRT(I$2^2-H$2^2*SIN(A16*PI()/180)^2)-H$2*COS(A16*PI()/180) -> 30.48944263 | C16: =(H$2^2*(PI()*J$2/30)*SIN(A16*PI()/180)*COS(A16*PI()/180)/SQRT(I$2^2-H$2^2*SIN(A16*PI()/180)^2)+H$2*(PI()*J$2/30)*SIN(A16*PI()/180))/1000 -> 35.80477652 | D16: =(PI()^2*J$2^2*H$2*COS(PI()*A16/180)/900+SQRT(2)*PI()^2*J$2^2*H$2^2*(4*(2*I$2^2-H$2^2)*COS(PI()*A16/90)+H$2^2*(COS(PI()*A16/45)+3))/(3600*(H$2^2*COS(PI()*A16/90)+2*I$2^2-H$2^2)^(3/2)))/1000 -> 3888.018797 | E16: =D16/1000 -> 3.888018797
A17: 75 | B17: =I$2+H$2-SQRT(I$2^2-H$2^2*SIN(A17*PI()/180)^2)-H$2*COS(A17*PI()/180) -> 34.01273746 | C17: =(H$2^2*(PI()*J$2/30)*SIN(A17*PI()/180)*COS(A17*PI()/180)/SQRT(I$2^2-H$2^2*SIN(A17*PI()/180)^2)+H$2*(PI()*J$2/30)*SIN(A17*PI()/180))/1000 -> 36.01328119 | D17: =(PI()^2*J$2^2*H$2*COS(PI()*A17/180)/900+SQRT(2)*PI()^2*J$2^2*H$2^2*(4*(2*I$2^2-H$2^2)*COS(PI()*A17/90)+H$2^2*(COS(PI()*A17/45)+3))/(3600*(H$2^2*COS(PI()*A17/90)+2*I$2^2-H$2^2)^(3/2)))/1000 -> 390.9118114 | E17: =D17/1000 -> 0.3909118114
A18: 80 | B18: =I$2+H$2-SQRT(I$2^2-H$2^2*SIN(A18*PI()/180)^2)-H$2*COS(A18*PI()/180) -> 37.53993248 | C18: =(H$2^2*(PI()*J$2/30)*SIN(A18*PI()/180)*COS(A18*PI()/180)/SQRT(I$2^2-H$2^2*SIN(A18*PI()/180)^2)+H$2*(PI()*J$2/30)*SIN(A18*PI()/180))/1000 -> 35.88725052 | D18: =(PI()^2*J$2^2*H$2*COS(PI()*A18/180)/900+SQRT(2)*PI()^2*J$2^2*H$2^2*(4*(2*I$2^2-H$2^2)*COS(PI()*A18/90)+H$2^2*(COS(PI()*A18/45)+3))/(3600*(H$2^2*COS(PI()*A18/90)+2*I$2^2-H$2^2)^(3/2)))/1000 -> -2928.22014 | E18: =D18/1000 -> -2.92822014
A19: 85 | B19: =I$2+H$2-SQRT(I$2^2-H$2^2*SIN(A19*PI()/180)^2)-H$2*COS(A19*PI()/180) -> 41.03916174 | C19: =(H$2^2*(PI()*J$2/30)*SIN(A19*PI()/180)*COS(A19*PI()/180)/SQRT(I$2^2-H$2^2*SIN(A19*PI()/180)^2)+H$2*(PI()*J$2/30)*SIN(A19*PI()/180))/1000 -> 35.44643395 | D19: =(PI()^2*J$2^2*H$2*COS(PI()*A19/180)/900+SQRT(2)*PI()^2*J$2^2*H$2^2*(4*(2*I$2^2-H$2^2)*COS(PI()*A19/90)+H$2^2*(COS(PI()*A19/45)+3))/(3600*(H$2^2*COS(PI()*A19/90)+2*I$2^2-H$2^2)^(3/2)))/1000 -> -6023.867968 | E19: =D19/1000 -> -6.023867968
A20: 90 | B20: =I$2+H$2-SQRT(I$2^2-H$2^2*SIN(A20*PI()/180)^2)-H$2*COS(A20*PI()/180) -> 44.4806999 | C20: =(H$2^2*(PI()*J$2/30)*SIN(A20*PI()/180)*COS(A20*PI()/180)/SQRT(I$2^2-H$2^2*SIN(A20*PI()/180)^2)+H$2*(PI()*J$2/30)*SIN(A20*PI()/180))/1000 -> 34.71459882 | D20: =(PI()^2*J$2^2*H$2*COS(PI()*A20/180)/900+SQRT(2)*PI()^2*J$2^2*H$2^2*(4*(2*I$2^2-H$2^2)*COS(PI()*A20/90)+H$2^2*(COS(PI()*A20/45)+3))/(3600*(H$2^2*COS(PI()*A20/90)+2*I$2^2-H$2^2)^(3/2)))/1000 -> -8859.796885 | E20: =D20/1000 -> -8.859796885
A21: 95 | B21: =I$2+H$2-SQRT(I$2^2-H$2^2*SIN(A21*PI()/180)^2)-H$2*COS(A21*PI()/180) -> 47.83730967 | C21: =(H$2^2*(PI()*J$2/30)*SIN(A21*PI()/180)*COS(A21*PI()/180)/SQRT(I$2^2-H$2^2*SIN(A21*PI()/180)^2)+H$2*(PI()*J$2/30)*SIN(A21*PI()/180))/1000 -> 33.71856464 | D21: =(PI()^2*J$2^2*H$2*COS(PI()*A21/180)/900+SQRT(2)*PI()^2*J$2^2*H$2^2*(4*(2*I$2^2-H$2^2)*COS(PI()*A21/90)+H$2^2*(COS(PI()*A21/45)+3))/(3600*(H$2^2*COS(PI()*A21/90)+2*I$2^2-H$2^2)^(3/2)))/1000 -> -11410.10794 | E21: =D21/1000 -> -11.41010794
A22: 100 | B22: =I$2+H$2-SQRT(I$2^2-H$2^2*SIN(A22*PI()/180)^2)-H$2*COS(A22*PI()/180) -> 51.08449034 | C22: =(H$2^2*(PI()*J$2/30)*SIN(A22*PI()/180)*COS(A22*PI()/180)/SQRT(I$2^2-H$2^2*SIN(A22*PI()/180)^2)+H$2*(PI()*J$2/30)*SIN(A22*PI()/180))/1000 -> 32.4871616 | D22: =(PI()^2*J$2^2*H$2*COS(PI()*A22/180)/900+SQRT(2)*PI()^2*J$2^2*H$2^2*(4*(2*I$2^2-H$2^2)*COS(PI()*A22/90)+H$2^2*(COS(PI()*A22/45)+3))/(3600*(H$2^2*COS(PI()*A22/90)+2*I$2^2-H$2^2)^(3/2)))/1000 -> -13659.70754 | E22: =D22/1000 -> -13.65970754
A23: 105 | B23: =I$2+H$2-SQRT(I$2^2-H$2^2*SIN(A23*PI()/180)^2)-H$2*COS(A23*PI()/180) -> 54.20062298 | C23: =(H$2^2*(PI()*J$2/30)*SIN(A23*PI()/180)*COS(A23*PI()/180)/SQRT(I$2^2-H$2^2*SIN(A23*PI()/180)^2)+H$2*(PI()*J$2/30)*SIN(A23*PI()/180))/1000 -> 31.05017392 | D23: =(PI()^2*J$2^2*H$2*COS(PI()*A23/180)/900+SQRT(2)*PI()^2*J$2^2*H$2^2*(4*(2*I$2^2-H$2^2)*COS(PI()*A23/90)+H$2^2*(COS(PI()*A23/45)+3))/(3600*(H$2^2*COS(PI()*A23/90)+2*I$2^2-H$2^2)^(3/2)))/1000 -> -15604.14992 | E23: =D23/1000 -> -15.60414992
A24: 110 | B24: =I$2+H$2-SQRT(I$2^2-H$2^2*SIN(A24*PI()/180)^2)-H$2*COS(A24*PI()/180) -> 57.16701381 | C24: =(H$2^2*(PI()*J$2/30)*SIN(A24*PI()/180)*COS(A24*PI()/180)/SQRT(I$2^2-H$2^2*SIN(A24*PI()/180)^2)+H$2*(PI()*J$2/30)*SIN(A24*PI()/180))/1000 -> 29.43732818 | D24: =(PI()^2*J$2^2*H$2*COS(PI()*A24/180)/900+SQRT(2)*PI()^2*J$2^2*H$2^2*(4*(2*I$2^2-H$2^2)*COS(PI()*A24/90)+H$2^2*(COS(PI()*A24/45)+3))/(3600*(H$2^2*COS(PI()*A24/90)+2*I$2^2-H$2^2)^(3/2)))/1000 -> -17248.88519 | E24: =D24/1000 -> -17.24888519
A25: 115 | B25: =I$2+H$2-SQRT(I$2^2-H$2^2*SIN(A25*PI()/180)^2)-H$2*COS(A25*PI()/180) -> 59.96784279 | C25: =(H$2^2*(PI()*J$2/30)*SIN(A25*PI()/180)*COS(A25*PI()/180)/SQRT(I$2^2-H$2^2*SIN(A25*PI()/180)^2)+H$2*(PI()*J$2/30)*SIN(A25*PI()/180))/1000 -> 27.677381 | D25: =(PI()^2*J$2^2*H$2*COS(PI()*A25/180)/900+SQRT(2)*PI()^2*J$2^2*H$2^2*(4*(2*I$2^2-H$2^2)*COS(PI()*A25/90)+H$2^2*(COS(PI()*A25/45)+3))/(3600*(H$2^2*COS(PI()*A25/90)+2*I$2^2-H$2^2)^(3/2)))/1000 -> -18608.00761 | E25: =D25/1000 -> -18.60800761
A26: 120 | B26: =I$2+H$2-SQRT(I$2^2-H$2^2*SIN(A26*PI()/180)^2)-H$2*COS(A26*PI()/180) -> 62.59002947 | C26: =(H$2^2*(PI()*J$2/30)*SIN(A26*PI()/180)*COS(A26*PI()/180)/SQRT(I$2^2-H$2^2*SIN(A26*PI()/180)^2)+H$2*(PI()*J$2/30)*SIN(A26*PI()/180))/1000 -> 25.79734827 | D26: =(PI()^2*J$2^2*H$2*COS(PI()*A26/180)/900+SQRT(2)*PI()^2*J$2^2*H$2^2*(4*(2*I$2^2-H$2^2)*COS(PI()*A26/90)+H$2^2*(COS(PI()*A26/45)+3))/(3600*(H$2^2*COS(PI()*A26/90)+2*I$2^2-H$2^2)^(3/2)))/1000 -> -19702.6438 | E26: =D26/1000 -> -19.7026438
A27: 125 | B27: =I$2+H$2-SQRT(I$2^2-H$2^2*SIN(A27*PI()/180)^2)-H$2*COS(A27*PI()/180) -> 65.02303137 | C27: =(H$2^2*(PI()*J$2/30)*SIN(A27*PI()/180)*COS(A27*PI()/180)/SQRT(I$2^2-H$2^2*SIN(A27*PI()/180)^2)+H$2*(PI()*J$2/30)*SIN(A27*PI()/180))/1000 -> 23.82190344 | D27: =(PI()^2*J$2^2*H$2*COS(PI()*A27/180)/900+SQRT(2)*PI()^2*J$2^2*H$2^2*(4*(2*I$2^2-H$2^2)*COS(PI()*A27/90)+H$2^2*(COS(PI()*A27/45)+3))/(3600*(H$2^2*COS(PI()*A27/90)+2*I$2^2-H$2^2)^(3/2)))/1000 -> -20559.14271 | E27: =D27/1000 -> -20.55914271
A28: 130 | B28: =I$2+H$2-SQRT(I$2^2-H$2^2*SIN(A28*PI()/180)^2)-H$2*COS(A28*PI()/180) -> 67.2585922 | C28: =(H$2^2*(PI()*J$2/30)*SIN(A28*PI()/180)*COS(A28*PI()/180)/SQRT(I$2^2-H$2^2*SIN(A28*PI()/180)^2)+H$2*(PI()*J$2/30)*SIN(A28*PI()/180))/1000 -> 21.77295648 | D28: =(PI()^2*J$2^2*H$2*COS(PI()*A28/180)/900+SQRT(2)*PI()^2*J$2^2*H$2^2*(4*(2*I$2^2-H$2^2)*COS(PI()*A28/90)+H$2^2*(COS(PI()*A28/45)+3))/(3600*(H$2^2*COS(PI()*A28/90)+2*I$2^2-H$2^2)^(3/2)))/1000 -> -21207.2273 | E28: =D28/1000 -> -21.2072273
A29: 135 | B29: =I$2+H$2-SQRT(I$2^2-H$2^2*SIN(A29*PI()/180)^2)-H$2*COS(A29*PI()/180) -> 69.29045761 | C29: =(H$2^2*(PI()*J$2/30)*SIN(A29*PI()/180)*COS(A29*PI()/180)/SQRT(I$2^2-H$2^2*SIN(A29*PI()/180)^2)+H$2*(PI()*J$2/30)*SIN(A29*PI()/180))/1000 -> 19.66941012 | D29: =(PI()^2*J$2^2*H$2*COS(PI()*A29/180)/900+SQRT(2)*PI()^2*J$2^2*H$2^2*(4*(2*I$2^2-H$2^2)*COS(PI()*A29/90)+H$2^2*(COS(PI()*A29/45)+3))/(3600*(H$2^2*COS(PI()*A29/90)+2*I$2^2-H$2^2)^(3/2)))/1000 -> -21678.24524 | E29: =D29/1000 -> -21.67824524
A30: 140 | B30: =I$2+H$2-SQRT(I$2^2-H$2^2*SIN(A30*PI()/180)^2)-H$2*COS(A30*PI()/180) -> 71.1140751 | C30: =(H$2^2*(PI()*J$2/30)*SIN(A30*PI()/180)*COS(A30*PI()/180)/SQRT(I$2^2-H$2^2*SIN(A30*PI()/180)^2)+H$2*(PI()*J$2/30)*SIN(A30*PI()/180))/1000 -> 17.52707838 | D30: =(PI()^2*J$2^2*H$2*COS(PI()*A30/180)/900+SQRT(2)*PI()^2*J$2^2*H$2^2*(4*(2*I$2^2-H$2^2)*COS(PI()*A30/90)+H$2^2*(COS(PI()*A30/45)+3))/(3600*(H$2^2*COS(PI()*A30/90)+2*I$2^2-H$2^2)^(3/2)))/1000 -> -22003.62028 | E30: =D30/1000 -> -22.00362028
A31: 145 | B31: =I$2+H$2-SQRT(I$2^2-H$2^2*SIN(A31*PI()/180)^2)-H$2*COS(A31*PI()/180) -> 72.72629303 | C31: =(H$2^2*(PI()*J$2/30)*SIN(A31*PI()/180)*COS(A31*PI()/180)/SQRT(I$2^2-H$2^2*SIN(A31*PI()/180)^2)+H$2*(PI()*J$2/30)*SIN(A31*PI()/180))/1000 -> 15.35874455 | D31: =(PI()^2*J$2^2*H$2*COS(PI()*A31/180)/900+SQRT(2)*PI()^2*J$2^2*H$2^2*(4*(2*I$2^2-H$2^2)*COS(PI()*A31/90)+H$2^2*(COS(PI()*A31/45)+3))/(3600*(H$2^2*COS(PI()*A31/90)+2*I$2^2-H$2^2)^(3/2)))/1000 -> -22213.5651 | E31: =D31/1000 -> -22.2135651
A32: 150 | B32: =I$2+H$2-SQRT(I$2^2-H$2^2*SIN(A32*PI()/180)^2)-H$2*COS(A32*PI()/180) -> 74.12507102 | C32: =(H$2^2*(PI()*J$2/30)*SIN(A32*PI()/180)*COS(A32*PI()/180)/SQRT(I$2^2-H$2^2*SIN(A32*PI()/180)^2)+H$2*(PI()*J$2/30)*SIN(A32*PI()/180))/1000 -> 13.17433143 | D32: =(PI()^2*J$2^2*H$2*COS(PI()*A32/180)/900+SQRT(2)*PI()^2*J$2^2*H$2^2*(4*(2*I$2^2-H$2^2)*COS(PI()*A32/90)+H$2^2*(COS(PI()*A32/45)+3))/(3600*(H$2^2*COS(PI()*A32/90)+2*I$2^2-H$2^2)^(3/2)))/1000 -> -22336.07674 | E32: =D32/1000 -> -22.33607674
A33: 155 | B33: =I$2+H$2-SQRT(I$2^2-H$2^2*SIN(A33*PI()/180)^2)-H$2*COS(A33*PI()/180) -> 75.30921144 | C33: =(H$2^2*(PI()*J$2/30)*SIN(A33*PI()/180)*COS(A33*PI()/180)/SQRT(I$2^2-H$2^2*SIN(A33*PI()/180)^2)+H$2*(PI()*J$2/30)*SIN(A33*PI()/180))/1000 -> 10.98115658 | D33: =(PI()^2*J$2^2*H$2*COS(PI()*A33/180)/900+SQRT(2)*PI()^2*J$2^2*H$2^2*(4*(2*I$2^2-H$2^2)*COS(PI()*A33/90)+H$2^2*(COS(PI()*A33/45)+3))/(3600*(H$2^2*COS(PI()*A33/90)+2*I$2^2-H$2^2)^(3/2)))/1000 -> -22396.20411 | E33: =D33/1000 -> -22.39620411
A34: 160 | B34: =I$2+H$2-SQRT(I$2^2-H$2^2*SIN(A34*PI()/180)^2)-H$2*COS(A34*PI()/180) -> 76.27811905 | C34: =(H$2^2*(PI()*J$2/30)*SIN(A34*PI()/180)*COS(A34*PI()/180)/SQRT(I$2^2-H$2^2*SIN(A34*PI()/180)^2)+H$2*(PI()*J$2/30)*SIN(A34*PI()/180))/1000 -> 8.784247364 | D34: =(PI()^2*J$2^2*H$2*COS(PI()*A34/180)/900+SQRT(2)*PI()^2*J$2^2*H$2^2*(4*(2*I$2^2-H$2^2)*COS(PI()*A34/90)+H$2^2*(COS(PI()*A34/45)+3))/(3600*(H$2^2*COS(PI()*A34/90)+2*I$2^2-H$2^2)^(3/2)))/1000 -> -22415.55383 | E34: =D34/1000 -> -22.41555383
A35: 165 | B35: =I$2+H$2-SQRT(I$2^2-H$2^2*SIN(A35*PI()/180)^2)-H$2*COS(A35*PI()/180) -> 77.03159355 | C35: =(H$2^2*(PI()*J$2/30)*SIN(A35*PI()/180)*COS(A35*PI()/180)/SQRT(I$2^2-H$2^2*SIN(A35*PI()/180)^2)+H$2*(PI()*J$2/30)*SIN(A35*PI()/180))/1000 -> 6.586694566 | D35: =(PI()^2*J$2^2*H$2*COS(PI()*A35/180)/900+SQRT(2)*PI()^2*J$2^2*H$2^2*(4*(2*I$2^2-H$2^2)*COS(PI()*A35/90)+H$2^2*(COS(PI()*A35/45)+3))/(3600*(H$2^2*COS(PI()*A35/90)+2*I$2^2-H$2^2)^(3/2)))/1000 -> -22411.98779 | E35: =D35/1000 -> -22.41198779
A36: 170 | B36: =I$2+H$2-SQRT(I$2^2-H$2^2*SIN(A36*PI()/180)^2)-H$2*COS(A36*PI()/180) -> 77.56965804 | C36: =(H$2^2*(PI()*J$2/30)*SIN(A36*PI()/180)*COS(A36*PI()/180)/SQRT(I$2^2-H$2^2*SIN(A36*PI()/180)^2)+H$2*(PI()*J$2/30)*SIN(A36*PI()/180))/1000 -> 4.390028434 | D36: =(PI()^2*J$2^2*H$2*COS(PI()*A36/180)/900+SQRT(2)*PI()^2*J$2^2*H$2^2*(4*(2*I$2^2-H$2^2)*COS(PI()*A36/90)+H$2^2*(COS(PI()*A36/45)+3))/(3600*(H$2^2*COS(PI()*A36/90)+2*I$2^2-H$2^2)^(3/2)))/1000 -> -22399.46157 | E36: =D36/1000 -> -22.39946157
A37: 175 | B37: =I$2+H$2-SQRT(I$2^2-H$2^2*SIN(A37*PI()/180)^2)-H$2*COS(A37*PI()/180) -> 77.89242493 | C37: =(H$2^2*(PI()*J$2/30)*SIN(A37*PI()/180)*COS(A37*PI()/180)/SQRT(I$2^2-H$2^2*SIN(A37*PI()/180)^2)+H$2*(PI()*J$2/30)*SIN(A37*PI()/180))/1000 -> 2.194605598 | D37: =(PI()^2*J$2^2*H$2*COS(PI()*A37/180)/900+SQRT(2)*PI()^2*J$2^2*H$2^2*(4*(2*I$2^2-H$2^2)*COS(PI()*A37/90)+H$2^2*(COS(PI()*A37/45)+3))/(3600*(H$2^2*COS(PI()*A37/90)+2*I$2^2-H$2^2)^(3/2)))/1000 -> -22387.95515 | E37: =D37/1000 -> -22.38795515
A38: 180 | B38: =I$2+H$2-SQRT(I$2^2-H$2^2*SIN(A38*PI()/180)^2)-H$2*COS(A38*PI()/180) -> 78 | C38: =(H$2^2*(PI()*J$2/30)*SIN(A38*PI()/180)*COS(A38*PI()/180)/SQRT(I$2^2-H$2^2*SIN(A38*PI()/180)^2)+H$2*(PI()*J$2/30)*SIN(A38*PI()/180))/1000 -> 3.079572466e-15 | D38: =(PI()^2*J$2^2*H$2*COS(PI()*A38/180)/900+SQRT(2)*PI()^2*J$2^2*H$2^2*(4*(2*I$2^2-H$2^2)*COS(PI()*A38/90)+H$2^2*(COS(PI()*A38/45)+3))/(3600*(H$2^2*COS(PI()*A38/90)+2*I$2^2-H$2^2)^(3/2)))/1000 -> -22383.45485 | E38: =D38/1000 -> -22.38345485
A39: 185 | B39: =I$2+H$2-SQRT(I$2^2-H$2^2*SIN(A39*PI()/180)^2)-H$2*COS(A39*PI()/180) -> 77.89242493 | C39: =(H$2^2*(PI()*J$2/30)*SIN(A39*PI()/180)*COS(A39*PI()/180)/SQRT(I$2^2-H$2^2*SIN(A39*PI()/180)^2)+H$2*(PI()*J$2/30)*SIN(A39*PI()/180))/1000 -> -2.194605598 | D39: =(PI()^2*J$2^2*H$2*COS(PI()*A39/180)/900+SQRT(2)*PI()^2*J$2^2*H$2^2*(4*(2*I$2^2-H$2^2)*COS(PI()*A39/90)+H$2^2*(COS(PI()*A39/45)+3))/(3600*(H$2^2*COS(PI()*A39/90)+2*I$2^2-H$2^2)^(3/2)))/1000 -> -22387.95515 | E39: =D39/1000 -> -22.38795515
A40: 190 | B40: =I$2+H$2-SQRT(I$2^2-H$2^2*SIN(A40*PI()/180)^2)-H$2*COS(A40*PI()/180) -> 77.56965804 | C40: =(H$2^2*(PI()*J$2/30)*SIN(A40*PI()/180)*COS(A40*PI()/180)/SQRT(I$2^2-H$2^2*SIN(A40*PI()/180)^2)+H$2*(PI()*J$2/30)*SIN(A40*PI()/180))/1000 -> -4.390028434 | D40: =(PI()^2*J$2^2*H$2*COS(PI()*A40/180)/900+SQRT(2)*PI()^2*J$2^2*H$2^2*(4*(2*I$2^2-H$2^2)*COS(PI()*A40/90)+H$2^2*(COS(PI()*A40/45)+3))/(3600*(H$2^2*COS(PI()*A40/90)+2*I$2^2-H$2^2)^(3/2)))/1000 -> -22399.46157 | E40: =D40/1000 -> -22.39946157
A41: 195 | B41: =I$2+H$2-SQRT(I$2^2-H$2^2*SIN(A41*PI()/180)^2)-H$2*COS(A41*PI()/180) -> 77.03159355 | C41: =(H$2^2*(PI()*J$2/30)*SIN(A41*PI()/180)*COS(A41*PI()/180)/SQRT(I$2^2-H$2^2*SIN(A41*PI()/180)^2)+H$2*(PI()*J$2/30)*SIN(A41*PI()/180))/1000 -> -6.586694566 | D41: =(PI()^2*J$2^2*H$2*COS(PI()*A41/180)/900+SQRT(2)*PI()^2*J$2^2*H$2^2*(4*(2*I$2^2-H$2^2)*COS(PI()*A41/90)+H$2^2*(COS(PI()*A41/45)+3))/(3600*(H$2^2*COS(PI()*A41/90)+2*I$2^2-H$2^2)^(3/2)))/1000 -> -22411.98779 | E41: =D41/1000 -> -22.41198779
A42: 200 | B42: =I$2+H$2-SQRT(I$2^2-H$2^2*SIN(A42*PI()/180)^2)-H$2*COS(A42*PI()/180) -> 76.27811905 | C42: =(H$2^2*(PI()*J$2/30)*SIN(A42*PI()/180)*COS(A42*PI()/180)/SQRT(I$2^2-H$2^2*SIN(A42*PI()/180)^2)+H$2*(PI()*J$2/30)*SIN(A42*PI()/180))/1000 -> -8.784247364 | D42: =(PI()^2*J$2^2*H$2*COS(PI()*A42/180)/900+SQRT(2)*PI()^2*J$2^2*H$2^2*(4*(2*I$2^2-H$2^2)*COS(PI()*A42/90)+H$2^2*(COS(PI()*A42/45)+3))/(3600*(H$2^2*COS(PI()*A42/90)+2*I$2^2-H$2^2)^(3/2)))/1000 -> -22415.55383 | E42: =D42/1000 -> -22.41555383
A43: 205 | B43: =I$2+H$2-SQRT(I$2^2-H$2^2*SIN(A43*PI()/180)^2)-H$2*COS(A43*PI()/180) -> 75.30921144 | C43: =(H$2^2*(PI()*J$2/30)*SIN(A43*PI()/180)*COS(A43*PI()/180)/SQRT(I$2^2-H$2^2*SIN(A43*PI()/180)^2)+H$2*(PI()*J$2/30)*SIN(A43*PI()/180))/1000 -> -10.98115658 | D43: =(PI()^2*J$2^2*H$2*COS(PI()*A43/180)/900+SQRT(2)*PI()^2*J$2^2*H$2^2*(4*(2*I$2^2-H$2^2)*COS(PI()*A43/90)+H$2^2*(COS(PI()*A43/45)+3))/(3600*(H$2^2*COS(PI()*A43/90)+2*I$2^2-H$2^2)^(3/2)))/1000 -> -22396.20411 | E43: =D43/1000 -> -22.39620411
A44: 210 | B44: =I$2+H$2-SQRT(I$2^2-H$2^2*SIN(A44*PI()/180)^2)-H$2*COS(A44*PI()/180) -> 74.12507102 | C44: =(H$2^2*(PI()*J$2/30)*SIN(A44*PI()/180)*COS(A44*PI()/180)/SQRT(I$2^2-H$2^2*SIN(A44*PI()/180)^2)+H$2*(PI()*J$2/30)*SIN(A44*PI()/180))/1000 -> -13.17433143 | D44: =(PI()^2*J$2^2*H$2*COS(PI()*A44/180)/900+SQRT(2)*PI()^2*J$2^2*H$2^2*(4*(2*I$2^2-H$2^2)*COS(PI()*A44/90)+H$2^2*(COS(PI()*A44/45)+3))/(3600*(H$2^2*COS(PI()*A44/90)+2*I$2^2-H$2^2)^(3/2)))/1000 -> -22336.07674 | E44: =D44/1000 -> -22.33607674
A45: 215 | B45: =I$2+H$2-SQRT(I$2^2-H$2^2*SIN(A45*PI()/180)^2)-H$2*COS(A45*PI()/180) -> 72.72629303 | C45: =(H$2^2*(PI()*J$2/30)*SIN(A45*PI()/180)*COS(A45*PI()/180)/SQRT(I$2^2-H$2^2*SIN(A45*PI()/180)^2)+H$2*(PI()*J$2/30)*SIN(A45*PI()/180))/1000 -> -15.35874455 | D45: =(PI()^2*J$2^2*H$2*COS(PI()*A45/180)/900+SQRT(2)*PI()^2*J$2^2*H$2^2*(4*(2*I$2^2-H$2^2)*COS(PI()*A45/90)+H$2^2*(COS(PI()*A45/45)+3))/(3600*(H$2^2*COS(PI()*A45/90)+2*I$2^2-H$2^2)^(3/2)))/1000 -> -22213.5651 | E45: =D45/1000 -> -22.2135651
A46: 220 | B46: =I$2+H$2-SQRT(I$2^2-H$2^2*SIN(A46*PI()/180)^2)-H$2*COS(A46*PI()/180) -> 71.1140751 | C46: =(H$2^2*(PI()*J$2/30)*SIN(A46*PI()/180)*COS(A46*PI()/180)/SQRT(I$2^2-H$2^2*SIN(A46*PI()/180)^2)+H$2*(PI()*J$2/30)*SIN(A46*PI()/180))/1000 -> -17.52707838 | D46: =(PI()^2*J$2^2*H$2*COS(PI()*A46/180)/900+SQRT(2)*PI()^2*J$2^2*H$2^2*(4*(2*I$2^2-H$2^2)*COS(PI()*A46/90)+H$2^2*(COS(PI()*A46/45)+3))/(3600*(H$2^2*COS(PI()*A46/90)+2*I$2^2-H$2^2)^(3/2)))/1000 -> -22003.62028 | E46: =D46/1000 -> -22.00362028
A47: 225 | B47: =I$2+H$2-SQRT(I$2^2-H$2^2*SIN(A47*PI()/180)^2)-H$2*COS(A47*PI()/180) -> 69.29045761 | C47: =(H$2^2*(PI()*J$2/30)*SIN(A47*PI()/180)*COS(A47*PI()/180)/SQRT(I$2^2-H$2^2*SIN(A47*PI()/180)^2)+H$2*(PI()*J$2/30)*SIN(A47*PI()/180))/1000 -> -19.66941012 | D47: =(PI()^2*J$2^2*H$2*COS(PI()*A47/180)/900+SQRT(2)*PI()^2*J$2^2*H$2^2*(4*(2*I$2^2-H$2^2)*COS(PI()*A47/90)+H$2^2*(COS(PI()*A47/45)+3))/(3600*(H$2^2*COS(PI()*A47/90)+2*I$2^2-H$2^2)^(3/2)))/1000 -> -21678.24524 | E47: =D47/1000 -> -21.67824524
A48: 230 | B48: =I$2+H$2-SQRT(I$2^2-H$2^2*SIN(A48*PI()/180)^2)-H$2*COS(A48*PI()/180) -> 67.2585922 | C48: =(H$2^2*(PI()*J$2/30)*SIN(A48*PI()/180)*COS(A48*PI()/180)/SQRT(I$2^2-H$2^2*SIN(A48*PI()/180)^2)+H$2*(PI()*J$2/30)*SIN(A48*PI()/180))/1000 -> -21.77295648 | D48: =(PI()^2*J$2^2*H$2*COS(PI()*A48/180)/900+SQRT(2)*PI()^2*J$2^2*H$2^2*(4*(2*I$2^2-H$2^2)*COS(PI()*A48/90)+H$2^2*(COS(PI()*A48/45)+3))/(3600*(H$2^2*COS(PI()*A48/90)+2*I$2^2-H$2^2)^(3/2)))/1000 -> -21207.2273 | E48: =D48/1000 -> -21.2072273
A49: 235 | B49: =I$2+H$2-SQRT(I$2^2-H$2^2*SIN(A49*PI()/180)^2)-H$2*COS(A49*PI()/180) -> 65.02303137 | C49: =(H$2^2*(PI()*J$2/30)*SIN(A49*PI()/180)*COS(A49*PI()/180)/SQRT(I$2^2-H$2^2*SIN(A49*PI()/180)^2)+H$2*(PI()*J$2/30)*SIN(A49*PI()/180))/1000 -> -23.82190344 | D49: =(PI()^2*J$2^2*H$2*COS(PI()*A49/180)/900+SQRT(2)*PI()^2*J$2^2*H$2^2*(4*(2*I$2^2-H$2^2)*COS(PI()*A49/90)+H$2^2*(COS(PI()*A49/45)+3))/(3600*(H$2^2*COS(PI()*A49/90)+2*I$2^2-H$2^2)^(3/2)))/1000 -> -20559.14271 | E49: =D49/1000 -> -20.55914271
A50: 240 | B50: =I$2+H$2-SQRT(I$2^2-H$2^2*SIN(A50*PI()/180)^2)-H$2*COS(A50*PI()/180) -> 62.59002947 | C50: =(H$2^2*(PI()*J$2/30)*SIN(A50*PI()/180)*COS(A50*PI()/180)/SQRT(I$2^2-H$2^2*SIN(A50*PI()/180)^2)+H$2*(PI()*J$2/30)*SIN(A50*PI()/180))/1000 -> -25.79734827 | D50: =(PI()^2*J$2^2*H$2*COS(PI()*A50/180)/900+SQRT(2)*PI()^2*J$2^2*H$2^2*(4*(2*I$2^2-H$2^2)*COS(PI()*A50/90)+H$2^2*(COS(PI()*A50/45)+3))/(3600*(H$2^2*COS(PI()*A50/90)+2*I$2^2-H$2^2)^(3/2)))/1000 -> -19702.6438 | E50: =D50/1000 -> -19.7026438
A51: 245 | B51: =I$2+H$2-SQRT(I$2^2-H$2^2*SIN(A51*PI()/180)^2)-H$2*COS(A51*PI()/180) -> 59.96784279 | C51: =(H$2^2*(PI()*J$2/30)*SIN(A51*PI()/180)*COS(A51*PI()/180)/SQRT(I$2^2-H$2^2*SIN(A51*PI()/180)^2)+H$2*(PI()*J$2/30)*SIN(A51*PI()/180))/1000 -> -27.677381 | D51: =(PI()^2*J$2^2*H$2*COS(PI()*A51/180)/900+SQRT(2)*PI()^2*J$2^2*H$2^2*(4*(2*I$2^2-H$2^2)*COS(PI()*A51/90)+H$2^2*(COS(PI()*A51/45)+3))/(3600*(H$2^2*COS(PI()*A51/90)+2*I$2^2-H$2^2)^(3/2)))/1000 -> -18608.00761 | E51: =D51/1000 -> -18.60800761
A52: 250 | B52: =I$2+H$2-SQRT(I$2^2-H$2^2*SIN(A52*PI()/180)^2)-H$2*COS(A52*PI()/180) -> 57.16701381 | C52: =(H$2^2*(PI()*J$2/30)*SIN(A52*PI()/180)*COS(A52*PI()/180)/SQRT(I$2^2-H$2^2*SIN(A52*PI()/180)^2)+H$2*(PI()*J$2/30)*SIN(A52*PI()/180))/1000 -> -29.43732818 | D52: =(PI()^2*J$2^2*H$2*COS(PI()*A52/180)/900+SQRT(2)*PI()^2*J$2^2*H$2^2*(4*(2*I$2^2-H$2^2)*COS(PI()*A52/90)+H$2^2*(COS(PI()*A52/45)+3))/(3600*(H$2^2*COS(PI()*A52/90)+2*I$2^2-H$2^2)^(3/2)))/1000 -> -17248.88519 | E52: =D52/1000 -> -17.24888519
A53: 255 | B53: =I$2+H$2-SQRT(I$2^2-H$2^2*SIN(A53*PI()/180)^2)-H$2*COS(A53*PI()/180) -> 54.20062298 | C53: =(H$2^2*(PI()*J$2/30)*SIN(A53*PI()/180)*COS(A53*PI()/180)/SQRT(I$2^2-H$2^2*SIN(A53*PI()/180)^2)+H$2*(PI()*J$2/30)*SIN(A53*PI()/180))/1000 -> -31.05017392 | D53: =(PI()^2*J$2^2*H$2*COS(PI()*A53/180)/900+SQRT(2)*PI()^2*J$2^2*H$2^2*(4*(2*I$2^2-H$2^2)*COS(PI()*A53/90)+H$2^2*(COS(PI()*A53/45)+3))/(3600*(H$2^2*COS(PI()*A53/90)+2*I$2^2-H$2^2)^(3/2)))/1000 -> -15604.14992 | E53: =D53/1000 -> -15.60414992
A54: 260 | B54: =I$2+H$2-SQRT(I$2^2-H$2^2*SIN(A54*PI()/180)^2)-H$2*COS(A54*PI()/180) -> 51.08449034 | C54: =(H$2^2*(PI()*J$2/30)*SIN(A54*PI()/180)*COS(A54*PI()/180)/SQRT(I$2^2-H$2^2*SIN(A54*PI()/180)^2)+H$2*(PI()*J$2/30)*SIN(A54*PI()/180))/1000 -> -32.4871616 | D54: =(PI()^2*J$2^2*H$2*COS(PI()*A54/180)/900+SQRT(2)*PI()^2*J$2^2*H$2^2*(4*(2*I$2^2-H$2^2)*COS(PI()*A54/90)+H$2^2*(COS(PI()*A54/45)+3))/(3600*(H$2^2*COS(PI()*A54/90)+2*I$2^2-H$2^2)^(3/2)))/1000 -> -13659.70754 | E54: =D54/1000 -> -13.65970754
A55: 265 | B55: =I$2+H$2-SQRT(I$2^2-H$2^2*SIN(A55*PI()/180)^2)-H$2*COS(A55*PI()/180) -> 47.83730967 | C55: =(H$2^2*(PI()*J$2/30)*SIN(A55*PI()/180)*COS(A55*PI()/180)/SQRT(I$2^2-H$2^2*SIN(A55*PI()/180)^2)+H$2*(PI()*J$2/30)*SIN(A55*PI()/180))/1000 -> -33.71856464 | D55: =(PI()^2*J$2^2*H$2*COS(PI()*A55/180)/900+SQRT(2)*PI()^2*J$2^2*H$2^2*(4*(2*I$2^2-H$2^2)*COS(PI()*A55/90)+H$2^2*(COS(PI()*A55/45)+3))/(3600*(H$2^2*COS(PI()*A55/90)+2*I$2^2-H$2^2)^(3/2)))/1000 -> -11410.10794 | E55: =D55/1000 -> -11.41010794
A56: 270 | B56: =I$2+H$2-SQRT(I$2^2-H$2^2*SIN(A56*PI()/180)^2)-H$2*COS(A56*PI()/180) -> 44.4806999 | C56: =(H$2^2*(PI()*J$2/30)*SIN(A56*PI()/180)*COS(A56*PI()/180)/SQRT(I$2^2-H$2^2*SIN(A56*PI()/180)^2)+H$2*(PI()*J$2/30)*SIN(A56*PI()/180))/1000 -> -34.71459882 | D56: =(PI()^2*J$2^2*H$2*COS(PI()*A56/180)/900+SQRT(2)*PI()^2*J$2^2*H$2^2*(4*(2*I$2^2-H$2^2)*COS(PI()*A56/90)+H$2^2*(COS(PI()*A56/45)+3))/(3600*(H$2^2*COS(PI()*A56/90)+2*I$2^2-H$2^2)^(3/2)))/1000 -> -8859.796885 | E56: =D56/1000 -> -8.859796885
A57: 275 | B57: =I$2+H$2-SQRT(I$2^2-H$2^2*SIN(A57*PI()/180)^2)-H$2*COS(A57*PI()/180) -> 41.03916174 | C57: =(H$2^2*(PI()*J$2/30)*SIN(A57*PI()/180)*COS(A57*PI()/180)/SQRT(I$2^2-H$2^2*SIN(A57*PI()/180)^2)+H$2*(PI()*J$2/30)*SIN(A57*PI()/180))/1000 -> -35.44643395 | D57: =(PI()^2*J$2^2*H$2*COS(PI()*A57/180)/900+SQRT(2)*PI()^2*J$2^2*H$2^2*(4*(2*I$2^2-H$2^2)*COS(PI()*A57/90)+H$2^2*(COS(PI()*A57/45)+3))/(3600*(H$2^2*COS(PI()*A57/90)+2*I$2^2-H$2^2)^(3/2)))/1000 -> -6023.867968 | E57: =D57/1000 -> -6.023867968
A58: 280 | B58: =I$2+H$2-SQRT(I$2^2-H$2^2*SIN(A58*PI()/180)^2)-H$2*COS(A58*PI()/180) -> 37.53993248 | C58: =(H$2^2*(PI()*J$2/30)*SIN(A58*PI()/180)*COS(A58*PI()/180)/SQRT(I$2^2-H$2^2*SIN(A58*PI()/180)^2)+H$2*(PI()*J$2/30)*SIN(A58*PI()/180))/1000 -> -35.88725052 | D58: =(PI()^2*J$2^2*H$2*COS(PI()*A58/180)/900+SQRT(2)*PI()^2*J$2^2*H$2^2*(4*(2*I$2^2-H$2^2)*COS(PI()*A58/90)+H$2^2*(COS(PI()*A58/45)+3))/(3600*(H$2^2*COS(PI()*A58/90)+2*I$2^2-H$2^2)^(3/2)))/1000 -> -2928.22014 | E58: =D58/1000 -> -2.92822014
A59: 285 | B59: =I$2+H$2-SQRT(I$2^2-H$2^2*SIN(A59*PI()/180)^2)-H$2*COS(A59*PI()/180) -> 34.01273746 | C59: =(H$2^2*(PI()*J$2/30)*SIN(A59*PI()/180)*COS(A59*PI()/180)/SQRT(I$2^2-H$2^2*SIN(A59*PI()/180)^2)+H$2*(PI()*J$2/30)*SIN(A59*PI()/180))/1000 -> -36.01328119 | D59: =(PI()^2*J$2^2*H$2*COS(PI()*A59/180)/900+SQRT(2)*PI()^2*J$2^2*H$2^2*(4*(2*I$2^2-H$2^2)*COS(PI()*A59/90)+H$2^2*(COS(PI()*A59/45)+3))/(3600*(H$2^2*COS(PI()*A59/90)+2*I$2^2-H$2^2)^(3/2)))/1000 -> 390.9118114 | E59: =D59/1000 -> 0.3909118114
A60: 290 | B60: =I$2+H$2-SQRT(I$2^2-H$2^2*SIN(A60*PI()/180)^2)-H$2*COS(A60*PI()/180) -> 30.48944263 | C60: =(H$2^2*(PI()*J$2/30)*SIN(A60*PI()/180)*COS(A60*PI()/180)/SQRT(I$2^2-H$2^2*SIN(A60*PI()/180)^2)+H$2*(PI()*J$2/30)*SIN(A60*PI()/180))/1000 -> -35.80477652 | D60: =(PI()^2*J$2^2*H$2*COS(PI()*A60/180)/900+SQRT(2)*PI()^2*J$2^2*H$2^2*(4*(2*I$2^2-H$2^2)*COS(PI()*A60/90)+H$2^2*(COS(PI()*A60/45)+3))/(3600*(H$2^2*COS(PI()*A60/90)+2*I$2^2-H$2^2)^(3/2)))/1000 -> 3888.018797 | E60: =D60/1000 -> 3.888018797
A61: 295 | B61: =I$2+H$2-SQRT(I$2^2-H$2^2*SIN(A61*PI()/180)^2)-H$2*COS(A61*PI()/180) -> 27.00361838 | C61: =(H$2^2*(PI()*J$2/30)*SIN(A61*PI()/180)*COS(A61*PI()/180)/SQRT(I$2^2-H$2^2*SIN(A61*PI()/180)^2)+H$2*(PI()*J$2/30)*SIN(A61*PI()/180))/1000 -> -35.24684147 | D61: =(PI()^2*J$2^2*H$2*COS(PI()*A61/180)/900+SQRT(2)*PI()^2*J$2^2*H$2^2*(4*(2*I$2^2-H$2^2)*COS(PI()*A61/90)+H$2^2*(COS(PI()*A61/45)+3))/(3600*(H$2^2*COS(PI()*A61/90)+2*I$2^2-H$2^2)^(3/2)))/1000 -> 7509.874028 | E61: =D61/1000 -> 7.509874028
A62: 300 | B62: =I$2+H$2-SQRT(I$2^2-H$2^2*SIN(A62*PI()/180)^2)-H$2*COS(A62*PI()/180) -> 23.59002947 | C62: =(H$2^2*(PI()*J$2/30)*SIN(A62*PI()/180)*COS(A62*PI()/180)/SQRT(I$2^2-H$2^2*SIN(A62*PI()/180)^2)+H$2*(PI()*J$2/30)*SIN(A62*PI()/180))/1000 -> -34.33010066 | D62: =(PI()^2*J$2^2*H$2*COS(PI()*A62/180)/900+SQRT(2)*PI()^2*J$2^2*H$2^2*(4*(2*I$2^2-H$2^2)*COS(PI()*A62/90)+H$2^2*(COS(PI()*A62/45)+3))/(3600*(H$2^2*COS(PI()*A62/90)+2*I$2^2-H$2^2)^(3/2)))/1000 -> 11197.44265 | E62: =D62/1000 -> 11.19744265
A63: 305 | B63: =I$2+H$2-SQRT(I$2^2-H$2^2*SIN(A63*PI()/180)^2)-H$2*COS(A63*PI()/180) -> 20.28406933 | C63: =(H$2^2*(PI()*J$2/30)*SIN(A63*PI()/180)*COS(A63*PI()/180)/SQRT(I$2^2-H$2^2*SIN(A63*PI()/180)^2)+H$2*(PI()*J$2/30)*SIN(A63*PI()/180))/1000 -> -33.05116574 | D63: =(PI()^2*J$2^2*H$2*COS(PI()*A63/180)/900+SQRT(2)*PI()^2*J$2^2*H$2^2*(4*(2*I$2^2-H$2^2)*COS(PI()*A63/90)+H$2^2*(COS(PI()*A63/45)+3))/(3600*(H$2^2*COS(PI()*A63/90)+2*I$2^2-H$2^2)^(3/2)))/1000 -> 14887.98022 | E63: =D63/1000 -> 14.88798022
A64: 310 | B64: =I$2+H$2-SQRT(I$2^2-H$2^2*SIN(A64*PI()/180)^2)-H$2*COS(A64*PI()/180) -> 17.12115864 | C64: =(H$2^2*(PI()*J$2/30)*SIN(A64*PI()/180)*COS(A64*PI()/180)/SQRT(I$2^2-H$2^2*SIN(A64*PI()/180)^2)+H$2*(PI()*J$2/30)*SIN(A64*PI()/180))/1000 -> -31.41289456 | D64: =(PI()^2*J$2^2*H$2*COS(PI()*A64/180)/900+SQRT(2)*PI()^2*J$2^2*H$2^2*(4*(2*I$2^2-H$2^2)*COS(PI()*A64/90)+H$2^2*(COS(PI()*A64/45)+3))/(3600*(H$2^2*COS(PI()*A64/90)+2*I$2^2-H$2^2)^(3/2)))/1000 -> 18517.15811 | E64: =D64/1000 -> 18.51715811
A65: 315 | B65: =I$2+H$2-SQRT(I$2^2-H$2^2*SIN(A65*PI()/180)^2)-H$2*COS(A65*PI()/180) -> 14.13612868 | C65: =(H$2^2*(PI()*J$2/30)*SIN(A65*PI()/180)*COS(A65*PI()/180)/SQRT(I$2^2-H$2^2*SIN(A65*PI()/180)^2)+H$2*(PI()*J$2/30)*SIN(A65*PI()/180))/1000 -> -29.42444635 | D65: =(PI()^2*J$2^2*H$2*COS(PI()*A65/180)/900+SQRT(2)*PI()^2*J$2^2*H$2^2*(4*(2*I$2^2-H$2^2)*COS(PI()*A65/90)+H$2^2*(COS(PI()*A65/45)+3))/(3600*(H$2^2*COS(PI()*A65/90)+2*I$2^2-H$2^2)^(3/2)))/1000 -> 22021.07609 | E65: =D65/1000 -> 22.02107609
A66: 320 | B66: =I$2+H$2-SQRT(I$2^2-H$2^2*SIN(A66*PI()/180)^2)-H$2*COS(A66*PI()/180) -> 11.36260854 | C66: =(H$2^2*(PI()*J$2/30)*SIN(A66*PI()/180)*COS(A66*PI()/180)/SQRT(I$2^2-H$2^2*SIN(A66*PI()/180)^2)+H$2*(PI()*J$2/30)*SIN(A66*PI()/180))/1000 -> -27.10114962 | D66: =(PI()^2*J$2^2*H$2*COS(PI()*A66/180)/900+SQRT(2)*PI()^2*J$2^2*H$2^2*(4*(2*I$2^2-H$2^2)*COS(PI()*A66/90)+H$2^2*(COS(PI()*A66/45)+3))/(3600*(H$2^2*COS(PI()*A66/90)+2*I$2^2-H$2^2)^(3/2)))/1000 -> 25338.05874 | E66: =D66/1000 -> 25.33805874
A67: 325 | B67: =I$2+H$2-SQRT(I$2^2-H$2^2*SIN(A67*PI()/180)^2)-H$2*COS(A67*PI()/180) -> 8.832433576 | C67: =(H$2^2*(PI()*J$2/30)*SIN(A67*PI()/180)*COS(A67*PI()/180)/SQRT(I$2^2-H$2^2*SIN(A67*PI()/180)^2)+H$2*(PI()*J$2/30)*SIN(A67*PI()/180))/1000 -> -24.46420722 | D67: =(PI()^2*J$2^2*H$2*COS(PI()*A67/180)/900+SQRT(2)*PI()^2*J$2^2*H$2^2*(4*(2*I$2^2-H$2^2)*COS(PI()*A67/90)+H$2^2*(COS(PI()*A67/45)+3))/(3600*(H$2^2*COS(PI()*A67/90)+2*I$2^2-H$2^2)^(3/2)))/1000 -> 28410.17286 | E67: =D67/1000 -> 28.41017286
A68: 330 | B68: =I$2+H$2-SQRT(I$2^2-H$2^2*SIN(A68*PI()/180)^2)-H$2*COS(A68*PI()/180) -> 6.575089524 | C68: =(H$2^2*(PI()*J$2/30)*SIN(A68*PI()/180)*COS(A68*PI()/180)/SQRT(I$2^2-H$2^2*SIN(A68*PI()/180)^2)+H$2*(PI()*J$2/30)*SIN(A68*PI()/180))/1000 -> -21.54026739 | D68: =(PI()^2*J$2^2*H$2*COS(PI()*A68/180)/900+SQRT(2)*PI()^2*J$2^2*H$2^2*(4*(2*I$2^2-H$2^2)*COS(PI()*A68/90)+H$2^2*(COS(PI()*A68/45)+3))/(3600*(H$2^2*COS(PI()*A68/90)+2*I$2^2-H$2^2)^(3/2)))/1000 -> 31184.44294 | E68: =D68/1000 -> 31.18444294
A69: 335 | B69: =I$2+H$2-SQRT(I$2^2-H$2^2*SIN(A69*PI()/180)^2)-H$2*COS(A69*PI()/180) -> 4.617204051 | C69: =(H$2^2*(PI()*J$2/30)*SIN(A69*PI()/180)*COS(A69*PI()/180)/SQRT(I$2^2-H$2^2*SIN(A69*PI()/180)^2)+H$2*(PI()*J$2/30)*SIN(A69*PI()/180))/1000 -> -18.36089024 | D69: =(PI()^2*J$2^2*H$2*COS(PI()*A69/180)/900+SQRT(2)*PI()^2*J$2^2*H$2^2*(4*(2*I$2^2-H$2^2)*COS(PI()*A69/90)+H$2^2*(COS(PI()*A69/45)+3))/(3600*(H$2^2*COS(PI()*A69/90)+2*I$2^2-H$2^2)^(3/2)))/1000 -> 33613.77383 | E69: =D69/1000 -> 33.61377383
A70: 340 | B70: =I$2+H$2-SQRT(I$2^2-H$2^2*SIN(A70*PI()/180)^2)-H$2*COS(A70*PI()/180) -> 2.982094629 | C70: =(H$2^2*(PI()*J$2/30)*SIN(A70*PI()/180)*COS(A70*PI()/180)/SQRT(I$2^2-H$2^2*SIN(A70*PI()/180)^2)+H$2*(PI()*J$2/30)*SIN(A70*PI()/180))/1000 -> -14.96193677 | D70: =(PI()^2*J$2^2*H$2*COS(PI()*A70/180)/900+SQRT(2)*PI()^2*J$2^2*H$2^2*(4*(2*I$2^2-H$2^2)*COS(PI()*A70/90)+H$2^2*(COS(PI()*A70/45)+3))/(3600*(H$2^2*COS(PI()*A70/90)+2*I$2^2-H$2^2)^(3/2)))/1000 -> 35657.6126 | E70: =D70/1000 -> 35.6576126
A71: 345 | B71: =I$2+H$2-SQRT(I$2^2-H$2^2*SIN(A71*PI()/180)^2)-H$2*COS(A71*PI()/180) -> 1.689379103 | C71: =(H$2^2*(PI()*J$2/30)*SIN(A71*PI()/180)*COS(A71*PI()/180)/SQRT(I$2^2-H$2^2*SIN(A71*PI()/180)^2)+H$2*(PI()*J$2/30)*SIN(A71*PI()/180))/1000 -> -11.38290407 | D71: =(PI()^2*J$2^2*H$2*COS(PI()*A71/180)/900+SQRT(2)*PI()^2*J$2^2*H$2^2*(4*(2*I$2^2-H$2^2)*COS(PI()*A71/90)+H$2^2*(COS(PI()*A71/45)+3))/(3600*(H$2^2*COS(PI()*A71/90)+2*I$2^2-H$2^2)^(3/2)))/1000 -> 37282.39527 | E71: =D71/1000 -> 37.28239527
A72: 350 | B72: =I$2+H$2-SQRT(I$2^2-H$2^2*SIN(A72*PI()/180)^2)-H$2*COS(A72*PI()/180) -> 0.7546533087 | C72: =(H$2^2*(PI()*J$2/30)*SIN(A72*PI()/180)*COS(A72*PI()/180)/SQRT(I$2^2-H$2^2*SIN(A72*PI()/180)^2)+H$2*(PI()*J$2/30)*SIN(A72*PI()/180))/1000 -> -7.666225214 | D72: =(PI()^2*J$2^2*H$2*COS(PI()*A72/180)/900+SQRT(2)*PI()^2*J$2^2*H$2^2*(4*(2*I$2^2-H$2^2)*COS(PI()*A72/90)+H$2^2*(COS(PI()*A72/45)+3))/(3600*(H$2^2*COS(PI()*A72/90)+2*I$2^2-H$2^2)^(3/2)))/1000 -> 38461.82784 | E72: =D72/1000 -> 38.46182784
A73: 355 | B73: =I$2+H$2-SQRT(I$2^2-H$2^2*SIN(A73*PI()/180)^2)-H$2*COS(A73*PI()/180) -> 0.1892384743 | C73: =(H$2^2*(PI()*J$2/30)*SIN(A73*PI()/180)*COS(A73*PI()/180)/SQRT(I$2^2-H$2^2*SIN(A73*PI()/180)^2)+H$2*(PI()*J$2/30)*SIN(A73*PI()/180))/1000 -> -3.856547691 | D73: =(PI()^2*J$2^2*H$2*COS(PI()*A73/180)/900+SQRT(2)*PI()^2*J$2^2*H$2^2*(4*(2*I$2^2-H$2^2)*COS(PI()*A73/90)+H$2^2*(COS(PI()*A73/45)+3))/(3600*(H$2^2*COS(PI()*A73/90)+2*I$2^2-H$2^2)^(3/2)))/1000 -> 39177.04942 | E73: =D73/1000 -> 39.17704942
A74: 360 | B74: =I$2+H$2-SQRT(I$2^2-H$2^2*SIN(A74*PI()/180)^2)-H$2*COS(A74*PI()/180) -> 0 | C74: =(H$2^2*(PI()*J$2/30)*SIN(A74*PI()/180)*COS(A74*PI()/180)/SQRT(I$2^2-H$2^2*SIN(A74*PI()/180)^2)+H$2*(PI()*J$2/30)*SIN(A74*PI()/180))/1000 -> -1.0846104e-14 | D74: =(PI()^2*J$2^2*H$2*COS(PI()*A74/180)/900+SQRT(2)*PI()^2*J$2^2*H$2^2*(4*(2*I$2^2-H$2^2)*COS(PI()*A74/90)+H$2^2*(COS(PI()*A74/45)+3))/(3600*(H$2^2*COS(PI()*A74/90)+2*I$2^2-H$2^2)^(3/2)))/1000 -> 39416.71805 | E74: =D74/1000 -> 39.41671805

Sheet Massenkräfte
I1: Kurbelradius: | J1: Pleuellänge: | K1: Fmax:
I2: 39 | J2: 141.5 | K2: =COS(I5*PI()/180)+$I$2/$J$2*COS(2*I5*PI()/180)-1/4*($I$2/$J$2)^3*COS(4*I5*PI()/180)+1/14*($I$2/$J$2)^5*COS(6*I5*PI()/180) -> 1.270497612
I4: Kurbelwinkel | J4: Gesamtkraft | K4: 1. Ordnung | L4: 2.Ordnung | M4: 4.Ordnung | N4: 6.Ordnung | P4: Ausgleich 1. Ordnung | Q4: Ausgleich 1. u. 2. Ordnung
I5: 0 | J5: =(SUM(K5:N5)) -> 1 | K5: =COS(I5*PI()/180)/$K$2 -> 0.7870931753 | L5: =$I$2/$J$2*COS(2*I5*PI()/180)/$K$2 -> 0.2169373416 | M5: =-1/4*($I$2/$J$2)^3*COS(4*I5*PI()/180)/$K$2 -> -0.004119937776 | N5: =1/14*($I$2/$J$2)^5*COS(6*I5*PI()/180)/$K$2 -> 8.942088153e-05 | P5: =(J5-K5) -> 0.2129068247 | Q5: =(J5-K5-L5) -> -0.004030516895
I6: 5 | J6: =(SUM(K6:N6)) -> 0.9939455897 | K6: =COS(I6*PI()/180)/$K$2 -> 0.7840980481 | L6: =$I$2/$J$2*COS(2*I6*PI()/180)/$K$2 -> 0.2136415759 | M6: =-1/4*($I$2/$J$2)^3*COS(4*I6*PI()/180)/$K$2 -> -0.003871475127 | N6: =1/14*($I$2/$J$2)^5*COS(6*I6*PI()/180)/$K$2 -> 7.744075503e-05 | P6: =(J6-K6) -> 0.2098475416 | Q6: =(J6-K6-L6) -> -0.003794034372
I7: 10 | J7: =(SUM(K7:N7)) -> 0.9758785354 | K7: =COS(I7*PI()/180)/$K$2 -> 0.7751354614 | L7: =$I$2/$J$2*COS(2*I7*PI()/180)/$K$2 -> 0.2038544191 | M7: =-1/4*($I$2/$J$2)^3*COS(4*I7*PI()/180)/$K$2 -> -0.00315605544 | N7: =1/14*($I$2/$J$2)^5*COS(6*I7*PI()/180)/$K$2 -> 4.471044076e-05 | P7: =(J7-K7) -> 0.2007430741 | Q7: =(J7-K7-L7) -> -0.003111344999
I8: 15 | J8: =(SUM(K8:N8)) -> 0.9460869057 | K8: =COS(I8*PI()/180)/$K$2 -> 0.7602736257 | L8: =$I$2/$J$2*COS(2*I8*PI()/180)/$K$2 -> 0.1878732489 | M8: =-1/4*($I$2/$J$2)^3*COS(4*I8*PI()/180)/$K$2 -> -0.002059968888 | N8: =1/14*($I$2/$J$2)^5*COS(6*I8*PI()/180)/$K$2 -> 5.475449817e-21 | P8: =(J8-K8) -> 0.18581328 | Q8: =(J8-K8-L8) -> -0.002059968888
I9: 20 | J9: =(SUM(K9:N9)) -> 0.9050491636 | K9: =COS(I9*PI()/180)/$K$2 -> 0.7396256487 | L9: =$I$2/$J$2*COS(2*I9*PI()/180)/$K$2 -> 0.166183645 | M9: =-1/4*($I$2/$J$2)^3*COS(4*I9*PI()/180)/$K$2 -> -0.000715419687 | N9: =1/14*($I$2/$J$2)^5*COS(6*I9*PI()/180)/$K$2 -> -4.471044076e-05 | P9: =(J9-K9) -> 0.1654235149 | Q9: =(J9-K9-L9) -> -0.0007601301277
I10: 25 | J10: =(SUM(K10:N10)) -> 0.8534312881 | K10: =COS(I10*PI()/180)/$K$2 -> 0.7133486739 | L10: =$I$2/$J$2*COS(2*I10*PI()/180)/$K$2 -> 0.1394446353 | M10: =-1/4*($I$2/$J$2)^3*COS(4*I10*PI()/180)/$K$2 -> 0.000715419687 | N10: =1/14*($I$2/$J$2)^5*COS(6*I10*PI()/180)/$K$2 -> -7.744075503e-05 | P10: =(J10-K10) -> 0.1400826142 | Q10: =(J10-K10-L10) -> 0.0006379789319
I11: 30 | J11: =(SUM(K11:N11)) -> 0.7920819038 | K11: =COS(I11*PI()/180)/$K$2 -> 0.681642685 | L11: =$I$2/$J$2*COS(2*I11*PI()/180)/$K$2 -> 0.1084686708 | M11: =-1/4*($I$2/$J$2)^3*COS(4*I11*PI()/180)/$K$2 -> 0.002059968888 | N11: =1/14*($I$2/$J$2)^5*COS(6*I11*PI()/180)/$K$2 -> -8.942088153e-05 | P11: =(J11-K11) -> 0.1104392188 | Q11: =(J11-K11-L11) -> 0.001970548007
I12: 35 | J12: =(SUM(K12:N12)) -> 0.7220245389 | K12: =COS(I12*PI()/180)/$K$2 -> 0.6447489836 | L12: =$I$2/$J$2*COS(2*I12*PI()/180)/$K$2 -> 0.07419694067 | M12: =-1/4*($I$2/$J$2)^3*COS(4*I12*PI()/180)/$K$2 -> 0.00315605544 | N12: =1/14*($I$2/$J$2)^5*COS(6*I12*PI()/180)/$K$2 -> -7.744075503e-05 | P12: =(J12-K12) -> 0.07727555535 | Q12: =(J12-K12-L12) -> 0.003078614685
I13: 40 | J13: =(SUM(K13:N13)) -> 0.6444458919 | K13: =COS(I13*PI()/180)/$K$2 -> 0.6029483532 | L13: =$I$2/$J$2*COS(2*I13*PI()/180)/$K$2 -> 0.03767077404 | M13: =-1/4*($I$2/$J$2)^3*COS(4*I13*PI()/180)/$K$2 -> 0.003871475127 | N13: =1/14*($I$2/$J$2)^5*COS(6*I13*PI()/180)/$K$2 -> -4.471044076e-05 | P13: =(J13-K13) -> 0.04149753872 | Q13: =(J13-K13-L13) -> 0.003826764686
I14: 45 | J14: =(SUM(K14:N14)) -> 0.5606788595 | K14: =COS(I14*PI()/180)/$K$2 -> 0.5565589217 | L14: =$I$2/$J$2*COS(2*I14*PI()/180)/$K$2 -> 1.328358105e-17 | M14: =-1/4*($I$2/$J$2)^3*COS(4*I14*PI()/180)/$K$2 -> 0.004119937776 | N14: =1/14*($I$2/$J$2)^5*COS(6*I14*PI()/180)/$K$2 -> -1.642634945e-20 | P14: =(J14-K14) -> 0.004119937776 | Q14: =(J14-K14-L14) -> 0.004119937776
I15: 50 | J15: =(SUM(K15:N15)) -> 0.4721791523 | K15: =COS(I15*PI()/180)/$K$2 -> 0.5059337407 | L15: =$I$2/$J$2*COS(2*I15*PI()/180)/$K$2 -> -0.03767077404 | M15: =-1/4*($I$2/$J$2)^3*COS(4*I15*PI()/180)/$K$2 -> 0.003871475127 | N15: =1/14*($I$2/$J$2)^5*COS(6*I15*PI()/180)/$K$2 -> 4.471044076e-05 | P15: =(J15-K15) -> -0.03375458847 | Q15: =(J15-K15-L15) -> 0.003916185567
I16: 55 | J16: =(SUM(K16:N16)) -> 0.3804946541 | K16: =COS(I16*PI()/180)/$K$2 -> 0.4514580986 | L16: =$I$2/$J$2*COS(2*I16*PI()/180)/$K$2 -> -0.07419694067 | M16: =-1/4*($I$2/$J$2)^3*COS(4*I16*PI()/180)/$K$2 -> 0.00315605544 | N16: =1/14*($I$2/$J$2)^5*COS(6*I16*PI()/180)/$K$2 -> 7.744075503e-05 | P16: =(J16-K16) -> -0.07096344447 | Q16: =(J16-K16-L16) -> 0.003233496195
I17: 60 | J17: =(SUM(K17:N17)) -> 0.2872273066 | K17: =COS(I17*PI()/180)/$K$2 -> 0.3935465876 | L17: =$I$2/$J$2*COS(2*I17*PI()/180)/$K$2 -> -0.1084686708 | M17: =-1/4*($I$2/$J$2)^3*COS(4*I17*PI()/180)/$K$2 -> 0.002059968888 | N17: =1/14*($I$2/$J$2)^5*COS(6*I17*PI()/180)/$K$2 -> 8.942088153e-05 | P17: =(J17-K17) -> -0.106319281 | Q17: =(J17-K17-L17) -> 0.00214938977
I18: 65 | J18: =(SUM(K18:N18)) -> 0.1939881748 | K18: =COS(I18*PI()/180)/$K$2 -> 0.3326399496 | L18: =$I$2/$J$2*COS(2*I18*PI()/180)/$K$2 -> -0.1394446353 | M18: =-1/4*($I$2/$J$2)^3*COS(4*I18*PI()/180)/$K$2 -> 0.000715419687 | N18: =1/14*($I$2/$J$2)^5*COS(6*I18*PI()/180)/$K$2 -> 7.744075503e-05 | P18: =(J18-K18) -> -0.1386517748 | Q18: =(J18-K18-L18) -> 0.000792860442
I19: 70 | J19: =(SUM(K19:N19)) -> 0.1023473663 | K19: =COS(I19*PI()/180)/$K$2 -> 0.2692017206 | L19: =$I$2/$J$2*COS(2*I19*PI()/180)/$K$2 -> -0.166183645 | M19: =-1/4*($I$2/$J$2)^3*COS(4*I19*PI()/180)/$K$2 -> -0.000715419687 | N19: =1/14*($I$2/$J$2)^5*COS(6*I19*PI()/180)/$K$2 -> 4.471044076e-05 | P19: =(J19-K19) -> -0.1668543543 | Q19: =(J19-K19-L19) -> -0.0006707092462
I20: 75 | J20: =(SUM(K20:N20)) -> 0.01378148629 | K20: =COS(I20*PI()/180)/$K$2 -> 0.203714704 | L20: =$I$2/$J$2*COS(2*I20*PI()/180)/$K$2 -> -0.1878732489 | M20: =-1/4*($I$2/$J$2)^3*COS(4*I20*PI()/180)/$K$2 -> -0.002059968888 | N20: =1/14*($I$2/$J$2)^5*COS(6*I20*PI()/180)/$K$2 -> 2.737724908e-20 | P20: =(J20-K20) -> -0.1899332177 | Q20: =(J20-K20-L20) -> -0.002059968888
I21: 80 | J21: =(SUM(K21:N21)) -> -0.07037788941 | K21: =COS(I21*PI()/180)/$K$2 -> 0.1366772955 | L21: =$I$2/$J$2*COS(2*I21*PI()/180)/$K$2 -> -0.2038544191 | M21: =-1/4*($I$2/$J$2)^3*COS(4*I21*PI()/180)/$K$2 -> -0.00315605544 | N21: =1/14*($I$2/$J$2)^5*COS(6*I21*PI()/180)/$K$2 -> -4.471044076e-05 | P21: =(J21-K21) -> -0.207055185 | Q21: =(J21-K21-L21) -> -0.00320076588
I22: 85 | J22: =(SUM(K22:N22)) -> -0.1489908015 | K22: =COS(I22*PI()/180)/$K$2 -> 0.0685996903 | L22: =$I$2/$J$2*COS(2*I22*PI()/180)/$K$2 -> -0.2136415759 | M22: =-1/4*($I$2/$J$2)^3*COS(4*I22*PI()/180)/$K$2 -> -0.003871475127 | N22: =1/14*($I$2/$J$2)^5*COS(6*I22*PI()/180)/$K$2 -> -7.744075503e-05 | P22: =(J22-K22) -> -0.2175904918 | Q22: =(J22-K22-L22) -> -0.003948915882
I23: 90 | J23: =(SUM(K23:N23)) -> -0.2211467003 | K23: =COS(I23*PI()/180)/$K$2 -> 4.819555689e-17 | L23: =$I$2/$J$2*COS(2*I23*PI()/180)/$K$2 -> -0.2169373416 | M23: =-1/4*($I$2/$J$2)^3*COS(4*I23*PI()/180)/$K$2 -> -0.004119937776 | N23: =1/14*($I$2/$J$2)^5*COS(6*I23*PI()/180)/$K$2 -> -8.942088153e-05 | P23: =(J23-K23) -> -0.2211467003 | Q23: =(J23-K23-L23) -> -0.004209358658
I24: 95 | J24: =(SUM(K24:N24)) -> -0.2861901821 | K24: =COS(I24*PI()/180)/$K$2 -> -0.0685996903 | L24: =$I$2/$J$2*COS(2*I24*PI()/180)/$K$2 -> -0.2136415759 | M24: =-1/4*($I$2/$J$2)^3*COS(4*I24*PI()/180)/$K$2 -> -0.003871475127 | N24: =1/14*($I$2/$J$2)^5*COS(6*I24*PI()/180)/$K$2 -> -7.744075503e-05 | P24: =(J24-K24) -> -0.2175904918 | Q24: =(J24-K24-L24) -> -0.003948915882
I25: 100 | J25: =(SUM(K25:N25)) -> -0.3437324805 | K25: =COS(I25*PI()/180)/$K$2 -> -0.1366772955 | L25: =$I$2/$J$2*COS(2*I25*PI()/180)/$K$2 -> -0.2038544191 | M25: =-1/4*($I$2/$J$2)^3*COS(4*I25*PI()/180)/$K$2 -> -0.00315605544 | N25: =1/14*($I$2/$J$2)^5*COS(6*I25*PI()/180)/$K$2 -> -4.471044076e-05 | P25: =(J25-K25) -> -0.207055185 | Q25: =(J25-K25-L25) -> -0.00320076588
I26: 105 | J26: =(SUM(K26:N26)) -> -0.3936479218 | K26: =COS(I26*PI()/180)/$K$2 -> -0.203714704 | L26: =$I$2/$J$2*COS(2*I26*PI()/180)/$K$2 -> -0.1878732489 | M26: =-1/4*($I$2/$J$2)^3*COS(4*I26*PI()/180)/$K$2 -> -0.002059968888 | N26: =1/14*($I$2/$J$2)^5*COS(6*I26*PI()/180)/$K$2 -> -3.832814872e-20 | P26: =(J26-K26) -> -0.1899332177 | Q26: =(J26-K26-L26) -> -0.002059968888
I27: 110 | J27: =(SUM(K27:N27)) -> -0.4360560749 | K27: =COS(I27*PI()/180)/$K$2 -> -0.2692017206 | L27: =$I$2/$J$2*COS(2*I27*PI()/180)/$K$2 -> -0.166183645 | M27: =-1/4*($I$2/$J$2)^3*COS(4*I27*PI()/180)/$K$2 -> -0.000715419687 | N27: =1/14*($I$2/$J$2)^5*COS(6*I27*PI()/180)/$K$2 -> 4.471044076e-05 | P27: =(J27-K27) -> -0.1668543543 | Q27: =(J27-K27-L27) -> -0.0006707092462
I28: 115 | J28: =(SUM(K28:N28)) -> -0.4712917244 | K28: =COS(I28*PI()/180)/$K$2 -> -0.3326399496 | L28: =$I$2/$J$2*COS(2*I28*PI()/180)/$K$2 -> -0.1394446353 | M28: =-1/4*($I$2/$J$2)^3*COS(4*I28*PI()/180)/$K$2 -> 0.000715419687 | N28: =1/14*($I$2/$J$2)^5*COS(6*I28*PI()/180)/$K$2 -> 7.744075503e-05 | P28: =(J28-K28) -> -0.1386517748 | Q28: =(J28-K28-L28) -> 0.000792860442
I29: 120 | J29: =(SUM(K29:N29)) -> -0.4998658687 | K29: =COS(I29*PI()/180)/$K$2 -> -0.3935465876 | L29: =$I$2/$J$2*COS(2*I29*PI()/180)/$K$2 -> -0.1084686708 | M29: =-1/4*($I$2/$J$2)^3*COS(4*I29*PI()/180)/$K$2 -> 0.002059968888 | N29: =1/14*($I$2/$J$2)^5*COS(6*I29*PI()/180)/$K$2 -> 8.942088153e-05 | P29: =(J29-K29) -> -0.106319281 | Q29: =(J29-K29-L29) -> 0.00214938977
I30: 125 | J30: =(SUM(K30:N30)) -> -0.522421543 | K30: =COS(I30*PI()/180)/$K$2 -> -0.4514580986 | L30: =$I$2/$J$2*COS(2*I30*PI()/180)/$K$2 -> -0.07419694067 | M30: =-1/4*($I$2/$J$2)^3*COS(4*I30*PI()/180)/$K$2 -> 0.00315605544 | N30: =1/14*($I$2/$J$2)^5*COS(6*I30*PI()/180)/$K$2 -> 7.744075503e-05 | P30: =(J30-K30) -> -0.07096344447 | Q30: =(J30-K30-L30) -> 0.003233496195
I31: 130 | J31: =(SUM(K31:N31)) -> -0.5396883292 | K31: =COS(I31*PI()/180)/$K$2 -> -0.5059337407 | L31: =$I$2/$J$2*COS(2*I31*PI()/180)/$K$2 -> -0.03767077404 | M31: =-1/4*($I$2/$J$2)^3*COS(4*I31*PI()/180)/$K$2 -> 0.003871475127 | N31: =1/14*($I$2/$J$2)^5*COS(6*I31*PI()/180)/$K$2 -> 4.471044076e-05 | P31: =(J31-K31) -> -0.03375458847 | Q31: =(J31-K31-L31) -> 0.003916185567
I32: 135 | J32: =(SUM(K32:N32)) -> -0.5524389839 | K32: =COS(I32*PI()/180)/$K$2 -> -0.5565589217 | L32: =$I$2/$J$2*COS(2*I32*PI()/180)/$K$2 -> -3.985074315e-17 | M32: =-1/4*($I$2/$J$2)^3*COS(4*I32*PI()/180)/$K$2 -> 0.004119937776 | N32: =1/14*($I$2/$J$2)^5*COS(6*I32*PI()/180)/$K$2 -> 2.081224428e-19 | P32: =(J32-K32) -> 0.004119937776 | Q32: =(J32-K32-L32) -> 0.004119937776
I33: 140 | J33: =(SUM(K33:N33)) -> -0.5614508144 | K33: =COS(I33*PI()/180)/$K$2 -> -0.6029483532 | L33: =$I$2/$J$2*COS(2*I33*PI()/180)/$K$2 -> 0.03767077404 | M33: =-1/4*($I$2/$J$2)^3*COS(4*I33*PI()/180)/$K$2 -> 0.003871475127 | N33: =1/14*($I$2/$J$2)^5*COS(6*I33*PI()/180)/$K$2 -> -4.471044076e-05 | P33: =(J33-K33) -> 0.04149753872 | Q33: =(J33-K33-L33) -> 0.003826764686
I34: 145 | J34: =(SUM(K34:N34)) -> -0.5674734282 | K34: =COS(I34*PI()/180)/$K$2 -> -0.6447489836 | L34: =$I$2/$J$2*COS(2*I34*PI()/180)/$K$2 -> 0.07419694067 | M34: =-1/4*($I$2/$J$2)^3*COS(4*I34*PI()/180)/$K$2 -> 0.00315605544 | N34: =1/14*($I$2/$J$2)^5*COS(6*I34*PI()/180)/$K$2 -> -7.744075503e-05 | P34: =(J34-K34) -> 0.07727555535 | Q34: =(J34-K34-L34) -> 0.003078614685
I35: 150 | J35: =(SUM(K35:N35)) -> -0.5712034661 | K35: =COS(I35*PI()/180)/$K$2 -> -0.681642685 | L35: =$I$2/$J$2*COS(2*I35*PI()/180)/$K$2 -> 0.1084686708 | M35: =-1/4*($I$2/$J$2)^3*COS(4*I35*PI()/180)/$K$2 -> 0.002059968888 | N35: =1/14*($I$2/$J$2)^5*COS(6*I35*PI()/180)/$K$2 -> -8.942088153e-05 | P35: =(J35-K35) -> 0.1104392188 | Q35: =(J35-K35-L35) -> 0.001970548007
I36: 155 | J36: =(SUM(K36:N36)) -> -0.5732660597 | K36: =COS(I36*PI()/180)/$K$2 -> -0.7133486739 | L36: =$I$2/$J$2*COS(2*I36*PI()/180)/$K$2 -> 0.1394446353 | M36: =-1/4*($I$2/$J$2)^3*COS(4*I36*PI()/180)/$K$2 -> 0.000715419687 | N36: =1/14*($I$2/$J$2)^5*COS(6*I36*PI()/180)/$K$2 -> -7.744075503e-05 | P36: =(J36-K36) -> 0.1400826142 | Q36: =(J36-K36-L36) -> 0.0006379789319
I37: 160 | J37: =(SUM(K37:N37)) -> -0.5742021338 | K37: =COS(I37*PI()/180)/$K$2 -> -0.7396256487 | L37: =$I$2/$J$2*COS(2*I37*PI()/180)/$K$2 -> 0.166183645 | M37: =-1/4*($I$2/$J$2)^3*COS(4*I37*PI()/180)/$K$2 -> -0.000715419687 | N37: =1/14*($I$2/$J$2)^5*COS(6*I37*PI()/180)/$K$2 -> -4.471044076e-05 | P37: =(J37-K37) -> 0.1654235149 | Q37: =(J37-K37-L37) -> -0.0007601301277
I38: 165 | J38: =(SUM(K38:N38)) -> -0.5744603457 | K38: =COS(I38*PI()/180)/$K$2 -> -0.7602736257 | L38: =$I$2/$J$2*COS(2*I38*PI()/180)/$K$2 -> 0.1878732489 | M38: =-1/4*($I$2/$J$2)^3*COS(4*I38*PI()/180)/$K$2 -> -0.002059968888 | N38: =1/14*($I$2/$J$2)^5*COS(6*I38*PI()/180)/$K$2 -> 9.86134465e-20 | P38: =(J38-K38) -> 0.18581328 | Q38: =(J38-K38-L38) -> -0.002059968888
I39: 170 | J39: =(SUM(K39:N39)) -> -0.5743923873 | K39: =COS(I39*PI()/180)/$K$2 -> -0.7751354614 | L39: =$I$2/$J$2*COS(2*I39*PI()/180)/$K$2 -> 0.2038544191 | M39: =-1/4*($I$2/$J$2)^3*COS(4*I39*PI()/180)/$K$2 -> -0.00315605544 | N39: =1/14*($I$2/$J$2)^5*COS(6*I39*PI()/180)/$K$2 -> 4.471044076e-05 | P39: =(J39-K39) -> 0.2007430741 | Q39: =(J39-K39-L39) -> -0.003111344999
I40: 175 | J40: =(SUM(K40:N40)) -> -0.5742505066 | K40: =COS(I40*PI()/180)/$K$2 -> -0.7840980481 | L40: =$I$2/$J$2*COS(2*I40*PI()/180)/$K$2 -> 0.2136415759 | M40: =-1/4*($I$2/$J$2)^3*COS(4*I40*PI()/180)/$K$2 -> -0.003871475127 | N40: =1/14*($I$2/$J$2)^5*COS(6*I40*PI()/180)/$K$2 -> 7.744075503e-05 | P40: =(J40-K40) -> 0.2098475416 | Q40: =(J40-K40-L40) -> -0.003794034372
I41: 180 | J41: =(SUM(K41:N41)) -> -0.5741863506 | K41: =COS(I41*PI()/180)/$K$2 -> -0.7870931753 | L41: =$I$2/$J$2*COS(2*I41*PI()/180)/$K$2 -> 0.2169373416 | M41: =-1/4*($I$2/$J$2)^3*COS(4*I41*PI()/180)/$K$2 -> -0.004119937776 | N41: =1/14*($I$2/$J$2)^5*COS(6*I41*PI()/180)/$K$2 -> 8.942088153e-05 | P41: =(J41-K41) -> 0.2129068247 | Q41: =(J41-K41-L41) -> -0.004030516895
I42: 185 | J42: =(SUM(K42:N42)) -> -0.5742505066 | K42: =COS(I42*PI()/180)/$K$2 -> -0.7840980481 | L42: =$I$2/$J$2*COS(2*I42*PI()/180)/$K$2 -> 0.2136415759 | M42: =-1/4*($I$2/$J$2)^3*COS(4*I42*PI()/180)/$K$2 -> -0.003871475127 | N42: =1/14*($I$2/$J$2)^5*COS(6*I42*PI()/180)/$K$2 -> 7.744075503e-05 | P42: =(J42-K42) -> 0.2098475416 | Q42: =(J42-K42-L42) -> -0.003794034372
I43: 190 | J43: =(SUM(K43:N43)) -> -0.5743923873 | K43: =COS(I43*PI()/180)/$K$2 -> -0.7751354614 | L43: =$I$2/$J$2*COS(2*I43*PI()/180)/$K$2 -> 0.2038544191 | M43: =-1/4*($I$2/$J$2)^3*COS(4*I43*PI()/180)/$K$2 -> -0.00315605544 | N43: =1/14*($I$2/$J$2)^5*COS(6*I43*PI()/180)/$K$2 -> 4.471044076e-05 | P43: =(J43-K43) -> 0.2007430741 | Q43: =(J43-K43-L43) -> -0.003111344999
I44: 195 | J44: =(SUM(K44:N44)) -> -0.5744603457 | K44: =COS(I44*PI()/180)/$K$2 -> -0.7602736257 | L44: =$I$2/$J$2*COS(2*I44*PI()/180)/$K$2 -> 0.1878732489 | M44: =-1/4*($I$2/$J$2)^3*COS(4*I44*PI()/180)/$K$2 -> -0.002059968888 | N44: =1/14*($I$2/$J$2)^5*COS(6*I44*PI()/180)/$K$2 -> -8.766254686e-20 | P44: =(J44-K44) -> 0.18581328 | Q44: =(J44-K44-L44) -> -0.002059968888
I45: 200 | J45: =(SUM(K45:N45)) -> -0.5742021338 | K45: =COS(I45*PI()/180)/$K$2 -> -0.7396256487 | L45: =$I$2/$J$2*COS(2*I45*PI()/180)/$K$2 -> 0.166183645 | M45: =-1/4*($I$2/$J$2)^3*COS(4*I45*PI()/180)/$K$2 -> -0.000715419687 | N45: =1/14*($I$2/$J$2)^5*COS(6*I45*PI()/180)/$K$2 -> -4.471044076e-05 | P45: =(J45-K45) -> 0.1654235149 | Q45: =(J45-K45-L45) -> -0.0007601301277
I46: 205 | J46: =(SUM(K46:N46)) -> -0.5732660597 | K46: =COS(I46*PI()/180)/$K$2 -> -0.7133486739 | L46: =$I$2/$J$2*COS(2*I46*PI()/180)/$K$2 -> 0.1394446353 | M46: =-1/4*($I$2/$J$2)^3*COS(4*I46*PI()/180)/$K$2 -> 0.000715419687 | N46: =1/14*($I$2/$J$2)^5*COS(6*I46*PI()/180)/$K$2 -> -7.744075503e-05 | P46: =(J46-K46) -> 0.1400826142 | Q46: =(J46-K46-L46) -> 0.0006379789319
I47: 210 | J47: =(SUM(K47:N47)) -> -0.5712034661 | K47: =COS(I47*PI()/180)/$K$2 -> -0.681642685 | L47: =$I$2/$J$2*COS(2*I47*PI()/180)/$K$2 -> 0.1084686708 | M47: =-1/4*($I$2/$J$2)^3*COS(4*I47*PI()/180)/$K$2 -> 0.002059968888 | N47: =1/14*($I$2/$J$2)^5*COS(6*I47*PI()/180)/$K$2 -> -8.942088153e-05 | P47: =(J47-K47) -> 0.1104392188 | Q47: =(J47-K47-L47) -> 0.001970548007
I48: 215 | J48: =(SUM(K48:N48)) -> -0.5674734282 | K48: =COS(I48*PI()/180)/$K$2 -> -0.6447489836 | L48: =$I$2/$J$2*COS(2*I48*PI()/180)/$K$2 -> 0.07419694067 | M48: =-1/4*($I$2/$J$2)^3*COS(4*I48*PI()/180)/$K$2 -> 0.00315605544 | N48: =1/14*($I$2/$J$2)^5*COS(6*I48*PI()/180)/$K$2 -> -7.744075503e-05 | P48: =(J48-K48) -> 0.07727555535 | Q48: =(J48-K48-L48) -> 0.003078614685
I49: 220 | J49: =(SUM(K49:N49)) -> -0.5614508144 | K49: =COS(I49*PI()/180)/$K$2 -> -0.6029483532 | L49: =$I$2/$J$2*COS(2*I49*PI()/180)/$K$2 -> 0.03767077404 | M49: =-1/4*($I$2/$J$2)^3*COS(4*I49*PI()/180)/$K$2 -> 0.003871475127 | N49: =1/14*($I$2/$J$2)^5*COS(6*I49*PI()/180)/$K$2 -> -4.471044076e-05 | P49: =(J49-K49) -> 0.04149753872 | Q49: =(J49-K49-L49) -> 0.003826764686
I50: 225 | J50: =(SUM(K50:N50)) -> -0.5524389839 | K50: =COS(I50*PI()/180)/$K$2 -> -0.5565589217 | L50: =$I$2/$J$2*COS(2*I50*PI()/180)/$K$2 -> 6.641790525e-17 | M50: =-1/4*($I$2/$J$2)^3*COS(4*I50*PI()/180)/$K$2 -> 0.004119937776 | N50: =1/14*($I$2/$J$2)^5*COS(6*I50*PI()/180)/$K$2 -> 7.671164723e-20 | P50: =(J50-K50) -> 0.004119937776 | Q50: =(J50-K50-L50) -> 0.004119937776
I51: 230 | J51: =(SUM(K51:N51)) -> -0.5396883292 | K51: =COS(I51*PI()/180)/$K$2 -> -0.5059337407 | L51: =$I$2/$J$2*COS(2*I51*PI()/180)/$K$2 -> -0.03767077404 | M51: =-1/4*($I$2/$J$2)^3*COS(4*I51*PI()/180)/$K$2 -> 0.003871475127 | N51: =1/14*($I$2/$J$2)^5*COS(6*I51*PI()/180)/$K$2 -> 4.471044076e-05 | P51: =(J51-K51) -> -0.03375458847 | Q51: =(J51-K51-L51) -> 0.003916185567
I52: 235 | J52: =(SUM(K52:N52)) -> -0.522421543 | K52: =COS(I52*PI()/180)/$K$2 -> -0.4514580986 | L52: =$I$2/$J$2*COS(2*I52*PI()/180)/$K$2 -> -0.07419694067 | M52: =-1/4*($I$2/$J$2)^3*COS(4*I52*PI()/180)/$K$2 -> 0.00315605544 | N52: =1/14*($I$2/$J$2)^5*COS(6*I52*PI()/180)/$K$2 -> 7.744075503e-05 | P52: =(J52-K52) -> -0.07096344447 | Q52: =(J52-K52-L52) -> 0.003233496195
I53: 240 | J53: =(SUM(K53:N53)) -> -0.4998658687 | K53: =COS(I53*PI()/180)/$K$2 -> -0.3935465876 | L53: =$I$2/$J$2*COS(2*I53*PI()/180)/$K$2 -> -0.1084686708 | M53: =-1/4*($I$2/$J$2)^3*COS(4*I53*PI()/180)/$K$2 -> 0.002059968888 | N53: =1/14*($I$2/$J$2)^5*COS(6*I53*PI()/180)/$K$2 -> 8.942088153e-05 | P53: =(J53-K53) -> -0.106319281 | Q53: =(J53-K53-L53) -> 0.00214938977
I54: 245 | J54: =(SUM(K54:N54)) -> -0.4712917244 | K54: =COS(I54*PI()/180)/$K$2 -> -0.3326399496 | L54: =$I$2/$J$2*COS(2*I54*PI()/180)/$K$2 -> -0.1394446353 | M54: =-1/4*($I$2/$J$2)^3*COS(4*I54*PI()/180)/$K$2 -> 0.000715419687 | N54: =1/14*($I$2/$J$2)^5*COS(6*I54*PI()/180)/$K$2 -> 7.744075503e-05 | P54: =(J54-K54) -> -0.1386517748 | Q54: =(J54-K54-L54) -> 0.000792860442
I55: 250 | J55: =(SUM(K55:N55)) -> -0.4360560749 | K55: =COS(I55*PI()/180)/$K$2 -> -0.2692017206 | L55: =$I$2/$J$2*COS(2*I55*PI()/180)/$K$2 -> -0.166183645 | M55: =-1/4*($I$2/$J$2)^3*COS(4*I55*PI()/180)/$K$2 -> -0.000715419687 | N55: =1/14*($I$2/$J$2)^5*COS(6*I55*PI()/180)/$K$2 -> 4.471044076e-05 | P55: =(J55-K55) -> -0.1668543543 | Q55: =(J55-K55-L55) -> -0.0006707092462
I56: 255 | J56: =(SUM(K56:N56)) -> -0.3936479218 | K56: =COS(I56*PI()/180)/$K$2 -> -0.203714704 | L56: =$I$2/$J$2*COS(2*I56*PI()/180)/$K$2 -> -0.1878732489 | M56: =-1/4*($I$2/$J$2)^3*COS(4*I56*PI()/180)/$K$2 -> -0.002059968888 | N56: =1/14*($I$2/$J$2)^5*COS(6*I56*PI()/180)/$K$2 -> 2.519260414e-19 | P56: =(J56-K56) -> -0.1899332177 | Q56: =(J56-K56-L56) -> -0.002059968888
I57: 260 | J57: =(SUM(K57:N57)) -> -0.3437324805 | K57: =COS(I57*PI()/180)/$K$2 -> -0.1366772955 | L57: =$I$2/$J$2*COS(2*I57*PI()/180)/$K$2 -> -0.2038544191 | M57: =-1/4*($I$2/$J$2)^3*COS(4*I57*PI()/180)/$K$2 -> -0.00315605544 | N57: =1/14*($I$2/$J$2)^5*COS(6*I57*PI()/180)/$K$2 -> -4.471044076e-05 | P57: =(J57-K57) -> -0.207055185 | Q57: =(J57-K57-L57) -> -0.00320076588
I58: 265 | J58: =(SUM(K58:N58)) -> -0.2861901821 | K58: =COS(I58*PI()/180)/$K$2 -> -0.0685996903 | L58: =$I$2/$J$2*COS(2*I58*PI()/180)/$K$2 -> -0.2136415759 | M58: =-1/4*($I$2/$J$2)^3*COS(4*I58*PI()/180)/$K$2 -> -0.003871475127 | N58: =1/14*($I$2/$J$2)^5*COS(6*I58*PI()/180)/$K$2 -> -7.744075503e-05 | P58: =(J58-K58) -> -0.2175904918 | Q58: =(J58-K58-L58) -> -0.003948915882
I59: 270 | J59: =(SUM(K59:N59)) -> -0.2211467003 | K59: =COS(I59*PI()/180)/$K$2 -> -1.445866707e-16 | L59: =$I$2/$J$2*COS(2*I59*PI()/180)/$K$2 -> -0.2169373416 | M59: =-1/4*($I$2/$J$2)^3*COS(4*I59*PI()/180)/$K$2 -> -0.004119937776 | N59: =1/14*($I$2/$J$2)^5*COS(6*I59*PI()/180)/$K$2 -> -8.942088153e-05 | P59: =(J59-K59) -> -0.2211467003 | Q59: =(J59-K59-L59) -> -0.004209358658
I60: 275 | J60: =(SUM(K60:N60)) -> -0.1489908015 | K60: =COS(I60*PI()/180)/$K$2 -> 0.0685996903 | L60: =$I$2/$J$2*COS(2*I60*PI()/180)/$K$2 -> -0.2136415759 | M60: =-1/4*($I$2/$J$2)^3*COS(4*I60*PI()/180)/$K$2 -> -0.003871475127 | N60: =1/14*($I$2/$J$2)^5*COS(6*I60*PI()/180)/$K$2 -> -7.744075503e-05 | P60: =(J60-K60) -> -0.2175904918 | Q60: =(J60-K60-L60) -> -0.003948915882
I61: 280 | J61: =(SUM(K61:N61)) -> -0.07037788941 | K61: =COS(I61*PI()/180)/$K$2 -> 0.1366772955 | L61: =$I$2/$J$2*COS(2*I61*PI()/180)/$K$2 -> -0.2038544191 | M61: =-1/4*($I$2/$J$2)^3*COS(4*I61*PI()/180)/$K$2 -> -0.00315605544 | N61: =1/14*($I$2/$J$2)^5*COS(6*I61*PI()/180)/$K$2 -> -4.471044076e-05 | P61: =(J61-K61) -> -0.207055185 | Q61: =(J61-K61-L61) -> -0.00320076588
I62: 285 | J62: =(SUM(K62:N62)) -> 0.01378148629 | K62: =COS(I62*PI()/180)/$K$2 -> 0.203714704 | L62: =$I$2/$J$2*COS(2*I62*PI()/180)/$K$2 -> -0.1878732489 | M62: =-1/4*($I$2/$J$2)^3*COS(4*I62*PI()/180)/$K$2 -> -0.002059968888 | N62: =1/14*($I$2/$J$2)^5*COS(6*I62*PI()/180)/$K$2 -> 5.480984796e-20 | P62: =(J62-K62) -> -0.1899332177 | Q62: =(J62-K62-L62) -> -0.002059968888
I63: 290 | J63: =(SUM(K63:N63)) -> 0.1023473663 | K63: =COS(I63*PI()/180)/$K$2 -> 0.2692017206 | L63: =$I$2/$J$2*COS(2*I63*PI()/180)/$K$2 -> -0.166183645 | M63: =-1/4*($I$2/$J$2)^3*COS(4*I63*PI()/180)/$K$2 -> -0.000715419687 | N63: =1/14*($I$2/$J$2)^5*COS(6*I63*PI()/180)/$K$2 -> 4.471044076e-05 | P63: =(J63-K63) -> -0.1668543543 | Q63: =(J63-K63-L63) -> -0.0006707092462
I64: 295 | J64: =(SUM(K64:N64)) -> 0.1939881748 | K64: =COS(I64*PI()/180)/$K$2 -> 0.3326399496 | L64: =$I$2/$J$2*COS(2*I64*PI()/180)/$K$2 -> -0.1394446353 | M64: =-1/4*($I$2/$J$2)^3*COS(4*I64*PI()/180)/$K$2 -> 0.000715419687 | N64: =1/14*($I$2/$J$2)^5*COS(6*I64*PI()/180)/$K$2 -> 7.744075503e-05 | P64: =(J64-K64) -> -0.1386517748 | Q64: =(J64-K64-L64) -> 0.000792860442
I65: 300 | J65: =(SUM(K65:N65)) -> 0.2872273066 | K65: =COS(I65*PI()/180)/$K$2 -> 0.3935465876 | L65: =$I$2/$J$2*COS(2*I65*PI()/180)/$K$2 -> -0.1084686708 | M65: =-1/4*($I$2/$J$2)^3*COS(4*I65*PI()/180)/$K$2 -> 0.002059968888 | N65: =1/14*($I$2/$J$2)^5*COS(6*I65*PI()/180)/$K$2 -> 8.942088153e-05 | P65: =(J65-K65) -> -0.106319281 | Q65: =(J65-K65-L65) -> 0.00214938977
I66: 305 | J66: =(SUM(K66:N66)) -> 0.3804946541 | K66: =COS(I66*PI()/180)/$K$2 -> 0.4514580986 | L66: =$I$2/$J$2*COS(2*I66*PI()/180)/$K$2 -> -0.07419694067 | M66: =-1/4*($I$2/$J$2)^3*COS(4*I66*PI()/180)/$K$2 -> 0.00315605544 | N66: =1/14*($I$2/$J$2)^5*COS(6*I66*PI()/180)/$K$2 -> 7.744075503e-05 | P66: =(J66-K66) -> -0.07096344447 | Q66: =(J66-K66-L66) -> 0.003233496195
I67: 310 | J67: =(SUM(K67:N67)) -> 0.4721791523 | K67: =COS(I67*PI()/180)/$K$2 -> 0.5059337407 | L67: =$I$2/$J$2*COS(2*I67*PI()/180)/$K$2 -> -0.03767077404 | M67: =-1/4*($I$2/$J$2)^3*COS(4*I67*PI()/180)/$K$2 -> 0.003871475127 | N67: =1/14*($I$2/$J$2)^5*COS(6*I67*PI()/180)/$K$2 -> 4.471044076e-05 | P67: =(J67-K67) -> -0.03375458847 | Q67: =(J67-K67-L67) -> 0.003916185567
I68: 315 | J68: =(SUM(K68:N68)) -> 0.5606788595 | K68: =COS(I68*PI()/180)/$K$2 -> 0.5565589217 | L68: =$I$2/$J$2*COS(2*I68*PI()/180)/$K$2 -> -9.298506735e-17 | M68: =-1/4*($I$2/$J$2)^3*COS(4*I68*PI()/180)/$K$2 -> 0.004119937776 | N68: =1/14*($I$2/$J$2)^5*COS(6*I68*PI()/180)/$K$2 -> 5.915146296e-19 | P68: =(J68-K68) -> 0.004119937776 | Q68: =(J68-K68-L68) -> 0.004119937776
I69: 320 | J69: =(SUM(K69:N69)) -> 0.6444458919 | K69: =COS(I69*PI()/180)/$K$2 -> 0.6029483532 | L69: =$I$2/$J$2*COS(2*I69*PI()/180)/$K$2 -> 0.03767077404 | M69: =-1/4*($I$2/$J$2)^3*COS(4*I69*PI()/180)/$K$2 -> 0.003871475127 | N69: =1/14*($I$2/$J$2)^5*COS(6*I69*PI()/180)/$K$2 -> -4.471044076e-05 | P69: =(J69-K69) -> 0.04149753872 | Q69: =(J69-K69-L69) -> 0.003826764686
I70: 325 | J70: =(SUM(K70:N70)) -> 0.7220245389 | K70: =COS(I70*PI()/180)/$K$2 -> 0.6447489836 | L70: =$I$2/$J$2*COS(2*I70*PI()/180)/$K$2 -> 0.07419694067 | M70: =-1/4*($I$2/$J$2)^3*COS(4*I70*PI()/180)/$K$2 -> 0.00315605544 | N70: =1/14*($I$2/$J$2)^5*COS(6*I70*PI()/180)/$K$2 -> -7.744075503e-05 | P70: =(J70-K70) -> 0.07727555535 | Q70: =(J70-K70-L70) -> 0.003078614685
I71: 330 | J71: =(SUM(K71:N71)) -> 0.7920819038 | K71: =COS(I71*PI()/180)/$K$2 -> 0.681642685 | L71: =$I$2/$J$2*COS(2*I71*PI()/180)/$K$2 -> 0.1084686708 | M71: =-1/4*($I$2/$J$2)^3*COS(4*I71*PI()/180)/$K$2 -> 0.002059968888 | N71: =1/14*($I$2/$J$2)^5*COS(6*I71*PI()/180)/$K$2 -> -8.942088153e-05 | P71: =(J71-K71) -> 0.1104392188 | Q71: =(J71-K71-L71) -> 0.001970548007
I72: 335 | J72: =(SUM(K72:N72)) -> 0.8534312881 | K72: =COS(I72*PI()/180)/$K$2 -> 0.7133486739 | L72: =$I$2/$J$2*COS(2*I72*PI()/180)/$K$2 -> 0.1394446353 | M72: =-1/4*($I$2/$J$2)^3*COS(4*I72*PI()/180)/$K$2 -> 0.000715419687 | N72: =1/14*($I$2/$J$2)^5*COS(6*I72*PI()/180)/$K$2 -> -7.744075503e-05 | P72: =(J72-K72) -> 0.1400826142 | Q72: =(J72-K72-L72) -> 0.0006379789319
I73: 340 | J73: =(SUM(K73:N73)) -> 0.9050491636 | K73: =COS(I73*PI()/180)/$K$2 -> 0.7396256487 | L73: =$I$2/$J$2*COS(2*I73*PI()/180)/$K$2 -> 0.166183645 | M73: =-1/4*($I$2/$J$2)^3*COS(4*I73*PI()/180)/$K$2 -> -0.000715419687 | N73: =1/14*($I$2/$J$2)^5*COS(6*I73*PI()/180)/$K$2 -> -4.471044076e-05 | P73: =(J73-K73) -> 0.1654235149 | Q73: =(J73-K73-L73) -> -0.0007601301277
I74: 345 | J74: =(SUM(K74:N74)) -> 0.9460869057 | K74: =COS(I74*PI()/180)/$K$2 -> 0.7602736257 | L74: =$I$2/$J$2*COS(2*I74*PI()/180)/$K$2 -> 0.1878732489 | M74: =-1/4*($I$2/$J$2)^3*COS(4*I74*PI()/180)/$K$2 -> -0.002059968888 | N74: =1/14*($I$2/$J$2)^5*COS(6*I74*PI()/180)/$K$2 -> -2.847787403e-19 | P74: =(J74-K74) -> 0.18581328 | Q74: =(J74-K74-L74) -> -0.002059968888
I75: 350 | J75: =(SUM(K75:N75)) -> 0.9758785354 | K75: =COS(I75*PI()/180)/$K$2 -> 0.7751354614 | L75: =$I$2/$J$2*COS(2*I75*PI()/180)/$K$2 -> 0.2038544191 | M75: =-1/4*($I$2/$J$2)^3*COS(4*I75*PI()/180)/$K$2 -> -0.00315605544 | N75: =1/14*($I$2/$J$2)^5*COS(6*I75*PI()/180)/$K$2 -> 4.471044076e-05 | P75: =(J75-K75) -> 0.2007430741 | Q75: =(J75-K75-L75) -> -0.003111344999
I76: 355 | J76: =(SUM(K76:N76)) -> 0.9939455897 | K76: =COS(I76*PI()/180)/$K$2 -> 0.7840980481 | L76: =$I$2/$J$2*COS(2*I76*PI()/180)/$K$2 -> 0.2136415759 | M76: =-1/4*($I$2/$J$2)^3*COS(4*I76*PI()/180)/$K$2 -> -0.003871475127 | N76: =1/14*($I$2/$J$2)^5*COS(6*I76*PI()/180)/$K$2 -> 7.744075503e-05 | P76: =(J76-K76) -> 0.2098475416 | Q76: =(J76-K76-L76) -> -0.003794034372
I77: 360 | J77: =(SUM(K77:N77)) -> 1 | K77: =COS(I77*PI()/180)/$K$2 -> 0.7870931753 | L77: =$I$2/$J$2*COS(2*I77*PI()/180)/$K$2 -> 0.2169373416 | M77: =-1/4*($I$2/$J$2)^3*COS(4*I77*PI()/180)/$K$2 -> -0.004119937776 | N77: =1/14*($I$2/$J$2)^5*COS(6*I77*PI()/180)/$K$2 -> 8.942088153e-05 | P77: =(J77-K77) -> 0.2129068247 | Q77: =(J77-K77-L77) -> -0.004030516895

Sheet Einfacher Massenausgleich
H1: Prozent Ausgleich | I1: Kurbelradius: | J1: Pleuellänge:
H2: 50 | I2: 39 | J2: 141.5
H3: Fmittel/Fmax/% | I3: Apolar | J3: Fresmax/Fmax/%
H4: =U7*100 -> 40.72640579 | I4: =Y45*10000 -> 28.34246985 | J4: =100*MAX(U9:U81) -> 60.64535888
H6: Prozent Ausgleich | I6: Kurbelradius: | J6: Pleuellänge: | Q6: =(PI()^2*48.2576^2*I$2/900+SQRT(2)*PI()^2*48.2576^2*I$2^2*(4*(2*J$2^2-I$2^2)+I$2^2*(1+3))/(3600*(I$2^2+2*J$2^2-I$2^2)^(3/2)))/1000 -> 1.270498182
H7: 60 | I7: =I2 -> 39 | J7: =J2 -> 141.5 | Q7: =(PI()^2*I$2*COS(PI()*P9/180)/900+SQRT(2)*PI()^2*I$2^2*(4*(2*J$2^2-I$2^2)*COS(PI()*P9/90)+I$2^2*(COS(PI()*P9/45)+3))/(3600*(I$2^2*COS(PI()*P9/90)+2*J$2^2-I$2^2)^(3/2))) -> 0.5455601114 | S7: ="Mit "&H2&" % Ausgleich" -> Mit 50 % Ausgleich | U7: =AVERAGE(U9:U80) -> 0.4072640579 | AB7: ="Mit "&H7&" % Ausgleich" -> Mit 60 % Ausgleich | AD7: =AVERAGE(AD9:AD80) -> 0.4116076448
H8: Fmittel/Fmax/% | I8: Apolar | J8: Fresmax/Fmax/% | P8: Kurbelwinkel | Q8: Gesamtkraft | S8: Vert | T8: Hor | U8: Res | V8: Delta Res | W8: Winkel der Resultierenden zum OT | X8: Winkel der Resultierenden zum OT | Y8: =Y45*10000 -> 28.34246985 | Z8: Integral Fres | AB8: Vert | AC8: Hor | AD8: Res | AE8: Delta Res | AF8: Winkel der Resultierenden zum OT | AG8: Winkel der Resultierenden zum OT | AH8: =AH45*10000 -> 28.37313568 | AI8: Integral Fres
H9: =AD7*100 -> 41.16076448 | I9: =AH45*10000 -> 28.37313568 | J9: =100*MAX(AD9:AD81) -> 53.50529437 | L9: =H9/H4*100 -> 101.0665284 | M9: =I9/I4*100 -> 100.1081974 | N9: =J9/J4*100 -> 88.22652774 | P9: 0 | Q9: =(PI()^2*I$2*COS(PI()*P9/180)/900+SQRT(2)*PI()^2*I$2^2*(4*(2*J$2^2-I$2^2)*COS(PI()*P9/90)+I$2^2*(COS(PI()*P9/45)+3))/(3600*(I$2^2*COS(PI()*P9/90)+2*J$2^2-I$2^2)^(3/2)))/Q$7 -> 1 | S9: =Q9-COS(P9*PI()/180)*H$2/100/Q$6 -> 0.6064535888 | T9: =SIN(P9*PI()/180)*H$2/100/Q$6 -> 0 | U9: =SQRT(SUMSQ(S9,T9)) -> 0.6064535888 | V9: =(U9-U81)/U9*100 -> 0 | W9: =DEGREES(ATAN2(S9,T9)) -> 0 | X9: =IF(DEGREES(ATAN2(S9,T9))<0,360+DEGREES(ATAN2(S9,T9)),DEGREES(ATAN2(S9,T9))) -> 0 | Y9: =(S9*(T9-0)/2+S9*(T10-T9)/2)^2 -> 0.000108173051 | Z9: =U9*5 -> 3.032267944 | AB9: =Q9-COS(P9*PI()/180)*H$7/100/Q$6 -> 0.5277443065 | AC9: =SIN(P9*PI()/180)*H$7/100/Q$6 -> 0 | AD9: =SQRT(SUMSQ(AB9,AC9)) -> 0.5277443065 | AE9: =(AD9-AD81)/AD9*100 -> 0 | AF9: =DEGREES(ATAN2(AB9,AC9)) -> 0 | AG9: =IF(DEGREES(ATAN2(AB9,AC9))<0,360+DEGREES(ATAN2(AB9,AC9)),DEGREES(ATAN2(AB9,AC9))) -> 0 | AH9: =(AB9*(AC9-0)/2+AB9*(AC10-AC9)/2)^2 -> 0.0001179596686 | AI9: =AD9*5 -> 2.638721533 | AK9: 1
P10: 5 | Q10: =(PI()^2*I$2*COS(PI()*P10/180)/900+SQRT(2)*PI()^2*I$2^2*(4*(2*J$2^2-I$2^2)*COS(PI()*P10/90)+I$2^2*(COS(PI()*P10/45)+3))/(3600*(I$2^2*COS(PI()*P10/90)+2*J$2^2-I$2^2)^(3/2)))/Q$7 -> 0.9939196201 | S10: =Q10-COS(P10*PI()/180)*H$2/100/Q$6 -> 0.6018707718 | T10: =SIN(P10*PI()/180)*H$2/100/Q$6 -> 0.03429982978 | U10: =SQRT(SUMSQ(S10,T10)) -> 0.6028473308 | V10: =(U10-U9)/U10*100 -> -0.5982041919 | W10: =DEGREES(ATAN2(S10,T10)) -> 3.261683748 | X10: =IF(DEGREES(ATAN2(S10,T10))<0,360+DEGREES(ATAN2(S10,T10)),DEGREES(ATAN2(S10,T10))) -> 3.261683748 | Y10: =Y9+(S10*(T10-T9)/2+S10*(T11-T10)/2)^2 -> 0.0005311131751 | Z10: =U10*5+Z9 -> 6.046504598 | AB10: =Q10-COS(P10*PI()/180)*H$7/100/Q$6 -> 0.5234610021 | AC10: =SIN(P10*PI()/180)*H$7/100/Q$6 -> 0.04115979573 | AD10: =SQRT(SUMSQ(AB10,AC10)) -> 0.5250767082 | AE10: =(AD10-AD9)/AD10*100 -> -0.5080397368 | AF10: =DEGREES(ATAN2(AB10,AC10)) -> 4.495922985 | AG10: =IF(DEGREES(ATAN2(AB10,AC10))<0,360+DEGREES(ATAN2(AB10,AC10)),DEGREES(ATAN2(AB10,AC10))) -> 4.495922985 | AH10: =AH9+(AB10*(AC10-AC9)/2+AB10*(AC11-AC10)/2)^2 -> 0.0005786441024 | AI10: =AD10*5+AI9 -> 5.264105074 | AK10: 0.9939196201
P11: 10 | Q11: =(PI()^2*I$2*COS(PI()*P11/180)/900+SQRT(2)*PI()^2*I$2^2*(4*(2*J$2^2-I$2^2)*COS(PI()*P11/90)+I$2^2*(COS(PI()*P11/45)+3))/(3600*(I$2^2*COS(PI()*P11/90)+2*J$2^2-I$2^2)^(3/2)))/Q$7 -> 0.9757744871 | S11: =Q11-COS(P11*PI()/180)*H$2/100/Q$6 -> 0.5882069302 | T11: =SIN(P11*PI()/180)*H$2/100/Q$6 -> 0.06833861713 | U11: =SQRT(SUMSQ(S11,T11)) -> 0.5921634566 | V11: =(U11-U10)/U11*100 -> -1.804210317 | W11: =DEGREES(ATAN2(S11,T11)) -> 6.626984732 | X11: =IF(DEGREES(ATAN2(S11,T11))<0,360+DEGREES(ATAN2(S11,T11)),DEGREES(ATAN2(S11,T11))) -> 6.626984732 | Y11: =Y10+(S11*(T11-T10)/2+S11*(T12-T11)/2)^2 -> 0.0009258858837 | Z11: =U11*5+Z10 -> 9.007321881 | AB11: =Q11-COS(P11*PI()/180)*H$7/100/Q$6 -> 0.5106934188 | AC11: =SIN(P11*PI()/180)*H$7/100/Q$6 -> 0.08200634056 | AD11: =SQRT(SUMSQ(AB11,AC11)) -> 0.5172357373 | AE11: =(AD11-AD10)/AD11*100 -> -1.515937583 | AF11: =DEGREES(ATAN2(AB11,AC11)) -> 9.122587604 | AG11: =IF(DEGREES(ATAN2(AB11,AC11))<0,360+DEGREES(ATAN2(AB11,AC11)),DEGREES(ATAN2(AB11,AC11))) -> 9.122587604 | AH11: =AH10+(AB11*(AC11-AC10)/2+AB11*(AC12-AC11)/2)^2 -> 0.001007162885 | AI11: =AD11*5+AI10 -> 7.85028376 | AK11: 0.9757744871
P12: 15 | Q12: =(PI()^2*I$2*COS(PI()*P12/180)/900+SQRT(2)*PI()^2*I$2^2*(4*(2*J$2^2-I$2^2)*COS(PI()*P12/90)+I$2^2*(COS(PI()*P12/45)+3))/(3600*(I$2^2*COS(PI()*P12/90)+2*J$2^2-I$2^2)^(3/2)))/Q$7 -> 0.945852347 | S12: =Q12-COS(P12*PI()/180)*H$2/100/Q$6 -> 0.5657157046 | T12: =SIN(P12*PI()/180)*H$2/100/Q$6 -> 0.1018573064 | U12: =SQRT(SUMSQ(S12,T12)) -> 0.5748122904 | V12: =(U12-U11)/U12*100 -> -3.018579533 | W12: =DEGREES(ATAN2(S12,T12)) -> 10.20676759 | X12: =IF(DEGREES(ATAN2(S12,T12))<0,360+DEGREES(ATAN2(S12,T12)),DEGREES(ATAN2(S12,T12))) -> 10.20676759 | Y12: =Y11+(S12*(T12-T11)/2+S12*(T13-T12)/2)^2 -> 0.001277177638 | Z12: =U12*5+Z11 -> 11.88138333 | AB12: =Q12-COS(P12*PI()/180)*H$7/100/Q$6 -> 0.4896883761 | AC12: =SIN(P12*PI()/180)*H$7/100/Q$6 -> 0.1222287676 | AD12: =SQRT(SUMSQ(AB12,AC12)) -> 0.5047123709 | AE12: =(AD12-AD11)/AD12*100 -> -2.481287787 | AF12: =DEGREES(ATAN2(AB12,AC12)) -> 14.01495201 | AG12: =IF(DEGREES(ATAN2(AB12,AC12))<0,360+DEGREES(ATAN2(AB12,AC12)),DEGREES(ATAN2(AB12,AC12))) -> 14.01495201 | AH12: =AH11+(AB12*(AC12-AC11)/2+AB12*(AC13-AC12)/2)^2 -> 0.001386192869 | AI12: =AD12*5+AI11 -> 10.37384561 | AK12: 0.945852347
P13: 20 | Q13: =(PI()^2*I$2*COS(PI()*P13/180)/900+SQRT(2)*PI()^2*I$2^2*(4*(2*J$2^2-I$2^2)*COS(PI()*P13/90)+I$2^2*(COS(PI()*P13/45)+3))/(3600*(I$2^2*COS(PI()*P13/90)+2*J$2^2-I$2^2)^(3/2)))/Q$7 -> 0.9046316987 | S13: =Q13-COS(P13*PI()/180)*H$2/100/Q$6 -> 0.5348190402 | T13: =SIN(P13*PI()/180)*H$2/100/Q$6 -> 0.1346008 | U13: =SQRT(SUMSQ(S13,T13)) -> 0.551496855 | V13: =(U13-U12)/U13*100 -> -4.227664263 | W13: =DEGREES(ATAN2(S13,T13)) -> 14.12655489 | X13: =IF(DEGREES(ATAN2(S13,T13))<0,360+DEGREES(ATAN2(S13,T13)),DEGREES(ATAN2(S13,T13))) -> 14.12655489 | Y13: =Y12+(S13*(T13-T12)/2+S13*(T14-T13)/2)^2 -> 0.001574323224 | Z13: =U13*5+Z12 -> 14.63886761 | AB13: =Q13-COS(P13*PI()/180)*H$7/100/Q$6 -> 0.4608565085 | AC13: =SIN(P13*PI()/180)*H$7/100/Q$6 -> 0.16152096 | AD13: =SQRT(SUMSQ(AB13,AC13)) -> 0.4883418289 | AE13: =(AD13-AD12)/AD13*100 -> -3.352271085 | AF13: =DEGREES(ATAN2(AB13,AC13)) -> 19.31453997 | AG13: =IF(DEGREES(ATAN2(AB13,AC13))<0,360+DEGREES(ATAN2(AB13,AC13)),DEGREES(ATAN2(AB13,AC13))) -> 19.31453997 | AH13: =AH12+(AB13*(AC13-AC12)/2+AB13*(AC14-AC13)/2)^2 -> 0.001703916491 | AI13: =AD13*5+AI12 -> 12.81555476 | AK13: 0.9046316987
P14: 25 | Q14: =(PI()^2*I$2*COS(PI()*P14/180)/900+SQRT(2)*PI()^2*I$2^2*(4*(2*J$2^2-I$2^2)*COS(PI()*P14/90)+I$2^2*(COS(PI()*P14/45)+3))/(3600*(I$2^2*COS(PI()*P14/90)+2*J$2^2-I$2^2)^(3/2)))/Q$7 -> 0.8527796197 | S14: =Q14-COS(P14*PI()/180)*H$2/100/Q$6 -> 0.4961054427 | T14: =SIN(P14*PI()/180)*H$2/100/Q$6 -> 0.1663199002 | U14: =SQRT(SUMSQ(S14,T14)) -> 0.5232426965 | V14: =(U14-U13)/U14*100 -> -5.399818985 | W14: =DEGREES(ATAN2(S14,T14)) -> 18.53378431 | X14: =IF(DEGREES(ATAN2(S14,T14))<0,360+DEGREES(ATAN2(S14,T14)),DEGREES(ATAN2(S14,T14))) -> 18.53378431 | Y14: =Y13+(S14*(T14-T13)/2+S14*(T15-T14)/2)^2 -> 0.001812162369 | Z14: =U14*5+Z13 -> 17.25508109 | AB14: =Q14-COS(P14*PI()/180)*H$7/100/Q$6 -> 0.4247706073 | AC14: =SIN(P14*PI()/180)*H$7/100/Q$6 -> 0.1995838803 | AD14: =SQRT(SUMSQ(AB14,AC14)) -> 0.4693226972 | AE14: =(AD14-AD13)/AD14*100 -> -4.052463665 | AF14: =DEGREES(ATAN2(AB14,AC14)) -> 25.16708256 | AG14: =IF(DEGREES(ATAN2(AB14,AC14))<0,360+DEGREES(ATAN2(AB14,AC14)),DEGREES(ATAN2(AB14,AC14))) -> 25.16708256 | AH14: =AH13+(AB14*(AC14-AC13)/2+AB14*(AC15-AC14)/2)^2 -> 0.001954993392 | AI14: =AD14*5+AI13 -> 15.16216824 | AK14: 0.8527796197
P15: 30 | Q15: =(PI()^2*I$2*COS(PI()*P15/180)/900+SQRT(2)*PI()^2*I$2^2*(4*(2*J$2^2-I$2^2)*COS(PI()*P15/90)+I$2^2*(COS(PI()*P15/45)+3))/(3600*(I$2^2*COS(PI()*P15/90)+2*J$2^2-I$2^2)^(3/2)))/Q$7 -> 0.791147627 | S15: =Q15-COS(P15*PI()/180)*H$2/100/Q$6 -> 0.4503264373 | T15: =SIN(P15*PI()/180)*H$2/100/Q$6 -> 0.1967732056 | U15: =SQRT(SUMSQ(S15,T15)) -> 0.4914403266 | V15: =(U15-U14)/U15*100 -> -6.471257701 | W15: =DEGREES(ATAN2(S15,T15)) -> 23.60325026 | X15: =IF(DEGREES(ATAN2(S15,T15))<0,360+DEGREES(ATAN2(S15,T15)),DEGREES(ATAN2(S15,T15))) -> 23.60325026 | Y15: =Y14+(S15*(T15-T14)/2+S15*(T16-T15)/2)^2 -> 0.00199109934 | Z15: =U15*5+Z14 -> 19.71228272 | AB15: =Q15-COS(P15*PI()/180)*H$7/100/Q$6 -> 0.3821621994 | AC15: =SIN(P15*PI()/180)*H$7/100/Q$6 -> 0.2361278467 | AD15: =SQRT(SUMSQ(AB15,AC15)) -> 0.4492263423 | AE15: =(AD15-AD14)/AD15*100 -> -4.473547736 | AF15: =DEGREES(ATAN2(AB15,AC15)) -> 31.71081482 | AG15: =IF(DEGREES(ATAN2(AB15,AC15))<0,360+DEGREES(ATAN2(AB15,AC15)),DEGREES(ATAN2(AB15,AC15))) -> 31.71081482 | AH15: =AH14+(AB15*(AC15-AC14)/2+AB15*(AC16-AC15)/2)^2 -> 0.002140561415 | AI15: =AD15*5+AI14 -> 17.40829996 | AK15: 0.791147627
P16: 35 | Q16: =(PI()^2*I$2*COS(PI()*P16/180)/900+SQRT(2)*PI()^2*I$2^2*(4*(2*J$2^2-I$2^2)*COS(PI()*P16/90)+I$2^2*(COS(PI()*P16/45)+3))/(3600*(I$2^2*COS(PI()*P16/90)+2*J$2^2-I$2^2)^(3/2)))/Q$7 -> 0.7207645453 | S16: =Q16-COS(P16*PI()/180)*H$2/100/Q$6 -> 0.398390198 | T16: =SIN(P16*PI()/180)*H$2/100/Q$6 -> 0.2257289481 | U16: =SQRT(SUMSQ(S16,T16)) -> 0.4578955207 | V16: =(U16-U15)/U16*100 -> -7.325864604 | W16: =DEGREES(ATAN2(S16,T16)) -> 29.53600649 | X16: =IF(DEGREES(ATAN2(S16,T16))<0,360+DEGREES(ATAN2(S16,T16)),DEGREES(ATAN2(S16,T16))) -> 29.53600649 | Y16: =Y15+(S16*(T16-T15)/2+S16*(T17-T16)/2)^2 -> 0.002116393335 | Z16: =U16*5+Z15 -> 22.00176033 | AB16: =Q16-COS(P16*PI()/180)*H$7/100/Q$6 -> 0.3339153285 | AC16: =SIN(P16*PI()/180)*H$7/100/Q$6 -> 0.2708747377 | AD16: =SQRT(SUMSQ(AB16,AC16)) -> 0.4299681037 | AE16: =(AD16-AD15)/AD16*100 -> -4.478992391 | AF16: =DEGREES(ATAN2(AB16,AC16)) -> 39.04923583 | AG16: =IF(DEGREES(ATAN2(AB16,AC16))<0,360+DEGREES(ATAN2(AB16,AC16)),DEGREES(ATAN2(AB16,AC16))) -> 39.04923583 | AH16: =AH15+(AB16*(AC16-AC15)/2+AB16*(AC17-AC16)/2)^2 -> 0.002267311474 | AI16: =AD16*5+AI15 -> 19.55814047 | AK16: 0.7207645453
P17: 40 | Q17: =(PI()^2*I$2*COS(PI()*P17/180)/900+SQRT(2)*PI()^2*I$2^2*(4*(2*J$2^2-I$2^2)*COS(PI()*P17/90)+I$2^2*(COS(PI()*P17/45)+3))/(3600*(I$2^2*COS(PI()*P17/90)+2*J$2^2-I$2^2)^(3/2)))/Q$7 -> 0.6428251767 | S17: =Q17-COS(P17*PI()/180)*H$2/100/Q$6 -> 0.3413511353 | T17: =SIN(P17*PI()/180)*H$2/100/Q$6 -> 0.252966757 | U17: =SQRT(SUMSQ(S17,T17)) -> 0.4248679532 | V17: =(U17-U16)/U17*100 -> -7.773607587 | W17: =DEGREES(ATAN2(S17,T17)) -> 36.54121583 | X17: =IF(DEGREES(ATAN2(S17,T17))<0,360+DEGREES(ATAN2(S17,T17)),DEGREES(ATAN2(S17,T17))) -> 36.54121583 | Y17: =Y16+(S17*(T17-T16)/2+S17*(T18-T17)/2)^2 -> 0.002196837503 | Z17: =U17*5+Z16 -> 24.12610009 | AB17: =Q17-COS(P17*PI()/180)*H$7/100/Q$6 -> 0.281056327 | AC17: =SIN(P17*PI()/180)*H$7/100/Q$6 -> 0.3035601084 | AD17: =SQRT(SUMSQ(AB17,AC17)) -> 0.4136923958 | AE17: =(AD17-AD16)/AD17*100 -> -3.934253574 | AF17: =DEGREES(ATAN2(AB17,AC17)) -> 47.2044119 | AG17: =IF(DEGREES(ATAN2(AB17,AC17))<0,360+DEGREES(ATAN2(AB17,AC17)),DEGREES(ATAN2(AB17,AC17))) -> 47.2044119 | AH17: =AH16+(AB17*(AC17-AC16)/2+AB17*(AC18-AC17)/2)^2 -> 0.002345842467 | AI17: =AD17*5+AI16 -> 21.62660245 | AK17: 0.6428251767
P18: 45 | Q18: =(PI()^2*I$2*COS(PI()*P18/180)/900+SQRT(2)*PI()^2*I$2^2*(4*(2*J$2^2-I$2^2)*COS(PI()*P18/90)+I$2^2*(COS(PI()*P18/45)+3))/(3600*(I$2^2*COS(PI()*P18/90)+2*J$2^2-I$2^2)^(3/2)))/Q$7 -> 0.5586735067 | S18: =Q18-COS(P18*PI()/180)*H$2/100/Q$6 -> 0.2803941707 | T18: =SIN(P18*PI()/180)*H$2/100/Q$6 -> 0.2782793361 | U18: =SQRT(SUMSQ(S18,T18)) -> 0.3950446555 | V18: =(U18-U17)/U18*100 -> -7.549348494 | W18: =DEGREES(ATAN2(S18,T18)) -> 44.78311032 | X18: =IF(DEGREES(ATAN2(S18,T18))<0,360+DEGREES(ATAN2(S18,T18)),DEGREES(ATAN2(S18,T18))) -> 44.78311032 | Y18: =Y17+(S18*(T18-T17)/2+S18*(T19-T18)/2)^2 -> 0.00224308539 | Z18: =U18*5+Z17 -> 26.10132337 | AB18: =Q18-COS(P18*PI()/180)*H$7/100/Q$6 -> 0.2247383034 | AC18: =SIN(P18*PI()/180)*H$7/100/Q$6 -> 0.3339352033 | AD18: =SQRT(SUMSQ(AB18,AC18)) -> 0.4025171115 | AE18: =(AD18-AD17)/AD18*100 -> -2.776350119 | AF18: =DEGREES(ATAN2(AB18,AC18)) -> 56.05945675 | AG18: =IF(DEGREES(ATAN2(AB18,AC18))<0,360+DEGREES(ATAN2(AB18,AC18)),DEGREES(ATAN2(AB18,AC18))) -> 56.05945675 | AH18: =AH17+(AB18*(AC18-AC17)/2+AB18*(AC19-AC18)/2)^2 -> 0.002388625407 | AI18: =AD18*5+AI17 -> 23.63918801 | AK18: 0.5586735067
P19: 50 | Q19: =(PI()^2*I$2*COS(PI()*P19/180)/900+SQRT(2)*PI()^2*I$2^2*(4*(2*J$2^2-I$2^2)*COS(PI()*P19/90)+I$2^2*(COS(PI()*P19/45)+3))/(3600*(I$2^2*COS(PI()*P19/90)+2*J$2^2-I$2^2)^(3/2)))/Q$7 -> 0.4697792974 | S19: =Q19-COS(P19*PI()/180)*H$2/100/Q$6 -> 0.2168125404 | T19: =SIN(P19*PI()/180)*H$2/100/Q$6 -> 0.3014740414 | U19: =SQRT(SUMSQ(S19,T19)) -> 0.3713411845 | V19: =(U19-U18)/U19*100 -> -6.383205513 | W19: =DEGREES(ATAN2(S19,T19)) -> 54.27726242 | X19: =IF(DEGREES(ATAN2(S19,T19))<0,360+DEGREES(ATAN2(S19,T19)),DEGREES(ATAN2(S19,T19))) -> 54.27726242 | Y19: =Y18+(S19*(T19-T18)/2+S19*(T20-T19)/2)^2 -> 0.00226593547 | Z19: =U19*5+Z18 -> 27.95802929 | AB19: =Q19-COS(P19*PI()/180)*H$7/100/Q$6 -> 0.166219189 | AC19: =SIN(P19*PI()/180)*H$7/100/Q$6 -> 0.3617688497 | AD19: =SQRT(SUMSQ(AB19,AC19)) -> 0.3981275165 | AE19: =(AD19-AD18)/AD19*100 -> -1.102560055 | AF19: =DEGREES(ATAN2(AB19,AC19)) -> 65.32299705 | AG19: =IF(DEGREES(ATAN2(AB19,AC19))<0,360+DEGREES(ATAN2(AB19,AC19)),DEGREES(ATAN2(AB19,AC19))) -> 65.32299705 | AH19: =AH18+(AB19*(AC19-AC18)/2+AB19*(AC20-AC19)/2)^2 -> 0.00240796484 | AI19: =AD19*5+AI18 -> 25.62982559 | AK19: 0.4697792974
P20: 55 | Q20: =(PI()^2*I$2*COS(PI()*P20/180)/900+SQRT(2)*PI()^2*I$2^2*(4*(2*J$2^2-I$2^2)*COS(PI()*P20/90)+I$2^2*(COS(PI()*P20/45)+3))/(3600*(I$2^2*COS(PI()*P20/90)+2*J$2^2-I$2^2)^(3/2)))/Q$7 -> 0.3777072512 | S20: =Q20-COS(P20*PI()/180)*H$2/100/Q$6 -> 0.1519783031 | T20: =SIN(P20*PI()/180)*H$2/100/Q$6 -> 0.3223743473 | U20: =SQRT(SUMSQ(S20,T20)) -> 0.356402335 | V20: =(U20-U19)/U20*100 -> -4.191568929 | W20: =DEGREES(ATAN2(S20,T20)) -> 64.75920535 | X20: =IF(DEGREES(ATAN2(S20,T20))<0,360+DEGREES(ATAN2(S20,T20)),DEGREES(ATAN2(S20,T20))) -> 64.75920535 | Y20: =Y19+(S20*(T20-T19)/2+S20*(T21-T20)/2)^2 -> 0.002274875309 | Z20: =U20*5+Z19 -> 29.74004097 | AB20: =Q20-COS(P20*PI()/180)*H$7/100/Q$6 -> 0.1068325135 | AC20: =SIN(P20*PI()/180)*H$7/100/Q$6 -> 0.3868492167 | AD20: =SQRT(SUMSQ(AB20,AC20)) -> 0.401329668 | AE20: =(AD20-AD19)/AD20*100 -> 0.7978855619 | AF20: =DEGREES(ATAN2(AB20,AC20)) -> 74.56194471 | AG20: =IF(DEGREES(ATAN2(AB20,AC20))<0,360+DEGREES(ATAN2(AB20,AC20)),DEGREES(ATAN2(AB20,AC20))) -> 74.56194471 | AH20: =AH19+(AB20*(AC20-AC19)/2+AB20*(AC21-AC20)/2)^2 -> 0.002414325994 | AI20: =AD20*5+AI19 -> 27.63647393 | AK20: 0.3777072512
P21: 60 | Q21: =(PI()^2*I$2*COS(PI()*P21/180)/900+SQRT(2)*PI()^2*I$2^2*(4*(2*J$2^2-I$2^2)*COS(PI()*P21/90)+I$2^2*(COS(PI()*P21/45)+3))/(3600*(I$2^2*COS(PI()*P21/90)+2*J$2^2-I$2^2)^(3/2)))/Q$7 -> 0.2840785129 | S21: =Q21-COS(P21*PI()/180)*H$2/100/Q$6 -> 0.08730530731 | T21: =SIN(P21*PI()/180)*H$2/100/Q$6 -> 0.3408211897 | U21: =SQRT(SUMSQ(S21,T21)) -> 0.3518256671 | V21: =(U21-U20)/U21*100 -> -1.300834001 | W21: =DEGREES(ATAN2(S21,T21)) -> 75.63197332 | X21: =IF(DEGREES(ATAN2(S21,T21))<0,360+DEGREES(ATAN2(S21,T21)),DEGREES(ATAN2(S21,T21))) -> 75.63197332 | Y21: =Y20+(S21*(T21-T20)/2+S21*(T22-T21)/2)^2 -> 0.002277117152 | Z21: =U21*5+Z20 -> 31.4991693 | AB21: =Q21-COS(P21*PI()/180)*H$7/100/Q$6 -> 0.04795066619 | AC21: =SIN(P21*PI()/180)*H$7/100/Q$6 -> 0.4089854276 | AD21: =SQRT(SUMSQ(AB21,AC21)) -> 0.411786773 | AE21: =(AD21-AD20)/AD21*100 -> 2.539446544 | AF21: =DEGREES(ATAN2(AB21,AC21)) -> 83.31300077 | AG21: =IF(DEGREES(ATAN2(AB21,AC21))<0,360+DEGREES(ATAN2(AB21,AC21)),DEGREES(ATAN2(AB21,AC21))) -> 83.31300077 | AH21: =AH20+(AB21*(AC21-AC20)/2+AB21*(AC22-AC21)/2)^2 -> 0.002415299807 | AI21: =AD21*5+AI20 -> 29.6954078 | AK21: 0.2840785129
P22: 65 | Q22: =(PI()^2*I$2*COS(PI()*P22/180)/900+SQRT(2)*PI()^2*I$2^2*(4*(2*J$2^2-I$2^2)*COS(PI()*P22/90)+I$2^2*(COS(PI()*P22/45)+3))/(3600*(I$2^2*COS(PI()*P22/90)+2*J$2^2-I$2^2)^(3/2)))/Q$7 -> 0.190525097 | S22: =Q22-COS(P22*PI()/180)*H$2/100/Q$6 -> 0.02420519676 | T22: =SIN(P22*PI()/180)*H$2/100/Q$6 -> 0.356674177 | U22: =SQRT(SUMSQ(S22,T22)) -> 0.3574945596 | V22: =(U22-U21)/U22*100 -> 1.585728323 | W22: =DEGREES(ATAN2(S22,T22)) -> 86.11765435 | X22: =IF(DEGREES(ATAN2(S22,T22))<0,360+DEGREES(ATAN2(S22,T22)),DEGREES(ATAN2(S22,T22))) -> 86.11765435 | Y22: =Y21+(S22*(T22-T21)/2+S22*(T23-T22)/2)^2 -> 0.002277240263 | Z22: =U22*5+Z21 -> 33.2866421 | AB22: =Q22-COS(P22*PI()/180)*H$7/100/Q$6 -> -0.009058783288 | AC22: =SIN(P22*PI()/180)*H$7/100/Q$6 -> 0.4280090125 | AD22: =SQRT(SUMSQ(AB22,AC22)) -> 0.428104866 | AE22: =(AD22-AD21)/AD22*100 -> 3.811704639 | AF22: =DEGREES(ATAN2(AB22,AC22)) -> 91.21248047 | AG22: =IF(DEGREES(ATAN2(AB22,AC22))<0,360+DEGREES(ATAN2(AB22,AC22)),DEGREES(ATAN2(AB22,AC22))) -> 91.21248047 | AH22: =AH21+(AB22*(AC22-AC21)/2+AB22*(AC23-AC22)/2)^2 -> 0.002415324637 | AI22: =AD22*5+AI21 -> 31.83593213 | AK22: 0.190525097
P23: 70 | Q23: =(PI()^2*I$2*COS(PI()*P23/180)/900+SQRT(2)*PI()^2*I$2^2*(4*(2*J$2^2-I$2^2)*COS(PI()*P23/90)+I$2^2*(COS(PI()*P23/45)+3))/(3600*(I$2^2*COS(PI()*P23/90)+2*J$2^2-I$2^2)^(3/2)))/Q$7 -> 0.0986388261 | S23: =Q23-COS(P23*PI()/180)*H$2/100/Q$6 -> -0.03596197387 | T23: =SIN(P23*PI()/180)*H$2/100/Q$6 -> 0.3698126586 | U23: =SQRT(SUMSQ(S23,T23)) -> 0.3715570831 | V23: =(U23-U22)/U23*100 -> 3.784754526 | W23: =DEGREES(ATAN2(S23,T23)) -> 95.55419357 | X23: =IF(DEGREES(ATAN2(S23,T23))<0,360+DEGREES(ATAN2(S23,T23)),DEGREES(ATAN2(S23,T23))) -> 95.55419357 | Y23: =Y22+(S23*(T23-T22)/2+S23*(T24-T23)/2)^2 -> 0.002277418245 | Z23: =U23*5+Z22 -> 35.14442752 | AB23: =Q23-COS(P23*PI()/180)*H$7/100/Q$6 -> -0.06288213386 | AC23: =SIN(P23*PI()/180)*H$7/100/Q$6 -> 0.4437751903 | AD23: =SQRT(SUMSQ(AB23,AC23)) -> 0.4482081908 | AE23: =(AD23-AD22)/AD23*100 -> 4.48526492 | AF23: =DEGREES(ATAN2(AB23,AC23)) -> 98.06501584 | AG23: =IF(DEGREES(ATAN2(AB23,AC23))<0,360+DEGREES(ATAN2(AB23,AC23)),DEGREES(ATAN2(AB23,AC23))) -> 98.06501584 | AH23: =AH22+(AB23*(AC23-AC22)/2+AB23*(AC24-AC23)/2)^2 -> 0.002416108255 | AI23: =AD23*5+AI22 -> 34.07697308 | AK23: 0.0986388261
P24: 75 | Q24: =(PI()^2*I$2*COS(PI()*P24/180)/900+SQRT(2)*PI()^2*I$2^2*(4*(2*J$2^2-I$2^2)*COS(PI()*P24/90)+I$2^2*(COS(PI()*P24/45)+3))/(3600*(I$2^2*COS(PI()*P24/90)+2*J$2^2-I$2^2)^(3/2)))/Q$7 -> 0.009917411462 | S24: =Q24-COS(P24*PI()/180)*H$2/100/Q$6 -> -0.09193989489 | T24: =SIN(P24*PI()/180)*H$2/100/Q$6 -> 0.3801366424 | U24: =SQRT(SUMSQ(S24,T24)) -> 0.3910969332 | V24: =(U24-U23)/U24*100 -> 4.996165528 | W24: =DEGREES(ATAN2(S24,T24)) -> 103.5964633 | X24: =IF(DEGREES(ATAN2(S24,T24))<0,360+DEGREES(ATAN2(S24,T24)),DEGREES(ATAN2(S24,T24))) -> 103.5964633 | Y24: =Y23+(S24*(T24-T23)/2+S24*(T25-T24)/2)^2 -> 0.002278084414 | Z24: =U24*5+Z23 -> 37.09991218 | AB24: =Q24-COS(P24*PI()/180)*H$7/100/Q$6 -> -0.1123113562 | AC24: =SIN(P24*PI()/180)*H$7/100/Q$6 -> 0.4561639709 | AD24: =SQRT(SUMSQ(AB24,AC24)) -> 0.469786557 | AE24: =(AD24-AD23)/AD24*100 -> 4.593227686 | AF24: =DEGREES(ATAN2(AB24,AC24)) -> 103.8315927 | AG24: =IF(DEGREES(ATAN2(AB24,AC24))<0,360+DEGREES(ATAN2(AB24,AC24)),DEGREES(ATAN2(AB24,AC24))) -> 103.8315927 | AH24: =AH23+(AB24*(AC24-AC23)/2+AB24*(AC25-AC24)/2)^2 -> 0.002417539738 | AI24: =AD24*5+AI23 -> 36.42590587 | AK24: 0.009917411462
P25: 80 | Q25: =(PI()^2*I$2*COS(PI()*P25/180)/900+SQRT(2)*PI()^2*I$2^2*(4*(2*J$2^2-I$2^2)*COS(PI()*P25/90)+I$2^2*(COS(PI()*P25/45)+3))/(3600*(I$2^2*COS(PI()*P25/90)+2*J$2^2-I$2^2)^(3/2)))/Q$7 -> -0.07428878622 | S25: =Q25-COS(P25*PI()/180)*H$2/100/Q$6 -> -0.1426274034 | T25: =SIN(P25*PI()/180)*H$2/100/Q$6 -> 0.3875675569 | U25: =SQRT(SUMSQ(S25,T25)) -> 0.4129784345 | V25: =(U25-U24)/U25*100 -> 5.298460994 | W25: =DEGREES(ATAN2(S25,T25)) -> 110.2039462 | X25: =IF(DEGREES(ATAN2(S25,T25))<0,360+DEGREES(ATAN2(S25,T25)),DEGREES(ATAN2(S25,T25))) -> 110.2039462 | Y25: =Y24+(S25*(T25-T24)/2+S25*(T26-T25)/2)^2 -> 0.00227880607 | Z25: =U25*5+Z24 -> 39.16480436 | AB25: =Q25-COS(P25*PI()/180)*H$7/100/Q$6 -> -0.1562951268 | AC25: =SIN(P25*PI()/180)*H$7/100/Q$6 -> 0.4650810683 | AD25: =SQRT(SUMSQ(AB25,AC25)) -> 0.4906409754 | AE25: =(AD25-AD24)/AD25*100 -> 4.250443709 | AF25: =DEGREES(ATAN2(AB25,AC25)) -> 108.5754356 | AG25: =IF(DEGREES(ATAN2(AB25,AC25))<0,360+DEGREES(ATAN2(AB25,AC25)),DEGREES(ATAN2(AB25,AC25))) -> 108.5754356 | AH25: =AH24+(AB25*(AC25-AC24)/2+AB25*(AC26-AC25)/2)^2 -> 0.002418787632 | AI25: =AD25*5+AI24 -> 38.87911074 | AK25: 0.07428878622
P26: 85 | Q26: =(PI()^2*I$2*COS(PI()*P26/180)/900+SQRT(2)*PI()^2*I$2^2*(4*(2*J$2^2-I$2^2)*COS(PI()*P26/90)+I$2^2*(COS(PI()*P26/45)+3))/(3600*(I$2^2*COS(PI()*P26/90)+2*J$2^2-I$2^2)^(3/2)))/Q$7 -> -0.1528252038 | S26: =Q26-COS(P26*PI()/180)*H$2/100/Q$6 -> -0.1871250336 | T26: =SIN(P26*PI()/180)*H$2/100/Q$6 -> 0.3920488483 | U26: =SQRT(SUMSQ(S26,T26)) -> 0.4344169399 | V26: =(U26-U25)/U26*100 -> 4.93500676 | W26: =DEGREES(ATAN2(S26,T26)) -> 115.5151572 | X26: =IF(DEGREES(ATAN2(S26,T26))<0,360+DEGREES(ATAN2(S26,T26)),DEGREES(ATAN2(S26,T26))) -> 115.5151572 | Y26: =Y25+(S26*(T26-T25)/2+S26*(T27-T26)/2)^2 -> 0.002279118994 | Z26: =U26*5+Z25 -> 41.33688905 | AB26: =Q26-COS(P26*PI()/180)*H$7/100/Q$6 -> -0.1939849995 | AC26: =SIN(P26*PI()/180)*H$7/100/Q$6 -> 0.470458618 | AD26: =SQRT(SUMSQ(AB26,AC26)) -> 0.5088825908 | AE26: =(AD26-AD25)/AD26*100 -> 3.584641279 | AF26: =DEGREES(ATAN2(AB26,AC26)) -> 112.4079061 | AG26: =IF(DEGREES(ATAN2(AB26,AC26))<0,360+DEGREES(ATAN2(AB26,AC26)),DEGREES(ATAN2(AB26,AC26))) -> 112.4079061 | AH26: =AH25+(AB26*(AC26-AC25)/2+AB26*(AC27-AC26)/2)^2 -> 0.002419271888 | AI26: =AD26*5+AI25 -> 41.4235237 | AK26: 0.1528252038
P27: 90 | Q27: =(PI()^2*I$2*COS(PI()*P27/180)/900+SQRT(2)*PI()^2*I$2^2*(4*(2*J$2^2-I$2^2)*COS(PI()*P27/90)+I$2^2*(COS(PI()*P27/45)+3))/(3600*(I$2^2*COS(PI()*P27/90)+2*J$2^2-I$2^2)^(3/2)))/Q$7 -> -0.2247725667 | S27: =Q27-COS(P27*PI()/180)*H$2/100/Q$6 -> -0.2247725667 | T27: =SIN(P27*PI()/180)*H$2/100/Q$6 -> 0.3935464112 | U27: =SQRT(SUMSQ(S27,T27)) -> 0.4532124055 | V27: =(U27-U26)/U27*100 -> 4.147164866 | W27: =DEGREES(ATAN2(S27,T27)) -> 119.7326868 | X27: =IF(DEGREES(ATAN2(S27,T27))<0,360+DEGREES(ATAN2(S27,T27)),DEGREES(ATAN2(S27,T27))) -> 119.7326868 | Y27: =Y26+(S27*(T27-T26)/2+S27*(T28-T27)/2)^2 -> 0.002279118994 | Z27: =U27*5+Z26 -> 43.60295108 | AB27: =Q27-COS(P27*PI()/180)*H$7/100/Q$6 -> -0.2247725667 | AC27: =SIN(P27*PI()/180)*H$7/100/Q$6 -> 0.4722556935 | AD27: =SQRT(SUMSQ(AB27,AC27)) -> 0.5230183044 | AE27: =(AD27-AD26)/AD27*100 -> 2.702718709 | AF27: =DEGREES(ATAN2(AB27,AC27)) -> 115.4523568 | AG27: =IF(DEGREES(ATAN2(AB27,AC27))<0,360+DEGREES(ATAN2(AB27,AC27)),DEGREES(ATAN2(AB27,AC27))) -> 115.4523568 | AH27: =AH26+(AB27*(AC27-AC26)/2+AB27*(AC28-AC27)/2)^2 -> 0.002419271888 | AI27: =AD27*5+AI26 -> 44.03861522 | AK27: 0.2247725667
P28: 95 | Q28: =(PI()^2*I$2*COS(PI()*P28/180)/900+SQRT(2)*PI()^2*I$2^2*(4*(2*J$2^2-I$2^2)*COS(PI()*P28/90)+I$2^2*(COS(PI()*P28/45)+3))/(3600*(I$2^2*COS(PI()*P28/90)+2*J$2^2-I$2^2)^(3/2)))/Q$7 -> -0.2894738198 | S28: =Q28-COS(P28*PI()/180)*H$2/100/Q$6 -> -0.2551739901 | T28: =SIN(P28*PI()/180)*H$2/100/Q$6 -> 0.3920488483 | U28: =SQRT(SUMSQ(S28,T28)) -> 0.4677777941 | V28: =(U28-U27)/U28*100 -> 3.113740921 | W28: =DEGREES(ATAN2(S28,T28)) -> 123.0590144 | X28: =IF(DEGREES(ATAN2(S28,T28))<0,360+DEGREES(ATAN2(S28,T28)),DEGREES(ATAN2(S28,T28))) -> 123.0590144 | Y28: =Y27+(S28*(T28-T27)/2+S28*(T29-T28)/2)^2 -> 0.002279700895 | Z28: =U28*5+Z27 -> 45.94184005 | AB28: =Q28-COS(P28*PI()/180)*H$7/100/Q$6 -> -0.2483140241 | AC28: =SIN(P28*PI()/180)*H$7/100/Q$6 -> 0.470458618 | AD28: =SQRT(SUMSQ(AB28,AC28)) -> 0.5319691399 | AE28: =(AD28-AD27)/AD28*100 -> 1.682585476 | AF28: =DEGREES(ATAN2(AB28,AC28)) -> 117.8256605 | AG28: =IF(DEGREES(ATAN2(AB28,AC28))<0,360+DEGREES(ATAN2(AB28,AC28)),DEGREES(ATAN2(AB28,AC28))) -> 117.8256605 | AH28: =AH27+(AB28*(AC28-AC27)/2+AB28*(AC29-AC28)/2)^2 -> 0.002420065377 | AI28: =AD28*5+AI27 -> 46.69846092 | AK28: 0.2894738198
P29: 100 | Q29: =(PI()^2*I$2*COS(PI()*P29/180)/900+SQRT(2)*PI()^2*I$2^2*(4*(2*J$2^2-I$2^2)*COS(PI()*P29/90)+I$2^2*(COS(PI()*P29/45)+3))/(3600*(I$2^2*COS(PI()*P29/90)+2*J$2^2-I$2^2)^(3/2)))/Q$7 -> -0.3465460398 | S29: =Q29-COS(P29*PI()/180)*H$2/100/Q$6 -> -0.2782074227 | T29: =SIN(P29*PI()/180)*H$2/100/Q$6 -> 0.3875675569 | U29: =SQRT(SUMSQ(S29,T29)) -> 0.4770827824 | V29: =(U29-U28)/U29*100 -> 1.950392806 | W29: =DEGREES(ATAN2(S29,T29)) -> 125.6719003 | X29: =IF(DEGREES(ATAN2(S29,T29))<0,360+DEGREES(ATAN2(S29,T29)),DEGREES(ATAN2(S29,T29))) -> 125.6719003 | Y29: =Y28+(S29*(T29-T28)/2+S29*(T30-T29)/2)^2 -> 0.00228244665 | Z29: =U29*5+Z28 -> 48.32725396 | AB29: =Q29-COS(P29*PI()/180)*H$7/100/Q$6 -> -0.2645396993 | AC29: =SIN(P29*PI()/180)*H$7/100/Q$6 -> 0.4650810683 | AD29: =SQRT(SUMSQ(AB29,AC29)) -> 0.5350529437 | AE29: =(AD29-AD28)/AD29*100 -> 0.5763549003 | AF29: =DEGREES(ATAN2(AB29,AC29)) -> 119.6313667 | AG29: =IF(DEGREES(ATAN2(AB29,AC29))<0,360+DEGREES(ATAN2(AB29,AC29)),DEGREES(ATAN2(AB29,AC29))) -> 119.6313667 | AH29: =AH28+(AB29*(AC29-AC28)/2+AB29*(AC30-AC29)/2)^2 -> 0.002423640316 | AI29: =AD29*5+AI28 -> 49.37372564 | AK29: 0.3465460398
P30: 105 | Q30: =(PI()^2*I$2*COS(PI()*P30/180)/900+SQRT(2)*PI()^2*I$2^2*(4*(2*J$2^2-I$2^2)*COS(PI()*P30/90)+I$2^2*(COS(PI()*P30/45)+3))/(3600*(I$2^2*COS(PI()*P30/90)+2*J$2^2-I$2^2)^(3/2)))/Q$7 -> -0.3958764376 | S30: =Q30-COS(P30*PI()/180)*H$2/100/Q$6 -> -0.2940191313 | T30: =SIN(P30*PI()/180)*H$2/100/Q$6 -> 0.3801366424 | U30: =SQRT(SUMSQ(S30,T30)) -> 0.4805737368 | V30: =(U30-U29)/U30*100 -> 0.7264138973 | W30: =DEGREES(ATAN2(S30,T30)) -> 127.7203896 | X30: =IF(DEGREES(ATAN2(S30,T30))<0,360+DEGREES(ATAN2(S30,T30)),DEGREES(ATAN2(S30,T30))) -> 127.7203896 | Y30: =Y29+(S30*(T30-T29)/2+S30*(T31-T30)/2)^2 -> 0.00228925948 | Z30: =U30*5+Z29 -> 50.73012265 | AB30: =Q30-COS(P30*PI()/180)*H$7/100/Q$6 -> -0.27364767 | AC30: =SIN(P30*PI()/180)*H$7/100/Q$6 -> 0.4561639709 | AD30: =SQRT(SUMSQ(AB30,AC30)) -> 0.5319479445 | AE30: =(AD30-AD29)/AD30*100 -> -0.5837035854 | AF30: =DEGREES(ATAN2(AB30,AC30)) -> 120.9590727 | AG30: =IF(DEGREES(ATAN2(AB30,AC30))<0,360+DEGREES(ATAN2(AB30,AC30)),DEGREES(ATAN2(AB30,AC30))) -> 120.9590727 | AH30: =AH29+(AB30*(AC30-AC29)/2+AB30*(AC31-AC30)/2)^2 -> 0.002432138427 | AI30: =AD30*5+AI29 -> 52.03346536 | AK30: 0.3958764376
P31: 110 | Q31: =(PI()^2*I$2*COS(PI()*P31/180)/900+SQRT(2)*PI()^2*I$2^2*(4*(2*J$2^2-I$2^2)*COS(PI()*P31/90)+I$2^2*(COS(PI()*P31/45)+3))/(3600*(I$2^2*COS(PI()*P31/90)+2*J$2^2-I$2^2)^(3/2)))/Q$7 -> -0.4376032823 | S31: =Q31-COS(P31*PI()/180)*H$2/100/Q$6 -> -0.3030024823 | T31: =SIN(P31*PI()/180)*H$2/100/Q$6 -> 0.3698126586 | U31: =SQRT(SUMSQ(S31,T31)) -> 0.4780919438 | V31: =(U31-U30)/U31*100 -> -0.5191037069 | W31: =DEGREES(ATAN2(S31,T31)) -> 129.3291505 | X31: =IF(DEGREES(ATAN2(S31,T31))<0,360+DEGREES(ATAN2(S31,T31)),DEGREES(ATAN2(S31,T31))) -> 129.3291505 | Y31: =Y30+(S31*(T31-T30)/2+S31*(T32-T31)/2)^2 -> 0.002301894609 | Z31: =U31*5+Z30 -> 53.12058237 | AB31: =Q31-COS(P31*PI()/180)*H$7/100/Q$6 -> -0.2760823223 | AC31: =SIN(P31*PI()/180)*H$7/100/Q$6 -> 0.4437751903 | AD31: =SQRT(SUMSQ(AB31,AC31)) -> 0.522645069 | AE31: =(AD31-AD30)/AD31*100 -> -1.779960442 | AF31: =DEGREES(ATAN2(AB31,AC31)) -> 121.8866532 | AG31: =IF(DEGREES(ATAN2(AB31,AC31))<0,360+DEGREES(ATAN2(AB31,AC31)),DEGREES(ATAN2(AB31,AC31))) -> 121.8866532 | AH31: =AH30+(AB31*(AC31-AC30)/2+AB31*(AC32-AC31)/2)^2 -> 0.002447243644 | AI31: =AD31*5+AI30 -> 54.64669071 | AK31: 0.4376032823
P32: 115 | Q32: =(PI()^2*I$2*COS(PI()*P32/180)/900+SQRT(2)*PI()^2*I$2^2*(4*(2*J$2^2-I$2^2)*COS(PI()*P32/90)+I$2^2*(COS(PI()*P32/45)+3))/(3600*(I$2^2*COS(PI()*P32/90)+2*J$2^2-I$2^2)^(3/2)))/Q$7 -> -0.4720841444 | S32: =Q32-COS(P32*PI()/180)*H$2/100/Q$6 -> -0.3057642442 | T32: =SIN(P32*PI()/180)*H$2/100/Q$6 -> 0.356674177 | U32: =SQRT(SUMSQ(S32,T32)) -> 0.4697959574 | V32: =(U32-U31)/U32*100 -> -1.765870106 | W32: =DEGREES(ATAN2(S32,T32)) -> 130.6053246 | X32: =IF(DEGREES(ATAN2(S32,T32))<0,360+DEGREES(ATAN2(S32,T32)),DEGREES(ATAN2(S32,T32))) -> 130.6053246 | Y32: =Y31+(S32*(T32-T31)/2+S32*(T33-T32)/2)^2 -> 0.002321539691 | Z32: =U32*5+Z31 -> 55.46956215 | AB32: =Q32-COS(P32*PI()/180)*H$7/100/Q$6 -> -0.2725002642 | AC32: =SIN(P32*PI()/180)*H$7/100/Q$6 -> 0.4280090125 | AD32: =SQRT(SUMSQ(AB32,AC32)) -> 0.5073934457 | AE32: =(AD32-AD31)/AD32*100 -> -3.005877096 | AF32: =DEGREES(ATAN2(AB32,AC32)) -> 122.4836621 | AG32: =IF(DEGREES(ATAN2(AB32,AC32))<0,360+DEGREES(ATAN2(AB32,AC32)),DEGREES(ATAN2(AB32,AC32))) -> 122.4836621 | AH32: =AH31+(AB32*(AC32-AC31)/2+AB32*(AC33-AC32)/2)^2 -> 0.002469712285 | AI32: =AD32*5+AI31 -> 57.18365793 | AK32: 0.4720841444
P33: 120 | Q33: =(PI()^2*I$2*COS(PI()*P33/180)/900+SQRT(2)*PI()^2*I$2^2*(4*(2*J$2^2-I$2^2)*COS(PI()*P33/90)+I$2^2*(COS(PI()*P33/45)+3))/(3600*(I$2^2*COS(PI()*P33/90)+2*J$2^2-I$2^2)^(3/2)))/Q$7 -> -0.4998550051 | S33: =Q33-COS(P33*PI()/180)*H$2/100/Q$6 -> -0.3030817995 | T33: =SIN(P33*PI()/180)*H$2/100/Q$6 -> 0.3408211897 | U33: =SQRT(SUMSQ(S33,T33)) -> 0.4560895312 | V33: =(U33-U32)/U33*100 -> -3.005205169 | W33: =DEGREES(ATAN2(S33,T33)) -> 131.6457107 | X33: =IF(DEGREES(ATAN2(S33,T33))<0,360+DEGREES(ATAN2(S33,T33)),DEGREES(ATAN2(S33,T33))) -> 131.6457107 | Y33: =Y32+(S33*(T33-T32)/2+S33*(T34-T33)/2)^2 -> 0.002348557097 | Z33: =U33*5+Z32 -> 57.75000981 | AB33: =Q33-COS(P33*PI()/180)*H$7/100/Q$6 -> -0.2637271584 | AC33: =SIN(P33*PI()/180)*H$7/100/Q$6 -> 0.4089854276 | AD33: =SQRT(SUMSQ(AB33,AC33)) -> 0.486642676 | AE33: =(AD33-AD32)/AD33*100 -> -4.264066992 | AF33: =DEGREES(ATAN2(AB33,AC33)) -> 122.8152443 | AG33: =IF(DEGREES(ATAN2(AB33,AC33))<0,360+DEGREES(ATAN2(AB33,AC33)),DEGREES(ATAN2(AB33,AC33))) -> 122.8152443 | AH33: =AH32+(AB33*(AC33-AC32)/2+AB33*(AC34-AC33)/2)^2 -> 0.002499169802 | AI33: =AD33*5+AI32 -> 59.61687131 | AK33: 0.4998550051
P34: 125 | Q34: =(PI()^2*I$2*COS(PI()*P34/180)/900+SQRT(2)*PI()^2*I$2^2*(4*(2*J$2^2-I$2^2)*COS(PI()*P34/90)+I$2^2*(COS(PI()*P34/45)+3))/(3600*(I$2^2*COS(PI()*P34/90)+2*J$2^2-I$2^2)^(3/2)))/Q$7 -> -0.521584336 | S34: =Q34-COS(P34*PI()/180)*H$2/100/Q$6 -> -0.2958553879 | T34: =SIN(P34*PI()/180)*H$2/100/Q$6 -> 0.3223743473 | U34: =SQRT(SUMSQ(S34,T34)) -> 0.437556431 | V34: =(U34-U33)/U34*100 -> -4.235590859 | W34: =DEGREES(ATAN2(S34,T34)) -> 132.5438037 | X34: =IF(DEGREES(ATAN2(S34,T34))<0,360+DEGREES(ATAN2(S34,T34)),DEGREES(ATAN2(S34,T34))) -> 132.5438037 | Y34: =Y33+(S34*(T34-T33)/2+S34*(T35-T34)/2)^2 -> 0.002382435701 | Z34: =U34*5+Z33 -> 59.93779197 | AB34: =Q34-COS(P34*PI()/180)*H$7/100/Q$6 -> -0.2507095983 | AC34: =SIN(P34*PI()/180)*H$7/100/Q$6 -> 0.3868492167 | AD34: =SQRT(SUMSQ(AB34,AC34)) -> 0.4609854869 | AE34: =(AD34-AD33)/AD34*100 -> -5.56572598 | AF34: =DEGREES(ATAN2(AB34,AC34)) -> 122.9465028 | AG34: =IF(DEGREES(ATAN2(AB34,AC34))<0,360+DEGREES(ATAN2(AB34,AC34)),DEGREES(ATAN2(AB34,AC34))) -> 122.9465028 | AH34: =AH33+(AB34*(AC34-AC33)/2+AB34*(AC35-AC34)/2)^2 -> 0.002534202287 | AI34: =AD34*5+AI33 -> 61.92179875 | AK34: 0.521584336
P35: 130 | Q35: =(PI()^2*I$2*COS(PI()*P35/180)/900+SQRT(2)*PI()^2*I$2^2*(4*(2*J$2^2-I$2^2)*COS(PI()*P35/90)+I$2^2*(COS(PI()*P35/45)+3))/(3600*(I$2^2*COS(PI()*P35/90)+2*J$2^2-I$2^2)^(3/2)))/Q$7 -> -0.538026207 | S35: =Q35-COS(P35*PI()/180)*H$2/100/Q$6 -> -0.2850594501 | T35: =SIN(P35*PI()/180)*H$2/100/Q$6 -> 0.3014740414 | U35: =SQRT(SUMSQ(S35,T35)) -> 0.414904191 | V35: =(U35-U34)/U35*100 -> -5.459631531 | W35: =DEGREES(ATAN2(S35,T35)) -> 133.3969519 | X35: =IF(DEGREES(ATAN2(S35,T35))<0,360+DEGREES(ATAN2(S35,T35)),DEGREES(ATAN2(S35,T35))) -> 133.3969519 | Y35: =Y34+(S35*(T35-T34)/2+S35*(T36-T35)/2)^2 -> 0.002421935038 | Z35: =U35*5+Z34 -> 62.01231292 | AB35: =Q35-COS(P35*PI()/180)*H$7/100/Q$6 -> -0.2344660987 | AC35: =SIN(P35*PI()/180)*H$7/100/Q$6 -> 0.3617688497 | AD35: =SQRT(SUMSQ(AB35,AC35)) -> 0.4311044561 | AE35: =(AD35-AD34)/AD35*100 -> -6.931273953 | AF35: =DEGREES(ATAN2(AB35,AC35)) -> 122.9476859 | AG35: =IF(DEGREES(ATAN2(AB35,AC35))<0,360+DEGREES(ATAN2(AB35,AC35)),DEGREES(ATAN2(AB35,AC35))) -> 122.9476859 | AH35: =AH34+(AB35*(AC35-AC34)/2+AB35*(AC36-AC35)/2)^2 -> 0.00257268286 | AI35: =AD35*5+AI34 -> 64.07732103 | AK35: 0.538026207
P36: 135 | Q36: =(PI()^2*I$2*COS(PI()*P36/180)/900+SQRT(2)*PI()^2*I$2^2*(4*(2*J$2^2-I$2^2)*COS(PI()*P36/90)+I$2^2*(COS(PI()*P36/45)+3))/(3600*(I$2^2*COS(PI()*P36/90)+2*J$2^2-I$2^2)^(3/2)))/Q$7 -> -0.5499759064 | S36: =Q36-COS(P36*PI()/180)*H$2/100/Q$6 -> -0.2716965703 | T36: =SIN(P36*PI()/180)*H$2/100/Q$6 -> 0.2782793361 | U36: =SQRT(SUMSQ(S36,T36)) -> 0.3889195485 | V36: =(U36-U35)/U36*100 -> -6.681238468 | W36: =DEGREES(ATAN2(S36,T36)) -> 134.3142487 | X36: =IF(DEGREES(ATAN2(S36,T36))<0,360+DEGREES(ATAN2(S36,T36)),DEGREES(ATAN2(S36,T36))) -> 134.3142487 | Y36: =Y35+(S36*(T36-T35)/2+S36*(T37-T36)/2)^2 -> 0.00246535828 | Z36: =U36*5+Z35 -> 63.95691066 | AB36: =Q36-COS(P36*PI()/180)*H$7/100/Q$6 -> -0.2160407031 | AC36: =SIN(P36*PI()/180)*H$7/100/Q$6 -> 0.3339352033 | AD36: =SQRT(SUMSQ(AB36,AC36)) -> 0.3977264203 | AE36: =(AD36-AD35)/AD36*100 -> -8.392209835 | AF36: =DEGREES(ATAN2(AB36,AC36)) -> 122.9010078 | AG36: =IF(DEGREES(ATAN2(AB36,AC36))<0,360+DEGREES(ATAN2(AB36,AC36)),DEGREES(ATAN2(AB36,AC36))) -> 122.9010078 | AH36: =AH35+(AB36*(AC36-AC35)/2+AB36*(AC37-AC36)/2)^2 -> 0.002612218393 | AI36: =AD36*5+AI35 -> 66.06595313 | AK36: 0.5499759064
P37: 140 | Q37: =(PI()^2*I$2*COS(PI()*P37/180)/900+SQRT(2)*PI()^2*I$2^2*(4*(2*J$2^2-I$2^2)*COS(PI()*P37/90)+I$2^2*(COS(PI()*P37/45)+3))/(3600*(I$2^2*COS(PI()*P37/90)+2*J$2^2-I$2^2)^(3/2)))/Q$7 -> -0.5582306538 | S37: =Q37-COS(P37*PI()/180)*H$2/100/Q$6 -> -0.2567566124 | T37: =SIN(P37*PI()/180)*H$2/100/Q$6 -> 0.252966757 | U37: =SQRT(SUMSQ(S37,T37)) -> 0.3604388133 | V37: =(U37-U36)/U37*100 -> -7.901683778 | W37: =DEGREES(ATAN2(S37,T37)) -> 135.4259933 | X37: =IF(DEGREES(ATAN2(S37,T37))<0,360+DEGREES(ATAN2(S37,T37)),DEGREES(ATAN2(S37,T37))) -> 135.4259933 | Y37: =Y36+(S37*(T37-T36)/2+S37*(T38-T37)/2)^2 -> 0.002510871246 | Z37: =U37*5+Z36 -> 65.75910473 | AB37: =Q37-COS(P37*PI()/180)*H$7/100/Q$6 -> -0.1964618041 | AC37: =SIN(P37*PI()/180)*H$7/100/Q$6 -> 0.3035601084 | AD37: =SQRT(SUMSQ(AB37,AC37)) -> 0.3615881357 | AE37: =(AD37-AD36)/AD37*100 -> -9.994322568 | AF37: =DEGREES(ATAN2(AB37,AC37)) -> 122.9106385 | AG37: =IF(DEGREES(ATAN2(AB37,AC37))<0,360+DEGREES(ATAN2(AB37,AC37)),DEGREES(ATAN2(AB37,AC37))) -> 122.9106385 | AH37: =AH36+(AB37*(AC37-AC36)/2+AB37*(AC38-AC37)/2)^2 -> 0.002650590055 | AI37: =AD37*5+AI36 -> 67.87389381 | AK37: 0.5582306538
P38: 145 | Q38: =(PI()^2*I$2*COS(PI()*P38/180)/900+SQRT(2)*PI()^2*I$2^2*(4*(2*J$2^2-I$2^2)*COS(PI()*P38/90)+I$2^2*(COS(PI()*P38/45)+3))/(3600*(I$2^2*COS(PI()*P38/90)+2*J$2^2-I$2^2)^(3/2)))/Q$7 -> -0.5635569425 | S38: =Q38-COS(P38*PI()/180)*H$2/100/Q$6 -> -0.2411825952 | T38: =SIN(P38*PI()/180)*H$2/100/Q$6 -> 0.2257289481 | U38: =SQRT(SUMSQ(S38,T38)) -> 0.3303371039 | V38: =(U38-U37)/U38*100 -> -9.112421527 | W38: =DEGREES(ATAN2(S38,T38)) -> 136.8956603 | X38: =IF(DEGREES(ATAN2(S38,T38))<0,360+DEGREES(ATAN2(S38,T38)),DEGREES(ATAN2(S38,T38))) -> 136.8956603 | Y38: =Y37+(S38*(T38-T37)/2+S38*(T39-T38)/2)^2 -> 0.002556791565 | Z38: =U38*5+Z37 -> 67.41079025 | AB38: =Q38-COS(P38*PI()/180)*H$7/100/Q$6 -> -0.1767077257 | AC38: =SIN(P38*PI()/180)*H$7/100/Q$6 -> 0.2708747377 | AD38: =SQRT(SUMSQ(AB38,AC38)) -> 0.3234172906 | AE38: =(AD38-AD37)/AD38*100 -> -11.80235138 | AF38: =DEGREES(ATAN2(AB38,AC38)) -> 123.1188042 | AG38: =IF(DEGREES(ATAN2(AB38,AC38))<0,360+DEGREES(ATAN2(AB38,AC38)),DEGREES(ATAN2(AB38,AC38))) -> 123.1188042 | AH38: =AH37+(AB38*(AC38-AC37)/2+AB38*(AC39-AC38)/2)^2 -> 0.002686086636 | AI38: =AD38*5+AI37 -> 69.49098026 | AK38: 0.5635569425
P39: 150 | Q39: =(PI()^2*I$2*COS(PI()*P39/180)/900+SQRT(2)*PI()^2*I$2^2*(4*(2*J$2^2-I$2^2)*COS(PI()*P39/90)+I$2^2*(COS(PI()*P39/45)+3))/(3600*(I$2^2*COS(PI()*P39/90)+2*J$2^2-I$2^2)^(3/2)))/Q$7 -> -0.566665056 | S39: =Q39-COS(P39*PI()/180)*H$2/100/Q$6 -> -0.2258438663 | T39: =SIN(P39*PI()/180)*H$2/100/Q$6 -> 0.1967732056 | U39: =SQRT(SUMSQ(S39,T39)) -> 0.2995415604 | V39: =(U39-U38)/U39*100 -> -10.28089174 | W39: =DEGREES(ATAN2(S39,T39)) -> 138.9350198 | X39: =IF(DEGREES(ATAN2(S39,T39))<0,360+DEGREES(ATAN2(S39,T39)),DEGREES(ATAN2(S39,T39))) -> 138.9350198 | Y39: =Y38+(S39*(T39-T38)/2+S39*(T40-T39)/2)^2 -> 0.002601796671 | Z39: =U39*5+Z38 -> 68.90849805 | AB39: =Q39-COS(P39*PI()/180)*H$7/100/Q$6 -> -0.1576796284 | AC39: =SIN(P39*PI()/180)*H$7/100/Q$6 -> 0.2361278467 | AD39: =SQRT(SUMSQ(AB39,AC39)) -> 0.2839352483 | AE39: =(AD39-AD38)/AD39*100 -> -13.90529798 | AF39: =DEGREES(ATAN2(AB39,AC39)) -> 123.7339004 | AG39: =IF(DEGREES(ATAN2(AB39,AC39))<0,360+DEGREES(ATAN2(AB39,AC39)),DEGREES(ATAN2(AB39,AC39))) -> 123.7339004 | AH39: =AH38+(AB39*(AC39-AC38)/2+AB39*(AC40-AC39)/2)^2 -> 0.002717677308 | AI39: =AD39*5+AI38 -> 70.9106565 | AK39: 0.566665056
P40: 155 | Q40: =(PI()^2*I$2*COS(PI()*P40/180)/900+SQRT(2)*PI()^2*I$2^2*(4*(2*J$2^2-I$2^2)*COS(PI()*P40/90)+I$2^2*(COS(PI()*P40/45)+3))/(3600*(I$2^2*COS(PI()*P40/90)+2*J$2^2-I$2^2)^(3/2)))/Q$7 -> -0.568190484 | S40: =Q40-COS(P40*PI()/180)*H$2/100/Q$6 -> -0.211516307 | T40: =SIN(P40*PI()/180)*H$2/100/Q$6 -> 0.1663199002 | U40: =SQRT(SUMSQ(S40,T40)) -> 0.269075189 | V40: =(U40-U39)/U40*100 -> -11.32262379 | W40: =DEGREES(ATAN2(S40,T40)) -> 141.8212553 | X40: =IF(DEGREES(ATAN2(S40,T40))<0,360+DEGREES(ATAN2(S40,T40)),DEGREES(ATAN2(S40,T40))) -> 141.8212553 | Y40: =Y39+(S40*(T40-T39)/2+S40*(T41-T40)/2)^2 -> 0.002645030437 | Z40: =U40*5+Z39 -> 70.253874 | AB40: =Q40-COS(P40*PI()/180)*H$7/100/Q$6 -> -0.1401814716 | AC40: =SIN(P40*PI()/180)*H$7/100/Q$6 -> 0.1995838803 | AD40: =SQRT(SUMSQ(AB40,AC40)) -> 0.2438945884 | AE40: =(AD40-AD39)/AD40*100 -> -16.41719898 | AF40: =DEGREES(ATAN2(AB40,AC40)) -> 125.083004 | AG40: =IF(DEGREES(ATAN2(AB40,AC40))<0,360+DEGREES(ATAN2(AB40,AC40)),DEGREES(ATAN2(AB40,AC40))) -> 125.083004 | AH40: =AH39+(AB40*(AC40-AC39)/2+AB40*(AC41-AC40)/2)^2 -> 0.00274502238 | AI40: =AD40*5+AI39 -> 72.13012945 | AK40: 0.568190484
P41: 160 | Q41: =(PI()^2*I$2*COS(PI()*P41/180)/900+SQRT(2)*PI()^2*I$2^2*(4*(2*J$2^2-I$2^2)*COS(PI()*P41/90)+I$2^2*(COS(PI()*P41/45)+3))/(3600*(I$2^2*COS(PI()*P41/90)+2*J$2^2-I$2^2)^(3/2)))/Q$7 -> -0.5686813854 | S41: =Q41-COS(P41*PI()/180)*H$2/100/Q$6 -> -0.1988687268 | T41: =SIN(P41*PI()/180)*H$2/100/Q$6 -> 0.1346008 | U41: =SQRT(SUMSQ(S41,T41)) -> 0.2401377643 | V41: =(U41-U40)/U41*100 -> -12.05034315 | W41: =DEGREES(ATAN2(S41,T41)) -> 145.9085846 | X41: =IF(DEGREES(ATAN2(S41,T41))<0,360+DEGREES(ATAN2(S41,T41)),DEGREES(ATAN2(S41,T41))) -> 145.9085846 | Y41: =Y40+(S41*(T41-T40)/2+S41*(T42-T41)/2)^2 -> 0.002686115934 | Z41: =U41*5+Z40 -> 71.45456282 | AB41: =Q41-COS(P41*PI()/180)*H$7/100/Q$6 -> -0.1249061951 | AC41: =SIN(P41*PI()/180)*H$7/100/Q$6 -> 0.16152096 | AD41: =SQRT(SUMSQ(AB41,AC41)) -> 0.2041827076 | AE41: =(AD41-AD40)/AD41*100 -> -19.44918902 | AF41: =DEGREES(ATAN2(AB41,AC41)) -> 127.7152333 | AG41: =IF(DEGREES(ATAN2(AB41,AC41))<0,360+DEGREES(ATAN2(AB41,AC41)),DEGREES(ATAN2(AB41,AC41))) -> 127.7152333 | AH41: =AH40+(AB41*(AC41-AC40)/2+AB41*(AC42-AC41)/2)^2 -> 0.002768361583 | AI41: =AD41*5+AI40 -> 73.15104298 | AK41: 0.5686813854
P42: 165 | Q42: =(PI()^2*I$2*COS(PI()*P42/180)/900+SQRT(2)*PI()^2*I$2^2*(4*(2*J$2^2-I$2^2)*COS(PI()*P42/90)+I$2^2*(COS(PI()*P42/45)+3))/(3600*(I$2^2*COS(PI()*P42/90)+2*J$2^2-I$2^2)^(3/2)))/Q$7 -> -0.5685909153 | S42: =Q42-COS(P42*PI()/180)*H$2/100/Q$6 -> -0.1884542728 | T42: =SIN(P42*PI()/180)*H$2/100/Q$6 -> 0.1018573064 | U42: =SQRT(SUMSQ(S42,T42)) -> 0.2142193357 | V42: =(U42-U41)/U42*100 -> -12.09901455 | W42: =DEGREES(ATAN2(S42,T42)) -> 151.6093024 | X42: =IF(DEGREES(ATAN2(S42,T42))<0,360+DEGREES(ATAN2(S42,T42)),DEGREES(ATAN2(S42,T42))) -> 151.6093024 | Y42: =Y41+(S42*(T42-T41)/2+S42*(T43-T42)/2)^2 -> 0.002725099671 | Z42: =U42*5+Z41 -> 72.5256595 | AB42: =Q42-COS(P42*PI()/180)*H$7/100/Q$6 -> -0.1124269443 | AC42: =SIN(P42*PI()/180)*H$7/100/Q$6 -> 0.1222287676 | AD42: =SQRT(SUMSQ(AB42,AC42)) -> 0.1660713384 | AE42: =(AD42-AD41)/AD42*100 -> -22.9487939 | AF42: =DEGREES(ATAN2(AB42,AC42)) -> 132.6080837 | AG42: =IF(DEGREES(ATAN2(AB42,AC42))<0,360+DEGREES(ATAN2(AB42,AC42)),DEGREES(ATAN2(AB42,AC42))) -> 132.6080837 | AH42: =AH41+(AB42*(AC42-AC41)/2+AB42*(AC43-AC42)/2)^2 -> 0.002788340631 | AI42: =AD42*5+AI41 -> 73.98139968 | AK42: 0.5685909153
P43: 170 | Q43: =(PI()^2*I$2*COS(PI()*P43/180)/900+SQRT(2)*PI()^2*I$2^2*(4*(2*J$2^2-I$2^2)*COS(PI()*P43/90)+I$2^2*(COS(PI()*P43/45)+3))/(3600*(I$2^2*COS(PI()*P43/90)+2*J$2^2-I$2^2)^(3/2)))/Q$7 -> -0.5682731256 | S43: =Q43-COS(P43*PI()/180)*H$2/100/Q$6 -> -0.1807055687 | T43: =SIN(P43*PI()/180)*H$2/100/Q$6 -> 0.06833861713 | U43: =SQRT(SUMSQ(S43,T43)) -> 0.1931959346 | V43: =(U43-U42)/U43*100 -> -10.8819066 | W43: =DEGREES(ATAN2(S43,T43)) -> 159.2845551 | X43: =IF(DEGREES(ATAN2(S43,T43))<0,360+DEGREES(ATAN2(S43,T43)),DEGREES(ATAN2(S43,T43))) -> 159.2845551 | Y43: =Y42+(S43*(T43-T42)/2+S43*(T44-T43)/2)^2 -> 0.002762358561 | Z43: =U43*5+Z42 -> 73.49163917 | AB43: =Q43-COS(P43*PI()/180)*H$7/100/Q$6 -> -0.1031920573 | AC43: =SIN(P43*PI()/180)*H$7/100/Q$6 -> 0.08200634056 | AD43: =SQRT(SUMSQ(AB43,AC43)) -> 0.1318091066 | AE43: =(AD43-AD42)/AD43*100 -> -25.99382754 | AF43: =DEGREES(ATAN2(AB43,AC43)) -> 141.5259661 | AG43: =IF(DEGREES(ATAN2(AB43,AC43))<0,360+DEGREES(ATAN2(AB43,AC43)),DEGREES(ATAN2(AB43,AC43))) -> 141.5259661 | AH43: =AH42+(AB43*(AC43-AC42)/2+AB43*(AC44-AC43)/2)^2 -> 0.002805836756 | AI43: =AD43*5+AI42 -> 74.64044521 | AK43: 0.5682731256
P44: 175 | Q44: =(PI()^2*I$2*COS(PI()*P44/180)/900+SQRT(2)*PI()^2*I$2^2*(4*(2*J$2^2-I$2^2)*COS(PI()*P44/90)+I$2^2*(COS(PI()*P44/45)+3))/(3600*(I$2^2*COS(PI()*P44/90)+2*J$2^2-I$2^2)^(3/2)))/Q$7 -> -0.5679812085 | S44: =Q44-COS(P44*PI()/180)*H$2/100/Q$6 -> -0.1759323602 | T44: =SIN(P44*PI()/180)*H$2/100/Q$6 -> 0.03429982978 | U44: =SQRT(SUMSQ(S44,T44)) -> 0.1792447313 | V44: =(U44-U43)/U44*100 -> -7.78332686 | W44: =DEGREES(ATAN2(S44,T44)) -> 168.9679811 | X44: =IF(DEGREES(ATAN2(S44,T44))<0,360+DEGREES(ATAN2(S44,T44)),DEGREES(ATAN2(S44,T44))) -> 168.9679811 | Y44: =Y43+(S44*(T44-T43)/2+S44*(T45-T44)/2)^2 -> 0.002798496538 | Z44: =U44*5+Z43 -> 74.38786283 | AB44: =Q44-COS(P44*PI()/180)*H$7/100/Q$6 -> -0.09752259055 | AC44: =SIN(P44*PI()/180)*H$7/100/Q$6 -> 0.04115979573 | AD44: =SQRT(SUMSQ(AB44,AC44)) -> 0.1058526544 | AE44: =(AD44-AD43)/AD44*100 -> -24.52130491 | AF44: =DEGREES(ATAN2(AB44,AC44)) -> 157.1176308 | AG44: =IF(DEGREES(ATAN2(AB44,AC44))<0,360+DEGREES(ATAN2(AB44,AC44)),DEGREES(ATAN2(AB44,AC44))) -> 157.1176308 | AH44: =AH43+(AB44*(AC44-AC43)/2+AB44*(AC45-AC44)/2)^2 -> 0.002821826641 | AI44: =AD44*5+AI43 -> 75.16970848 | AK44: 0.5679812085
P45: 180 | Q45: =(PI()^2*I$2*COS(PI()*P45/180)/900+SQRT(2)*PI()^2*I$2^2*(4*(2*J$2^2-I$2^2)*COS(PI()*P45/90)+I$2^2*(COS(PI()*P45/45)+3))/(3600*(I$2^2*COS(PI()*P45/90)+2*J$2^2-I$2^2)^(3/2)))/Q$7 -> -0.567867036 | S45: =Q45-COS(P45*PI()/180)*H$2/100/Q$6 -> -0.1743206248 | T45: =SIN(P45*PI()/180)*H$2/100/Q$6 -> 4.819553528e-17 | U45: =SQRT(SUMSQ(S45,T45)) -> 0.1743206248 | V45: =(U45-U44)/U45*100 -> -2.824741185 | W45: =DEGREES(ATAN2(S45,T45)) -> 180 | X45: =IF(DEGREES(ATAN2(S45,T45))<0,360+DEGREES(ATAN2(S45,T45)),DEGREES(ATAN2(S45,T45))) -> 180 | Y45: =Y44+(S45*(T45-T44)/2+S45*(T46-T45)/2)^2 -> 0.002834246985 | Z45: =U45*5+Z44 -> 75.25946595 | AB45: =Q45-COS(P45*PI()/180)*H$7/100/Q$6 -> -0.09561134255 | AC45: =SIN(P45*PI()/180)*H$7/100/Q$6 -> 5.783464234e-17 | AD45: =SQRT(SUMSQ(AB45,AC45)) -> 0.09561134255 | AE45: =(AD45-AD44)/AD45*100 -> -10.71139847 | AF45: =DEGREES(ATAN2(AB45,AC45)) -> 180 | AG45: =IF(DEGREES(ATAN2(AB45,AC45))<0,360+DEGREES(ATAN2(AB45,AC45)),DEGREES(ATAN2(AB45,AC45))) -> 180 | AH45: =AH44+(AB45*(AC45-AC44)/2+AB45*(AC46-AC45)/2)^2 -> 0.002837313568 | AI45: =AD45*5+AI44 -> 75.64776519 | AK45: 0.567867036
P46: 185 | Q46: =(PI()^2*I$2*COS(PI()*P46/180)/900+SQRT(2)*PI()^2*I$2^2*(4*(2*J$2^2-I$2^2)*COS(PI()*P46/90)+I$2^2*(COS(PI()*P46/45)+3))/(3600*(I$2^2*COS(PI()*P46/90)+2*J$2^2-I$2^2)^(3/2)))/Q$7 -> -0.5679812085 | S46: =Q46-COS(P46*PI()/180)*H$2/100/Q$6 -> -0.1759323602 | T46: =SIN(P46*PI()/180)*H$2/100/Q$6 -> -0.03429982978 | U46: =SQRT(SUMSQ(S46,T46)) -> 0.1792447313 | V46: =(U46-U45)/U46*100 -> 2.747141547 | W46: =DEGREES(ATAN2(S46,T46)) -> -168.9679811 | X46: =IF(DEGREES(ATAN2(S46,T46))<0,360+DEGREES(ATAN2(S46,T46)),DEGREES(ATAN2(S46,T46))) -> 191.0320189 | Z46: =U46*5+Z45 -> 76.15568961 | AB46: =Q46-COS(P46*PI()/180)*H$7/100/Q$6 -> -0.09752259055 | AC46: =SIN(P46*PI()/180)*H$7/100/Q$6 -> -0.04115979573 | AD46: =SQRT(SUMSQ(AB46,AC46)) -> 0.1058526544 | AE46: =(AD46-AD45)/AD46*100 -> 9.675063833 | AF46: =DEGREES(ATAN2(AB46,AC46)) -> -157.1176308 | AG46: =IF(DEGREES(ATAN2(AB46,AC46))<0,360+DEGREES(ATAN2(AB46,AC46)),DEGREES(ATAN2(AB46,AC46))) -> 202.8823692 | AI46: =AD46*5+AI45 -> 76.17702847 | AK46: 0.5679812085
P47: 190 | Q47: =(PI()^2*I$2*COS(PI()*P47/180)/900+SQRT(2)*PI()^2*I$2^2*(4*(2*J$2^2-I$2^2)*COS(PI()*P47/90)+I$2^2*(COS(PI()*P47/45)+3))/(3600*(I$2^2*COS(PI()*P47/90)+2*J$2^2-I$2^2)^(3/2)))/Q$7 -> -0.5682731256 | S47: =Q47-COS(P47*PI()/180)*H$2/100/Q$6 -> -0.1807055687 | T47: =SIN(P47*PI()/180)*H$2/100/Q$6 -> -0.06833861713 | U47: =SQRT(SUMSQ(S47,T47)) -> 0.1931959346 | V47: =(U47-U46)/U47*100 -> 7.221271682 | W47: =DEGREES(ATAN2(S47,T47)) -> -159.2845551 | X47: =IF(DEGREES(ATAN2(S47,T47))<0,360+DEGREES(ATAN2(S47,T47)),DEGREES(ATAN2(S47,T47))) -> 200.7154449 | Z47: =U47*5+Z46 -> 77.12166928 | AB47: =Q47-COS(P47*PI()/180)*H$7/100/Q$6 -> -0.1031920573 | AC47: =SIN(P47*PI()/180)*H$7/100/Q$6 -> -0.08200634056 | AD47: =SQRT(SUMSQ(AB47,AC47)) -> 0.1318091066 | AE47: =(AD47-AD46)/AD47*100 -> 19.69245739 | AF47: =DEGREES(ATAN2(AB47,AC47)) -> -141.5259661 | AG47: =IF(DEGREES(ATAN2(AB47,AC47))<0,360+DEGREES(ATAN2(AB47,AC47)),DEGREES(ATAN2(AB47,AC47))) -> 218.4740339 | AI47: =AD47*5+AI46 -> 76.836074 | AK47: 0.5682731256
P48: 195 | Q48: =(PI()^2*I$2*COS(PI()*P48/180)/900+SQRT(2)*PI()^2*I$2^2*(4*(2*J$2^2-I$2^2)*COS(PI()*P48/90)+I$2^2*(COS(PI()*P48/45)+3))/(3600*(I$2^2*COS(PI()*P48/90)+2*J$2^2-I$2^2)^(3/2)))/Q$7 -> -0.5685909153 | S48: =Q48-COS(P48*PI()/180)*H$2/100/Q$6 -> -0.1884542728 | T48: =SIN(P48*PI()/180)*H$2/100/Q$6 -> -0.1018573064 | U48: =SQRT(SUMSQ(S48,T48)) -> 0.2142193357 | V48: =(U48-U47)/U48*100 -> 9.813960573 | W48: =DEGREES(ATAN2(S48,T48)) -> -151.6093024 | X48: =IF(DEGREES(ATAN2(S48,T48))<0,360+DEGREES(ATAN2(S48,T48)),DEGREES(ATAN2(S48,T48))) -> 208.3906976 | Z48: =U48*5+Z47 -> 78.19276596 | AB48: =Q48-COS(P48*PI()/180)*H$7/100/Q$6 -> -0.1124269443 | AC48: =SIN(P48*PI()/180)*H$7/100/Q$6 -> -0.1222287676 | AD48: =SQRT(SUMSQ(AB48,AC48)) -> 0.1660713384 | AE48: =(AD48-AD47)/AD48*100 -> 20.63103252 | AF48: =DEGREES(ATAN2(AB48,AC48)) -> -132.6080837 | AG48: =IF(DEGREES(ATAN2(AB48,AC48))<0,360+DEGREES(ATAN2(AB48,AC48)),DEGREES(ATAN2(AB48,AC48))) -> 227.3919163 | AI48: =AD48*5+AI47 -> 77.66643069 | AK48: 0.5685909153
P49: 200 | Q49: =(PI()^2*I$2*COS(PI()*P49/180)/900+SQRT(2)*PI()^2*I$2^2*(4*(2*J$2^2-I$2^2)*COS(PI()*P49/90)+I$2^2*(COS(PI()*P49/45)+3))/(3600*(I$2^2*COS(PI()*P49/90)+2*J$2^2-I$2^2)^(3/2)))/Q$7 -> -0.5686813854 | S49: =Q49-COS(P49*PI()/180)*H$2/100/Q$6 -> -0.1988687268 | T49: =SIN(P49*PI()/180)*H$2/100/Q$6 -> -0.1346008 | U49: =SQRT(SUMSQ(S49,T49)) -> 0.2401377643 | V49: =(U49-U48)/U49*100 -> 10.79314979 | W49: =DEGREES(ATAN2(S49,T49)) -> -145.9085846 | X49: =IF(DEGREES(ATAN2(S49,T49))<0,360+DEGREES(ATAN2(S49,T49)),DEGREES(ATAN2(S49,T49))) -> 214.0914154 | Z49: =U49*5+Z48 -> 79.39345478 | AB49: =Q49-COS(P49*PI()/180)*H$7/100/Q$6 -> -0.1249061951 | AC49: =SIN(P49*PI()/180)*H$7/100/Q$6 -> -0.16152096 | AD49: =SQRT(SUMSQ(AB49,AC49)) -> 0.2041827076 | AE49: =(AD49-AD48)/AD49*100 -> 18.66532657 | AF49: =DEGREES(ATAN2(AB49,AC49)) -> -127.7152333 | AG49: =IF(DEGREES(ATAN2(AB49,AC49))<0,360+DEGREES(ATAN2(AB49,AC49)),DEGREES(ATAN2(AB49,AC49))) -> 232.2847667 | AI49: =AD49*5+AI48 -> 78.68734423 | AK49: 0.5686813854
P50: 205 | Q50: =(PI()^2*I$2*COS(PI()*P50/180)/900+SQRT(2)*PI()^2*I$2^2*(4*(2*J$2^2-I$2^2)*COS(PI()*P50/90)+I$2^2*(COS(PI()*P50/45)+3))/(3600*(I$2^2*COS(PI()*P50/90)+2*J$2^2-I$2^2)^(3/2)))/Q$7 -> -0.568190484 | S50: =Q50-COS(P50*PI()/180)*H$2/100/Q$6 -> -0.211516307 | T50: =SIN(P50*PI()/180)*H$2/100/Q$6 -> -0.1663199002 | U50: =SQRT(SUMSQ(S50,T50)) -> 0.269075189 | V50: =(U50-U49)/U50*100 -> 10.75440094 | W50: =DEGREES(ATAN2(S50,T50)) -> -141.8212553 | X50: =IF(DEGREES(ATAN2(S50,T50))<0,360+DEGREES(ATAN2(S50,T50)),DEGREES(ATAN2(S50,T50))) -> 218.1787447 | Z50: =U50*5+Z49 -> 80.73883073 | AB50: =Q50-COS(P50*PI()/180)*H$7/100/Q$6 -> -0.1401814716 | AC50: =SIN(P50*PI()/180)*H$7/100/Q$6 -> -0.1995838803 | AD50: =SQRT(SUMSQ(AB50,AC50)) -> 0.2438945884 | AE50: =(AD50-AD49)/AD50*100 -> 16.2823952 | AF50: =DEGREES(ATAN2(AB50,AC50)) -> -125.083004 | AG50: =IF(DEGREES(ATAN2(AB50,AC50))<0,360+DEGREES(ATAN2(AB50,AC50)),DEGREES(ATAN2(AB50,AC50))) -> 234.916996 | AI50: =AD50*5+AI49 -> 79.90681717 | AK50: 0.568190484
P51: 210 | Q51: =(PI()^2*I$2*COS(PI()*P51/180)/900+SQRT(2)*PI()^2*I$2^2*(4*(2*J$2^2-I$2^2)*COS(PI()*P51/90)+I$2^2*(COS(PI()*P51/45)+3))/(3600*(I$2^2*COS(PI()*P51/90)+2*J$2^2-I$2^2)^(3/2)))/Q$7 -> -0.566665056 | S51: =Q51-COS(P51*PI()/180)*H$2/100/Q$6 -> -0.2258438663 | T51: =SIN(P51*PI()/180)*H$2/100/Q$6 -> -0.1967732056 | U51: =SQRT(SUMSQ(S51,T51)) -> 0.2995415604 | V51: =(U51-U50)/U51*100 -> 10.17099975 | W51: =DEGREES(ATAN2(S51,T51)) -> -138.9350198 | X51: =IF(DEGREES(ATAN2(S51,T51))<0,360+DEGREES(ATAN2(S51,T51)),DEGREES(ATAN2(S51,T51))) -> 221.0649802 | Z51: =U51*5+Z50 -> 82.23653853 | AB51: =Q51-COS(P51*PI()/180)*H$7/100/Q$6 -> -0.1576796284 | AC51: =SIN(P51*PI()/180)*H$7/100/Q$6 -> -0.2361278467 | AD51: =SQRT(SUMSQ(AB51,AC51)) -> 0.2839352483 | AE51: =(AD51-AD50)/AD51*100 -> 14.10203915 | AF51: =DEGREES(ATAN2(AB51,AC51)) -> -123.7339004 | AG51: =IF(DEGREES(ATAN2(AB51,AC51))<0,360+DEGREES(ATAN2(AB51,AC51)),DEGREES(ATAN2(AB51,AC51))) -> 236.2660996 | AI51: =AD51*5+AI50 -> 81.32649341 | AK51: 0.566665056
P52: 215 | Q52: =(PI()^2*I$2*COS(PI()*P52/180)/900+SQRT(2)*PI()^2*I$2^2*(4*(2*J$2^2-I$2^2)*COS(PI()*P52/90)+I$2^2*(COS(PI()*P52/45)+3))/(3600*(I$2^2*COS(PI()*P52/90)+2*J$2^2-I$2^2)^(3/2)))/Q$7 -> -0.5635569425 | S52: =Q52-COS(P52*PI()/180)*H$2/100/Q$6 -> -0.2411825952 | T52: =SIN(P52*PI()/180)*H$2/100/Q$6 -> -0.2257289481 | U52: =SQRT(SUMSQ(S52,T52)) -> 0.3303371039 | V52: =(U52-U51)/U52*100 -> 9.32245975 | W52: =DEGREES(ATAN2(S52,T52)) -> -136.8956603 | X52: =IF(DEGREES(ATAN2(S52,T52))<0,360+DEGREES(ATAN2(S52,T52)),DEGREES(ATAN2(S52,T52))) -> 223.1043397 | Z52: =U52*5+Z51 -> 83.88822405 | AB52: =Q52-COS(P52*PI()/180)*H$7/100/Q$6 -> -0.1767077257 | AC52: =SIN(P52*PI()/180)*H$7/100/Q$6 -> -0.2708747377 | AD52: =SQRT(SUMSQ(AB52,AC52)) -> 0.3234172906 | AE52: =(AD52-AD51)/AD52*100 -> 12.20777104 | AF52: =DEGREES(ATAN2(AB52,AC52)) -> -123.1188042 | AG52: =IF(DEGREES(ATAN2(AB52,AC52))<0,360+DEGREES(ATAN2(AB52,AC52)),DEGREES(ATAN2(AB52,AC52))) -> 236.8811958 | AI52: =AD52*5+AI51 -> 82.94357986 | AK52: 0.5635569425
P53: 220 | Q53: =(PI()^2*I$2*COS(PI()*P53/180)/900+SQRT(2)*PI()^2*I$2^2*(4*(2*J$2^2-I$2^2)*COS(PI()*P53/90)+I$2^2*(COS(PI()*P53/45)+3))/(3600*(I$2^2*COS(PI()*P53/90)+2*J$2^2-I$2^2)^(3/2)))/Q$7 -> -0.5582306538 | S53: =Q53-COS(P53*PI()/180)*H$2/100/Q$6 -> -0.2567566124 | T53: =SIN(P53*PI()/180)*H$2/100/Q$6 -> -0.252966757 | U53: =SQRT(SUMSQ(S53,T53)) -> 0.3604388133 | V53: =(U53-U52)/U53*100 -> 8.351406191 | W53: =DEGREES(ATAN2(S53,T53)) -> -135.4259933 | X53: =IF(DEGREES(ATAN2(S53,T53))<0,360+DEGREES(ATAN2(S53,T53)),DEGREES(ATAN2(S53,T53))) -> 224.5740067 | Z53: =U53*5+Z52 -> 85.69041811 | AB53: =Q53-COS(P53*PI()/180)*H$7/100/Q$6 -> -0.1964618041 | AC53: =SIN(P53*PI()/180)*H$7/100/Q$6 -> -0.3035601084 | AD53: =SQRT(SUMSQ(AB53,AC53)) -> 0.3615881357 | AE53: =(AD53-AD52)/AD53*100 -> 10.5564429 | AF53: =DEGREES(ATAN2(AB53,AC53)) -> -122.9106385 | AG53: =IF(DEGREES(ATAN2(AB53,AC53))<0,360+DEGREES(ATAN2(AB53,AC53)),DEGREES(ATAN2(AB53,AC53))) -> 237.0893615 | AI53: =AD53*5+AI52 -> 84.75152054 | AK53: 0.5582306538
P54: 225 | Q54: =(PI()^2*I$2*COS(PI()*P54/180)/900+SQRT(2)*PI()^2*I$2^2*(4*(2*J$2^2-I$2^2)*COS(PI()*P54/90)+I$2^2*(COS(PI()*P54/45)+3))/(3600*(I$2^2*COS(PI()*P54/90)+2*J$2^2-I$2^2)^(3/2)))/Q$7 -> -0.5499759064 | S54: =Q54-COS(P54*PI()/180)*H$2/100/Q$6 -> -0.2716965703 | T54: =SIN(P54*PI()/180)*H$2/100/Q$6 -> -0.2782793361 | U54: =SQRT(SUMSQ(S54,T54)) -> 0.3889195485 | V54: =(U54-U53)/U54*100 -> 7.323040292 | W54: =DEGREES(ATAN2(S54,T54)) -> -134.3142487 | X54: =IF(DEGREES(ATAN2(S54,T54))<0,360+DEGREES(ATAN2(S54,T54)),DEGREES(ATAN2(S54,T54))) -> 225.6857513 | Z54: =U54*5+Z53 -> 87.63501586 | AB54: =Q54-COS(P54*PI()/180)*H$7/100/Q$6 -> -0.2160407031 | AC54: =SIN(P54*PI()/180)*H$7/100/Q$6 -> -0.3339352033 | AD54: =SQRT(SUMSQ(AB54,AC54)) -> 0.3977264203 | AE54: =(AD54-AD53)/AD54*100 -> 9.086216756 | AF54: =DEGREES(ATAN2(AB54,AC54)) -> -122.9010078 | AG54: =IF(DEGREES(ATAN2(AB54,AC54))<0,360+DEGREES(ATAN2(AB54,AC54)),DEGREES(ATAN2(AB54,AC54))) -> 237.0989922 | AI54: =AD54*5+AI53 -> 86.74015264 | AK54: 0.5499759064
P55: 230 | Q55: =(PI()^2*I$2*COS(PI()*P55/180)/900+SQRT(2)*PI()^2*I$2^2*(4*(2*J$2^2-I$2^2)*COS(PI()*P55/90)+I$2^2*(COS(PI()*P55/45)+3))/(3600*(I$2^2*COS(PI()*P55/90)+2*J$2^2-I$2^2)^(3/2)))/Q$7 -> -0.538026207 | S55: =Q55-COS(P55*PI()/180)*H$2/100/Q$6 -> -0.2850594501 | T55: =SIN(P55*PI()/180)*H$2/100/Q$6 -> -0.3014740414 | U55: =SQRT(SUMSQ(S55,T55)) -> 0.414904191 | V55: =(U55-U54)/U55*100 -> 6.262805498 | W55: =DEGREES(ATAN2(S55,T55)) -> -133.3969519 | X55: =IF(DEGREES(ATAN2(S55,T55))<0,360+DEGREES(ATAN2(S55,T55)),DEGREES(ATAN2(S55,T55))) -> 226.6030481 | Z55: =U55*5+Z54 -> 89.70953681 | AB55: =Q55-COS(P55*PI()/180)*H$7/100/Q$6 -> -0.2344660987 | AC55: =SIN(P55*PI()/180)*H$7/100/Q$6 -> -0.3617688497 | AD55: =SQRT(SUMSQ(AB55,AC55)) -> 0.4311044561 | AE55: =(AD55-AD54)/AD55*100 -> 7.742447403 | AF55: =DEGREES(ATAN2(AB55,AC55)) -> -122.9476859 | AG55: =IF(DEGREES(ATAN2(AB55,AC55))<0,360+DEGREES(ATAN2(AB55,AC55)),DEGREES(ATAN2(AB55,AC55))) -> 237.0523141 | AI55: =AD55*5+AI54 -> 88.89567493 | AK55: 0.538026207
P56: 235 | Q56: =(PI()^2*I$2*COS(PI()*P56/180)/900+SQRT(2)*PI()^2*I$2^2*(4*(2*J$2^2-I$2^2)*COS(PI()*P56/90)+I$2^2*(COS(PI()*P56/45)+3))/(3600*(I$2^2*COS(PI()*P56/90)+2*J$2^2-I$2^2)^(3/2)))/Q$7 -> -0.521584336 | S56: =Q56-COS(P56*PI()/180)*H$2/100/Q$6 -> -0.2958553879 | T56: =SIN(P56*PI()/180)*H$2/100/Q$6 -> -0.3223743473 | U56: =SQRT(SUMSQ(S56,T56)) -> 0.437556431 | V56: =(U56-U55)/U56*100 -> 5.17698711 | W56: =DEGREES(ATAN2(S56,T56)) -> -132.5438037 | X56: =IF(DEGREES(ATAN2(S56,T56))<0,360+DEGREES(ATAN2(S56,T56)),DEGREES(ATAN2(S56,T56))) -> 227.4561963 | Z56: =U56*5+Z55 -> 91.89731897 | AB56: =Q56-COS(P56*PI()/180)*H$7/100/Q$6 -> -0.2507095983 | AC56: =SIN(P56*PI()/180)*H$7/100/Q$6 -> -0.3868492167 | AD56: =SQRT(SUMSQ(AB56,AC56)) -> 0.4609854869 | AE56: =(AD56-AD55)/AD56*100 -> 6.481989503 | AF56: =DEGREES(ATAN2(AB56,AC56)) -> -122.9465028 | AG56: =IF(DEGREES(ATAN2(AB56,AC56))<0,360+DEGREES(ATAN2(AB56,AC56)),DEGREES(ATAN2(AB56,AC56))) -> 237.0534972 | AI56: =AD56*5+AI55 -> 91.20060236 | AK56: 0.521584336
P57: 240 | Q57: =(PI()^2*I$2*COS(PI()*P57/180)/900+SQRT(2)*PI()^2*I$2^2*(4*(2*J$2^2-I$2^2)*COS(PI()*P57/90)+I$2^2*(COS(PI()*P57/45)+3))/(3600*(I$2^2*COS(PI()*P57/90)+2*J$2^2-I$2^2)^(3/2)))/Q$7 -> -0.4998550051 | S57: =Q57-COS(P57*PI()/180)*H$2/100/Q$6 -> -0.3030817995 | T57: =SIN(P57*PI()/180)*H$2/100/Q$6 -> -0.3408211897 | U57: =SQRT(SUMSQ(S57,T57)) -> 0.4560895312 | V57: =(U57-U56)/U57*100 -> 4.063478534 | W57: =DEGREES(ATAN2(S57,T57)) -> -131.6457107 | X57: =IF(DEGREES(ATAN2(S57,T57))<0,360+DEGREES(ATAN2(S57,T57)),DEGREES(ATAN2(S57,T57))) -> 228.3542893 | Z57: =U57*5+Z56 -> 94.17776662 | AB57: =Q57-COS(P57*PI()/180)*H$7/100/Q$6 -> -0.2637271584 | AC57: =SIN(P57*PI()/180)*H$7/100/Q$6 -> -0.4089854276 | AD57: =SQRT(SUMSQ(AB57,AC57)) -> 0.486642676 | AE57: =(AD57-AD56)/AD57*100 -> 5.272285042 | AF57: =DEGREES(ATAN2(AB57,AC57)) -> -122.8152443 | AG57: =IF(DEGREES(ATAN2(AB57,AC57))<0,360+DEGREES(ATAN2(AB57,AC57)),DEGREES(ATAN2(AB57,AC57))) -> 237.1847557 | AI57: =AD57*5+AI56 -> 93.63381574 | AK57: 0.4998550051
P58: 245 | Q58: =(PI()^2*I$2*COS(PI()*P58/180)/900+SQRT(2)*PI()^2*I$2^2*(4*(2*J$2^2-I$2^2)*COS(PI()*P58/90)+I$2^2*(COS(PI()*P58/45)+3))/(3600*(I$2^2*COS(PI()*P58/90)+2*J$2^2-I$2^2)^(3/2)))/Q$7 -> -0.4720841444 | S58: =Q58-COS(P58*PI()/180)*H$2/100/Q$6 -> -0.3057642442 | T58: =SIN(P58*PI()/180)*H$2/100/Q$6 -> -0.356674177 | U58: =SQRT(SUMSQ(S58,T58)) -> 0.4697959574 | V58: =(U58-U57)/U58*100 -> 2.917527482 | W58: =DEGREES(ATAN2(S58,T58)) -> -130.6053246 | X58: =IF(DEGREES(ATAN2(S58,T58))<0,360+DEGREES(ATAN2(S58,T58)),DEGREES(ATAN2(S58,T58))) -> 229.3946754 | Z58: =U58*5+Z57 -> 96.52674641 | AB58: =Q58-COS(P58*PI()/180)*H$7/100/Q$6 -> -0.2725002642 | AC58: =SIN(P58*PI()/180)*H$7/100/Q$6 -> -0.4280090125 | AD58: =SQRT(SUMSQ(AB58,AC58)) -> 0.5073934457 | AE58: =(AD58-AD57)/AD58*100 -> 4.089680285 | AF58: =DEGREES(ATAN2(AB58,AC58)) -> -122.4836621 | AG58: =IF(DEGREES(ATAN2(AB58,AC58))<0,360+DEGREES(ATAN2(AB58,AC58)),DEGREES(ATAN2(AB58,AC58))) -> 237.5163379 | AI58: =AD58*5+AI57 -> 96.17078297 | AK58: 0.4720841444
P59: 250 | Q59: =(PI()^2*I$2*COS(PI()*P59/180)/900+SQRT(2)*PI()^2*I$2^2*(4*(2*J$2^2-I$2^2)*COS(PI()*P59/90)+I$2^2*(COS(PI()*P59/45)+3))/(3600*(I$2^2*COS(PI()*P59/90)+2*J$2^2-I$2^2)^(3/2)))/Q$7 -> -0.4376032823 | S59: =Q59-COS(P59*PI()/180)*H$2/100/Q$6 -> -0.3030024823 | T59: =SIN(P59*PI()/180)*H$2/100/Q$6 -> -0.3698126586 | U59: =SQRT(SUMSQ(S59,T59)) -> 0.4780919438 | V59: =(U59-U58)/U59*100 -> 1.735228229 | W59: =DEGREES(ATAN2(S59,T59)) -> -129.3291505 | X59: =IF(DEGREES(ATAN2(S59,T59))<0,360+DEGREES(ATAN2(S59,T59)),DEGREES(ATAN2(S59,T59))) -> 230.6708495 | Z59: =U59*5+Z58 -> 98.91720613 | AB59: =Q59-COS(P59*PI()/180)*H$7/100/Q$6 -> -0.2760823223 | AC59: =SIN(P59*PI()/180)*H$7/100/Q$6 -> -0.4437751903 | AD59: =SQRT(SUMSQ(AB59,AC59)) -> 0.522645069 | AE59: =(AD59-AD58)/AD59*100 -> 2.91816077 | AF59: =DEGREES(ATAN2(AB59,AC59)) -> -121.8866532 | AG59: =IF(DEGREES(ATAN2(AB59,AC59))<0,360+DEGREES(ATAN2(AB59,AC59)),DEGREES(ATAN2(AB59,AC59))) -> 238.1133468 | AI59: =AD59*5+AI58 -> 98.78400831 | AK59: 0.4376032823
P60: 255 | Q60: =(PI()^2*I$2*COS(PI()*P60/180)/900+SQRT(2)*PI()^2*I$2^2*(4*(2*J$2^2-I$2^2)*COS(PI()*P60/90)+I$2^2*(COS(PI()*P60/45)+3))/(3600*(I$2^2*COS(PI()*P60/90)+2*J$2^2-I$2^2)^(3/2)))/Q$7 -> -0.3958764376 | S60: =Q60-COS(P60*PI()/180)*H$2/100/Q$6 -> -0.2940191313 | T60: =SIN(P60*PI()/180)*H$2/100/Q$6 -> -0.3801366424 | U60: =SQRT(SUMSQ(S60,T60)) -> 0.4805737368 | V60: =(U60-U59)/U60*100 -> 0.5164229362 | W60: =DEGREES(ATAN2(S60,T60)) -> -127.7203896 | X60: =IF(DEGREES(ATAN2(S60,T60))<0,360+DEGREES(ATAN2(S60,T60)),DEGREES(ATAN2(S60,T60))) -> 232.2796104 | Z60: =U60*5+Z59 -> 101.3200748 | AB60: =Q60-COS(P60*PI()/180)*H$7/100/Q$6 -> -0.27364767 | AC60: =SIN(P60*PI()/180)*H$7/100/Q$6 -> -0.4561639709 | AD60: =SQRT(SUMSQ(AB60,AC60)) -> 0.5319479445 | AE60: =(AD60-AD59)/AD60*100 -> 1.748831925 | AF60: =DEGREES(ATAN2(AB60,AC60)) -> -120.9590727 | AG60: =IF(DEGREES(ATAN2(AB60,AC60))<0,360+DEGREES(ATAN2(AB60,AC60)),DEGREES(ATAN2(AB60,AC60))) -> 239.0409273 | AI60: =AD60*5+AI59 -> 101.443748 | AK60: 0.3958764376
P61: 260 | Q61: =(PI()^2*I$2*COS(PI()*P61/180)/900+SQRT(2)*PI()^2*I$2^2*(4*(2*J$2^2-I$2^2)*COS(PI()*P61/90)+I$2^2*(COS(PI()*P61/45)+3))/(3600*(I$2^2*COS(PI()*P61/90)+2*J$2^2-I$2^2)^(3/2)))/Q$7 -> -0.3465460398 | S61: =Q61-COS(P61*PI()/180)*H$2/100/Q$6 -> -0.2782074227 | T61: =SIN(P61*PI()/180)*H$2/100/Q$6 -> -0.3875675569 | U61: =SQRT(SUMSQ(S61,T61)) -> 0.4770827824 | V61: =(U61-U60)/U61*100 -> -0.7317292805 | W61: =DEGREES(ATAN2(S61,T61)) -> -125.6719003 | X61: =IF(DEGREES(ATAN2(S61,T61))<0,360+DEGREES(ATAN2(S61,T61)),DEGREES(ATAN2(S61,T61))) -> 234.3280997 | Z61: =U61*5+Z60 -> 103.7054887 | AB61: =Q61-COS(P61*PI()/180)*H$7/100/Q$6 -> -0.2645396993 | AC61: =SIN(P61*PI()/180)*H$7/100/Q$6 -> -0.4650810683 | AD61: =SQRT(SUMSQ(AB61,AC61)) -> 0.5350529437 | AE61: =(AD61-AD60)/AD61*100 -> 0.5803162586 | AF61: =DEGREES(ATAN2(AB61,AC61)) -> -119.6313667 | AG61: =IF(DEGREES(ATAN2(AB61,AC61))<0,360+DEGREES(ATAN2(AB61,AC61)),DEGREES(ATAN2(AB61,AC61))) -> 240.3686333 | AI61: =AD61*5+AI60 -> 104.1190128 | AK61: 0.3465460398
P62: 265 | Q62: =(PI()^2*I$2*COS(PI()*P62/180)/900+SQRT(2)*PI()^2*I$2^2*(4*(2*J$2^2-I$2^2)*COS(PI()*P62/90)+I$2^2*(COS(PI()*P62/45)+3))/(3600*(I$2^2*COS(PI()*P62/90)+2*J$2^2-I$2^2)^(3/2)))/Q$7 -> -0.2894738198 | S62: =Q62-COS(P62*PI()/180)*H$2/100/Q$6 -> -0.2551739901 | T62: =SIN(P62*PI()/180)*H$2/100/Q$6 -> -0.3920488483 | U62: =SQRT(SUMSQ(S62,T62)) -> 0.4677777941 | V62: =(U62-U61)/U62*100 -> -1.989189821 | W62: =DEGREES(ATAN2(S62,T62)) -> -123.0590144 | X62: =IF(DEGREES(ATAN2(S62,T62))<0,360+DEGREES(ATAN2(S62,T62)),DEGREES(ATAN2(S62,T62))) -> 236.9409856 | Z62: =U62*5+Z61 -> 106.0443777 | AB62: =Q62-COS(P62*PI()/180)*H$7/100/Q$6 -> -0.2483140241 | AC62: =SIN(P62*PI()/180)*H$7/100/Q$6 -> -0.470458618 | AD62: =SQRT(SUMSQ(AB62,AC62)) -> 0.5319691399 | AE62: =(AD62-AD61)/AD62*100 -> -0.5796960066 | AF62: =DEGREES(ATAN2(AB62,AC62)) -> -117.8256605 | AG62: =IF(DEGREES(ATAN2(AB62,AC62))<0,360+DEGREES(ATAN2(AB62,AC62)),DEGREES(ATAN2(AB62,AC62))) -> 242.1743395 | AI62: =AD62*5+AI61 -> 106.7788585 | AK62: 0.2894738198
P63: 270 | Q63: =(PI()^2*I$2*COS(PI()*P63/180)/900+SQRT(2)*PI()^2*I$2^2*(4*(2*J$2^2-I$2^2)*COS(PI()*P63/90)+I$2^2*(COS(PI()*P63/45)+3))/(3600*(I$2^2*COS(PI()*P63/90)+2*J$2^2-I$2^2)^(3/2)))/Q$7 -> -0.2247725667 | S63: =Q63-COS(P63*PI()/180)*H$2/100/Q$6 -> -0.2247725667 | T63: =SIN(P63*PI()/180)*H$2/100/Q$6 -> -0.3935464112 | U63: =SQRT(SUMSQ(S63,T63)) -> 0.4532124055 | V63: =(U63-U62)/U63*100 -> -3.213810658 | W63: =DEGREES(ATAN2(S63,T63)) -> -119.7326868 | X63: =IF(DEGREES(ATAN2(S63,T63))<0,360+DEGREES(ATAN2(S63,T63)),DEGREES(ATAN2(S63,T63))) -> 240.2673132 | Z63: =U63*5+Z62 -> 108.3104397 | AB63: =Q63-COS(P63*PI()/180)*H$7/100/Q$6 -> -0.2247725667 | AC63: =SIN(P63*PI()/180)*H$7/100/Q$6 -> -0.4722556935 | AD63: =SQRT(SUMSQ(AB63,AC63)) -> 0.5230183044 | AE63: =(AD63-AD62)/AD63*100 -> -1.711380922 | AF63: =DEGREES(ATAN2(AB63,AC63)) -> -115.4523568 | AG63: =IF(DEGREES(ATAN2(AB63,AC63))<0,360+DEGREES(ATAN2(AB63,AC63)),DEGREES(ATAN2(AB63,AC63))) -> 244.5476432 | AI63: =AD63*5+AI62 -> 109.39395 | AK63: 0.2247725667
P64: 275 | Q64: =(PI()^2*I$2*COS(PI()*P64/180)/900+SQRT(2)*PI()^2*I$2^2*(4*(2*J$2^2-I$2^2)*COS(PI()*P64/90)+I$2^2*(COS(PI()*P64/45)+3))/(3600*(I$2^2*COS(PI()*P64/90)+2*J$2^2-I$2^2)^(3/2)))/Q$7 -> -0.1528252038 | S64: =Q64-COS(P64*PI()/180)*H$2/100/Q$6 -> -0.1871250336 | T64: =SIN(P64*PI()/180)*H$2/100/Q$6 -> -0.3920488483 | U64: =SQRT(SUMSQ(S64,T64)) -> 0.4344169399 | V64: =(U64-U63)/U64*100 -> -4.326595933 | W64: =DEGREES(ATAN2(S64,T64)) -> -115.5151572 | X64: =IF(DEGREES(ATAN2(S64,T64))<0,360+DEGREES(ATAN2(S64,T64)),DEGREES(ATAN2(S64,T64))) -> 244.4848428 | Z64: =U64*5+Z63 -> 110.4825244 | AB64: =Q64-COS(P64*PI()/180)*H$7/100/Q$6 -> -0.1939849995 | AC64: =SIN(P64*PI()/180)*H$7/100/Q$6 -> -0.470458618 | AD64: =SQRT(SUMSQ(AB64,AC64)) -> 0.5088825908 | AE64: =(AD64-AD63)/AD64*100 -> -2.777794686 | AF64: =DEGREES(ATAN2(AB64,AC64)) -> -112.4079061 | AG64: =IF(DEGREES(ATAN2(AB64,AC64))<0,360+DEGREES(ATAN2(AB64,AC64)),DEGREES(ATAN2(AB64,AC64))) -> 247.5920939 | AI64: =AD64*5+AI63 -> 111.9383629 | AK64: 0.1528252038
P65: 280 | Q65: =(PI()^2*I$2*COS(PI()*P65/180)/900+SQRT(2)*PI()^2*I$2^2*(4*(2*J$2^2-I$2^2)*COS(PI()*P65/90)+I$2^2*(COS(PI()*P65/45)+3))/(3600*(I$2^2*COS(PI()*P65/90)+2*J$2^2-I$2^2)^(3/2)))/Q$7 -> -0.07428878622 | S65: =Q65-COS(P65*PI()/180)*H$2/100/Q$6 -> -0.1426274034 | T65: =SIN(P65*PI()/180)*H$2/100/Q$6 -> -0.3875675569 | U65: =SQRT(SUMSQ(S65,T65)) -> 0.4129784345 | V65: =(U65-U64)/U65*100 -> -5.191192459 | W65: =DEGREES(ATAN2(S65,T65)) -> -110.2039462 | X65: =IF(DEGREES(ATAN2(S65,T65))<0,360+DEGREES(ATAN2(S65,T65)),DEGREES(ATAN2(S65,T65))) -> 249.7960538 | Z65: =U65*5+Z64 -> 112.5474166 | AB65: =Q65-COS(P65*PI()/180)*H$7/100/Q$6 -> -0.1562951268 | AC65: =SIN(P65*PI()/180)*H$7/100/Q$6 -> -0.4650810683 | AD65: =SQRT(SUMSQ(AB65,AC65)) -> 0.4906409754 | AE65: =(AD65-AD64)/AD65*100 -> -3.717915202 | AF65: =DEGREES(ATAN2(AB65,AC65)) -> -108.5754356 | AG65: =IF(DEGREES(ATAN2(AB65,AC65))<0,360+DEGREES(ATAN2(AB65,AC65)),DEGREES(ATAN2(AB65,AC65))) -> 251.4245644 | AI65: =AD65*5+AI64 -> 114.3915678 | AK65: 0.07428878622
P66: 285 | Q66: =(PI()^2*I$2*COS(PI()*P66/180)/900+SQRT(2)*PI()^2*I$2^2*(4*(2*J$2^2-I$2^2)*COS(PI()*P66/90)+I$2^2*(COS(PI()*P66/45)+3))/(3600*(I$2^2*COS(PI()*P66/90)+2*J$2^2-I$2^2)^(3/2)))/Q$7 -> 0.009917411462 | S66: =Q66-COS(P66*PI()/180)*H$2/100/Q$6 -> -0.09193989489 | T66: =SIN(P66*PI()/180)*H$2/100/Q$6 -> -0.3801366424 | U66: =SQRT(SUMSQ(S66,T66)) -> 0.3910969332 | V66: =(U66-U65)/U66*100 -> -5.594904845 | W66: =DEGREES(ATAN2(S66,T66)) -> -103.5964633 | X66: =IF(DEGREES(ATAN2(S66,T66))<0,360+DEGREES(ATAN2(S66,T66)),DEGREES(ATAN2(S66,T66))) -> 256.4035367 | Z66: =U66*5+Z65 -> 114.5029013 | AB66: =Q66-COS(P66*PI()/180)*H$7/100/Q$6 -> -0.1123113562 | AC66: =SIN(P66*PI()/180)*H$7/100/Q$6 -> -0.4561639709 | AD66: =SQRT(SUMSQ(AB66,AC66)) -> 0.469786557 | AE66: =(AD66-AD65)/AD66*100 -> -4.439126272 | AF66: =DEGREES(ATAN2(AB66,AC66)) -> -103.8315927 | AG66: =IF(DEGREES(ATAN2(AB66,AC66))<0,360+DEGREES(ATAN2(AB66,AC66)),DEGREES(ATAN2(AB66,AC66))) -> 256.1684073 | AI66: =AD66*5+AI65 -> 116.7405006 | AK66: 0.009917411462
P67: 290 | Q67: =(PI()^2*I$2*COS(PI()*P67/180)/900+SQRT(2)*PI()^2*I$2^2*(4*(2*J$2^2-I$2^2)*COS(PI()*P67/90)+I$2^2*(COS(PI()*P67/45)+3))/(3600*(I$2^2*COS(PI()*P67/90)+2*J$2^2-I$2^2)^(3/2)))/Q$7 -> 0.0986388261 | S67: =Q67-COS(P67*PI()/180)*H$2/100/Q$6 -> -0.03596197387 | T67: =SIN(P67*PI()/180)*H$2/100/Q$6 -> -0.3698126586 | U67: =SQRT(SUMSQ(S67,T67)) -> 0.3715570831 | V67: =(U67-U66)/U67*100 -> -5.258909344 | W67: =DEGREES(ATAN2(S67,T67)) -> -95.55419357 | X67: =IF(DEGREES(ATAN2(S67,T67))<0,360+DEGREES(ATAN2(S67,T67)),DEGREES(ATAN2(S67,T67))) -> 264.4458064 | Z67: =U67*5+Z66 -> 116.3606867 | AB67: =Q67-COS(P67*PI()/180)*H$7/100/Q$6 -> -0.06288213386 | AC67: =SIN(P67*PI()/180)*H$7/100/Q$6 -> -0.4437751903 | AD67: =SQRT(SUMSQ(AB67,AC67)) -> 0.4482081908 | AE67: =(AD67-AD66)/AD67*100 -> -4.814362309 | AF67: =DEGREES(ATAN2(AB67,AC67)) -> -98.06501584 | AG67: =IF(DEGREES(ATAN2(AB67,AC67))<0,360+DEGREES(ATAN2(AB67,AC67)),DEGREES(ATAN2(AB67,AC67))) -> 261.9349842 | AI67: =AD67*5+AI66 -> 118.9815415 | AK67: 0.0986388261
P68: 295 | Q68: =(PI()^2*I$2*COS(PI()*P68/180)/900+SQRT(2)*PI()^2*I$2^2*(4*(2*J$2^2-I$2^2)*COS(PI()*P68/90)+I$2^2*(COS(PI()*P68/45)+3))/(3600*(I$2^2*COS(PI()*P68/90)+2*J$2^2-I$2^2)^(3/2)))/Q$7 -> 0.190525097 | S68: =Q68-COS(P68*PI()/180)*H$2/100/Q$6 -> 0.02420519676 | T68: =SIN(P68*PI()/180)*H$2/100/Q$6 -> -0.356674177 | U68: =SQRT(SUMSQ(S68,T68)) -> 0.3574945596 | V68: =(U68-U67)/U68*100 -> -3.933632875 | W68: =DEGREES(ATAN2(S68,T68)) -> -86.11765435 | X68: =IF(DEGREES(ATAN2(S68,T68))<0,360+DEGREES(ATAN2(S68,T68)),DEGREES(ATAN2(S68,T68))) -> 273.8823457 | Z68: =U68*5+Z67 -> 118.1481595 | AB68: =Q68-COS(P68*PI()/180)*H$7/100/Q$6 -> -0.009058783288 | AC68: =SIN(P68*PI()/180)*H$7/100/Q$6 -> -0.4280090125 | AD68: =SQRT(SUMSQ(AB68,AC68)) -> 0.428104866 | AE68: =(AD68-AD67)/AD68*100 -> -4.695887934 | AF68: =DEGREES(ATAN2(AB68,AC68)) -> -91.21248047 | AG68: =IF(DEGREES(ATAN2(AB68,AC68))<0,360+DEGREES(ATAN2(AB68,AC68)),DEGREES(ATAN2(AB68,AC68))) -> 268.7875195 | AI68: =AD68*5+AI67 -> 121.1220659 | AK68: 0.190525097
P69: 300 | Q69: =(PI()^2*I$2*COS(PI()*P69/180)/900+SQRT(2)*PI()^2*I$2^2*(4*(2*J$2^2-I$2^2)*COS(PI()*P69/90)+I$2^2*(COS(PI()*P69/45)+3))/(3600*(I$2^2*COS(PI()*P69/90)+2*J$2^2-I$2^2)^(3/2)))/Q$7 -> 0.2840785129 | S69: =Q69-COS(P69*PI()/180)*H$2/100/Q$6 -> 0.08730530731 | T69: =SIN(P69*PI()/180)*H$2/100/Q$6 -> -0.3408211897 | U69: =SQRT(SUMSQ(S69,T69)) -> 0.3518256671 | V69: =(U69-U68)/U69*100 -> -1.611278827 | W69: =DEGREES(ATAN2(S69,T69)) -> -75.63197332 | X69: =IF(DEGREES(ATAN2(S69,T69))<0,360+DEGREES(ATAN2(S69,T69)),DEGREES(ATAN2(S69,T69))) -> 284.3680267 | Z69: =U69*5+Z68 -> 119.9072878 | AB69: =Q69-COS(P69*PI()/180)*H$7/100/Q$6 -> 0.04795066619 | AC69: =SIN(P69*PI()/180)*H$7/100/Q$6 -> -0.4089854276 | AD69: =SQRT(SUMSQ(AB69,AC69)) -> 0.411786773 | AE69: =(AD69-AD68)/AD69*100 -> -3.962753082 | AF69: =DEGREES(ATAN2(AB69,AC69)) -> -83.31300077 | AG69: =IF(DEGREES(ATAN2(AB69,AC69))<0,360+DEGREES(ATAN2(AB69,AC69)),DEGREES(ATAN2(AB69,AC69))) -> 276.6869992 | AI69: =AD69*5+AI68 -> 123.1809997 | AK69: 0.2840785129
P70: 305 | Q70: =(PI()^2*I$2*COS(PI()*P70/180)/900+SQRT(2)*PI()^2*I$2^2*(4*(2*J$2^2-I$2^2)*COS(PI()*P70/90)+I$2^2*(COS(PI()*P70/45)+3))/(3600*(I$2^2*COS(PI()*P70/90)+2*J$2^2-I$2^2)^(3/2)))/Q$7 -> 0.3777072512 | S70: =Q70-COS(P70*PI()/180)*H$2/100/Q$6 -> 0.1519783031 | T70: =SIN(P70*PI()/180)*H$2/100/Q$6 -> -0.3223743473 | U70: =SQRT(SUMSQ(S70,T70)) -> 0.356402335 | V70: =(U70-U69)/U70*100 -> 1.284129607 | W70: =DEGREES(ATAN2(S70,T70)) -> -64.75920535 | X70: =IF(DEGREES(ATAN2(S70,T70))<0,360+DEGREES(ATAN2(S70,T70)),DEGREES(ATAN2(S70,T70))) -> 295.2407947 | Z70: =U70*5+Z69 -> 121.6892995 | AB70: =Q70-COS(P70*PI()/180)*H$7/100/Q$6 -> 0.1068325135 | AC70: =SIN(P70*PI()/180)*H$7/100/Q$6 -> -0.3868492167 | AD70: =SQRT(SUMSQ(AB70,AC70)) -> 0.401329668 | AE70: =(AD70-AD69)/AD70*100 -> -2.605614737 | AF70: =DEGREES(ATAN2(AB70,AC70)) -> -74.56194471 | AG70: =IF(DEGREES(ATAN2(AB70,AC70))<0,360+DEGREES(ATAN2(AB70,AC70)),DEGREES(ATAN2(AB70,AC70))) -> 285.4380553 | AI70: =AD70*5+AI69 -> 125.1876481 | AK70: 0.3777072512
P71: 310 | Q71: =(PI()^2*I$2*COS(PI()*P71/180)/900+SQRT(2)*PI()^2*I$2^2*(4*(2*J$2^2-I$2^2)*COS(PI()*P71/90)+I$2^2*(COS(PI()*P71/45)+3))/(3600*(I$2^2*COS(PI()*P71/90)+2*J$2^2-I$2^2)^(3/2)))/Q$7 -> 0.4697792974 | S71: =Q71-COS(P71*PI()/180)*H$2/100/Q$6 -> 0.2168125404 | T71: =SIN(P71*PI()/180)*H$2/100/Q$6 -> -0.3014740414 | U71: =SQRT(SUMSQ(S71,T71)) -> 0.3713411845 | V71: =(U71-U70)/U71*100 -> 4.02294444 | W71: =DEGREES(ATAN2(S71,T71)) -> -54.27726242 | X71: =IF(DEGREES(ATAN2(S71,T71))<0,360+DEGREES(ATAN2(S71,T71)),DEGREES(ATAN2(S71,T71))) -> 305.7227376 | Z71: =U71*5+Z70 -> 123.5460054 | AB71: =Q71-COS(P71*PI()/180)*H$7/100/Q$6 -> 0.166219189 | AC71: =SIN(P71*PI()/180)*H$7/100/Q$6 -> -0.3617688497 | AD71: =SQRT(SUMSQ(AB71,AC71)) -> 0.3981275165 | AE71: =(AD71-AD70)/AD71*100 -> -0.8043029793 | AF71: =DEGREES(ATAN2(AB71,AC71)) -> -65.32299705 | AG71: =IF(DEGREES(ATAN2(AB71,AC71))<0,360+DEGREES(ATAN2(AB71,AC71)),DEGREES(ATAN2(AB71,AC71))) -> 294.6770029 | AI71: =AD71*5+AI70 -> 127.1782857 | AK71: 0.4697792974
P72: 315 | Q72: =(PI()^2*I$2*COS(PI()*P72/180)/900+SQRT(2)*PI()^2*I$2^2*(4*(2*J$2^2-I$2^2)*COS(PI()*P72/90)+I$2^2*(COS(PI()*P72/45)+3))/(3600*(I$2^2*COS(PI()*P72/90)+2*J$2^2-I$2^2)^(3/2)))/Q$7 -> 0.5586735067 | S72: =Q72-COS(P72*PI()/180)*H$2/100/Q$6 -> 0.2803941707 | T72: =SIN(P72*PI()/180)*H$2/100/Q$6 -> -0.2782793361 | U72: =SQRT(SUMSQ(S72,T72)) -> 0.3950446555 | V72: =(U72-U71)/U72*100 -> 6.000200391 | W72: =DEGREES(ATAN2(S72,T72)) -> -44.78311032 | X72: =IF(DEGREES(ATAN2(S72,T72))<0,360+DEGREES(ATAN2(S72,T72)),DEGREES(ATAN2(S72,T72))) -> 315.2168897 | Z72: =U72*5+Z71 -> 125.5212287 | AB72: =Q72-COS(P72*PI()/180)*H$7/100/Q$6 -> 0.2247383034 | AC72: =SIN(P72*PI()/180)*H$7/100/Q$6 -> -0.3339352033 | AD72: =SQRT(SUMSQ(AB72,AC72)) -> 0.4025171115 | AE72: =(AD72-AD71)/AD72*100 -> 1.090536238 | AF72: =DEGREES(ATAN2(AB72,AC72)) -> -56.05945675 | AG72: =IF(DEGREES(ATAN2(AB72,AC72))<0,360+DEGREES(ATAN2(AB72,AC72)),DEGREES(ATAN2(AB72,AC72))) -> 303.9405433 | AI72: =AD72*5+AI71 -> 129.1908712 | AK72: 0.5586735067
P73: 320 | Q73: =(PI()^2*I$2*COS(PI()*P73/180)/900+SQRT(2)*PI()^2*I$2^2*(4*(2*J$2^2-I$2^2)*COS(PI()*P73/90)+I$2^2*(COS(PI()*P73/45)+3))/(3600*(I$2^2*COS(PI()*P73/90)+2*J$2^2-I$2^2)^(3/2)))/Q$7 -> 0.6428251767 | S73: =Q73-COS(P73*PI()/180)*H$2/100/Q$6 -> 0.3413511353 | T73: =SIN(P73*PI()/180)*H$2/100/Q$6 -> -0.252966757 | U73: =SQRT(SUMSQ(S73,T73)) -> 0.4248679532 | V73: =(U73-U72)/U73*100 -> 7.019427453 | W73: =DEGREES(ATAN2(S73,T73)) -> -36.54121583 | X73: =IF(DEGREES(ATAN2(S73,T73))<0,360+DEGREES(ATAN2(S73,T73)),DEGREES(ATAN2(S73,T73))) -> 323.4587842 | Z73: =U73*5+Z72 -> 127.6455685 | AB73: =Q73-COS(P73*PI()/180)*H$7/100/Q$6 -> 0.281056327 | AC73: =SIN(P73*PI()/180)*H$7/100/Q$6 -> -0.3035601084 | AD73: =SQRT(SUMSQ(AB73,AC73)) -> 0.4136923958 | AE73: =(AD73-AD72)/AD73*100 -> 2.701351153 | AF73: =DEGREES(ATAN2(AB73,AC73)) -> -47.2044119 | AG73: =IF(DEGREES(ATAN2(AB73,AC73))<0,360+DEGREES(ATAN2(AB73,AC73)),DEGREES(ATAN2(AB73,AC73))) -> 312.7955881 | AI73: =AD73*5+AI72 -> 131.2593332 | AK73: 0.6428251767
P74: 325 | Q74: =(PI()^2*I$2*COS(PI()*P74/180)/900+SQRT(2)*PI()^2*I$2^2*(4*(2*J$2^2-I$2^2)*COS(PI()*P74/90)+I$2^2*(COS(PI()*P74/45)+3))/(3600*(I$2^2*COS(PI()*P74/90)+2*J$2^2-I$2^2)^(3/2)))/Q$7 -> 0.7207645453 | S74: =Q74-COS(P74*PI()/180)*H$2/100/Q$6 -> 0.398390198 | T74: =SIN(P74*PI()/180)*H$2/100/Q$6 -> -0.2257289481 | U74: =SQRT(SUMSQ(S74,T74)) -> 0.4578955207 | V74: =(U74-U73)/U74*100 -> 7.212904682 | W74: =DEGREES(ATAN2(S74,T74)) -> -29.53600649 | X74: =IF(DEGREES(ATAN2(S74,T74))<0,360+DEGREES(ATAN2(S74,T74)),DEGREES(ATAN2(S74,T74))) -> 330.4639935 | Z74: =U74*5+Z73 -> 129.9350461 | AB74: =Q74-COS(P74*PI()/180)*H$7/100/Q$6 -> 0.3339153285 | AC74: =SIN(P74*PI()/180)*H$7/100/Q$6 -> -0.2708747377 | AD74: =SQRT(SUMSQ(AB74,AC74)) -> 0.4299681037 | AE74: =(AD74-AD73)/AD74*100 -> 3.785329128 | AF74: =DEGREES(ATAN2(AB74,AC74)) -> -39.04923583 | AG74: =IF(DEGREES(ATAN2(AB74,AC74))<0,360+DEGREES(ATAN2(AB74,AC74)),DEGREES(ATAN2(AB74,AC74))) -> 320.9507642 | AI74: =AD74*5+AI73 -> 133.4091737 | AK74: 0.7207645453
P75: 330 | Q75: =(PI()^2*I$2*COS(PI()*P75/180)/900+SQRT(2)*PI()^2*I$2^2*(4*(2*J$2^2-I$2^2)*COS(PI()*P75/90)+I$2^2*(COS(PI()*P75/45)+3))/(3600*(I$2^2*COS(PI()*P75/90)+2*J$2^2-I$2^2)^(3/2)))/Q$7 -> 0.791147627 | S75: =Q75-COS(P75*PI()/180)*H$2/100/Q$6 -> 0.4503264373 | T75: =SIN(P75*PI()/180)*H$2/100/Q$6 -> -0.1967732056 | U75: =SQRT(SUMSQ(S75,T75)) -> 0.4914403266 | V75: =(U75-U74)/U75*100 -> 6.825814664 | W75: =DEGREES(ATAN2(S75,T75)) -> -23.60325026 | X75: =IF(DEGREES(ATAN2(S75,T75))<0,360+DEGREES(ATAN2(S75,T75)),DEGREES(ATAN2(S75,T75))) -> 336.3967497 | Z75: =U75*5+Z74 -> 132.3922477 | AB75: =Q75-COS(P75*PI()/180)*H$7/100/Q$6 -> 0.3821621994 | AC75: =SIN(P75*PI()/180)*H$7/100/Q$6 -> -0.2361278467 | AD75: =SQRT(SUMSQ(AB75,AC75)) -> 0.4492263423 | AE75: =(AD75-AD74)/AD75*100 -> 4.286978931 | AF75: =DEGREES(ATAN2(AB75,AC75)) -> -31.71081482 | AG75: =IF(DEGREES(ATAN2(AB75,AC75))<0,360+DEGREES(ATAN2(AB75,AC75)),DEGREES(ATAN2(AB75,AC75))) -> 328.2891852 | AI75: =AD75*5+AI74 -> 135.6553054 | AK75: 0.791147627
P76: 335 | Q76: =(PI()^2*I$2*COS(PI()*P76/180)/900+SQRT(2)*PI()^2*I$2^2*(4*(2*J$2^2-I$2^2)*COS(PI()*P76/90)+I$2^2*(COS(PI()*P76/45)+3))/(3600*(I$2^2*COS(PI()*P76/90)+2*J$2^2-I$2^2)^(3/2)))/Q$7 -> 0.8527796197 | S76: =Q76-COS(P76*PI()/180)*H$2/100/Q$6 -> 0.4961054427 | T76: =SIN(P76*PI()/180)*H$2/100/Q$6 -> -0.1663199002 | U76: =SQRT(SUMSQ(S76,T76)) -> 0.5232426965 | V76: =(U76-U75)/U76*100 -> 6.077938629 | W76: =DEGREES(ATAN2(S76,T76)) -> -18.53378431 | X76: =IF(DEGREES(ATAN2(S76,T76))<0,360+DEGREES(ATAN2(S76,T76)),DEGREES(ATAN2(S76,T76))) -> 341.4662157 | Z76: =U76*5+Z75 -> 135.0084612 | AB76: =Q76-COS(P76*PI()/180)*H$7/100/Q$6 -> 0.4247706073 | AC76: =SIN(P76*PI()/180)*H$7/100/Q$6 -> -0.1995838803 | AD76: =SQRT(SUMSQ(AB76,AC76)) -> 0.4693226972 | AE76: =(AD76-AD75)/AD76*100 -> 4.281990832 | AF76: =DEGREES(ATAN2(AB76,AC76)) -> -25.16708256 | AG76: =IF(DEGREES(ATAN2(AB76,AC76))<0,360+DEGREES(ATAN2(AB76,AC76)),DEGREES(ATAN2(AB76,AC76))) -> 334.8329174 | AI76: =AD76*5+AI75 -> 138.0019189 | AK76: 0.8527796197
P77: 340 | Q77: =(PI()^2*I$2*COS(PI()*P77/180)/900+SQRT(2)*PI()^2*I$2^2*(4*(2*J$2^2-I$2^2)*COS(PI()*P77/90)+I$2^2*(COS(PI()*P77/45)+3))/(3600*(I$2^2*COS(PI()*P77/90)+2*J$2^2-I$2^2)^(3/2)))/Q$7 -> 0.9046316987 | S77: =Q77-COS(P77*PI()/180)*H$2/100/Q$6 -> 0.5348190402 | T77: =SIN(P77*PI()/180)*H$2/100/Q$6 -> -0.1346008 | U77: =SQRT(SUMSQ(S77,T77)) -> 0.551496855 | V77: =(U77-U76)/U77*100 -> 5.123176716 | W77: =DEGREES(ATAN2(S77,T77)) -> -14.12655489 | X77: =IF(DEGREES(ATAN2(S77,T77))<0,360+DEGREES(ATAN2(S77,T77)),DEGREES(ATAN2(S77,T77))) -> 345.8734451 | Z77: =U77*5+Z76 -> 137.7659454 | AB77: =Q77-COS(P77*PI()/180)*H$7/100/Q$6 -> 0.4608565085 | AC77: =SIN(P77*PI()/180)*H$7/100/Q$6 -> -0.16152096 | AD77: =SQRT(SUMSQ(AB77,AC77)) -> 0.4883418289 | AE77: =(AD77-AD76)/AD77*100 -> 3.894634997 | AF77: =DEGREES(ATAN2(AB77,AC77)) -> -19.31453997 | AG77: =IF(DEGREES(ATAN2(AB77,AC77))<0,360+DEGREES(ATAN2(AB77,AC77)),DEGREES(ATAN2(AB77,AC77))) -> 340.68546 | AI77: =AD77*5+AI76 -> 140.4436281 | AK77: 0.9046316987
P78: 345 | Q78: =(PI()^2*I$2*COS(PI()*P78/180)/900+SQRT(2)*PI()^2*I$2^2*(4*(2*J$2^2-I$2^2)*COS(PI()*P78/90)+I$2^2*(COS(PI()*P78/45)+3))/(3600*(I$2^2*COS(PI()*P78/90)+2*J$2^2-I$2^2)^(3/2)))/Q$7 -> 0.945852347 | S78: =Q78-COS(P78*PI()/180)*H$2/100/Q$6 -> 0.5657157046 | T78: =SIN(P78*PI()/180)*H$2/100/Q$6 -> -0.1018573064 | U78: =SQRT(SUMSQ(S78,T78)) -> 0.5748122904 | V78: =(U78-U77)/U78*100 -> 4.056182485 | W78: =DEGREES(ATAN2(S78,T78)) -> -10.20676759 | X78: =IF(DEGREES(ATAN2(S78,T78))<0,360+DEGREES(ATAN2(S78,T78)),DEGREES(ATAN2(S78,T78))) -> 349.7932324 | Z78: =U78*5+Z77 -> 140.6400069 | AB78: =Q78-COS(P78*PI()/180)*H$7/100/Q$6 -> 0.4896883761 | AC78: =SIN(P78*PI()/180)*H$7/100/Q$6 -> -0.1222287676 | AD78: =SQRT(SUMSQ(AB78,AC78)) -> 0.5047123709 | AE78: =(AD78-AD77)/AD78*100 -> 3.243538869 | AF78: =DEGREES(ATAN2(AB78,AC78)) -> -14.01495201 | AG78: =IF(DEGREES(ATAN2(AB78,AC78))<0,360+DEGREES(ATAN2(AB78,AC78)),DEGREES(ATAN2(AB78,AC78))) -> 345.985048 | AI78: =AD78*5+AI77 -> 142.9671899 | AK78: 0.945852347
P79: 350 | Q79: =(PI()^2*I$2*COS(PI()*P79/180)/900+SQRT(2)*PI()^2*I$2^2*(4*(2*J$2^2-I$2^2)*COS(PI()*P79/90)+I$2^2*(COS(PI()*P79/45)+3))/(3600*(I$2^2*COS(PI()*P79/90)+2*J$2^2-I$2^2)^(3/2)))/Q$7 -> 0.9757744871 | S79: =Q79-COS(P79*PI()/180)*H$2/100/Q$6 -> 0.5882069302 | T79: =SIN(P79*PI()/180)*H$2/100/Q$6 -> -0.06833861713 | U79: =SQRT(SUMSQ(S79,T79)) -> 0.5921634566 | V79: =(U79-U78)/U79*100 -> 2.930131193 | W79: =DEGREES(ATAN2(S79,T79)) -> -6.626984732 | X79: =IF(DEGREES(ATAN2(S79,T79))<0,360+DEGREES(ATAN2(S79,T79)),DEGREES(ATAN2(S79,T79))) -> 353.3730153 | Z79: =U79*5+Z78 -> 143.6008242 | AB79: =Q79-COS(P79*PI()/180)*H$7/100/Q$6 -> 0.5106934188 | AC79: =SIN(P79*PI()/180)*H$7/100/Q$6 -> -0.08200634056 | AD79: =SQRT(SUMSQ(AB79,AC79)) -> 0.5172357373 | AE79: =(AD79-AD78)/AD79*100 -> 2.421210584 | AF79: =DEGREES(ATAN2(AB79,AC79)) -> -9.122587604 | AG79: =IF(DEGREES(ATAN2(AB79,AC79))<0,360+DEGREES(ATAN2(AB79,AC79)),DEGREES(ATAN2(AB79,AC79))) -> 350.8774124 | AI79: =AD79*5+AI78 -> 145.5533686 | AK79: 0.9757744871
P80: 355 | Q80: =(PI()^2*I$2*COS(PI()*P80/180)/900+SQRT(2)*PI()^2*I$2^2*(4*(2*J$2^2-I$2^2)*COS(PI()*P80/90)+I$2^2*(COS(PI()*P80/45)+3))/(3600*(I$2^2*COS(PI()*P80/90)+2*J$2^2-I$2^2)^(3/2)))/Q$7 -> 0.9939196201 | S80: =Q80-COS(P80*PI()/180)*H$2/100/Q$6 -> 0.6018707718 | T80: =SIN(P80*PI()/180)*H$2/100/Q$6 -> -0.03429982978 | U80: =SQRT(SUMSQ(S80,T80)) -> 0.6028473308 | V80: =(U80-U79)/U80*100 -> 1.772235462 | W80: =DEGREES(ATAN2(S80,T80)) -> -3.261683748 | X80: =IF(DEGREES(ATAN2(S80,T80))<0,360+DEGREES(ATAN2(S80,T80)),DEGREES(ATAN2(S80,T80))) -> 356.7383163 | Z80: =U80*5+Z79 -> 146.6150608 | AB80: =Q80-COS(P80*PI()/180)*H$7/100/Q$6 -> 0.5234610021 | AC80: =SIN(P80*PI()/180)*H$7/100/Q$6 -> -0.04115979573 | AD80: =SQRT(SUMSQ(AB80,AC80)) -> 0.5250767082 | AE80: =(AD80-AD79)/AD80*100 -> 1.493300086 | AF80: =DEGREES(ATAN2(AB80,AC80)) -> -4.495922985 | AG80: =IF(DEGREES(ATAN2(AB80,AC80))<0,360+DEGREES(ATAN2(AB80,AC80)),DEGREES(ATAN2(AB80,AC80))) -> 355.504077 | AI80: =AD80*5+AI79 -> 148.1787521 | AK80: 0.9939196201
P81: 360 | Q81: =(PI()^2*I$2*COS(PI()*P81/180)/900+SQRT(2)*PI()^2*I$2^2*(4*(2*J$2^2-I$2^2)*COS(PI()*P81/90)+I$2^2*(COS(PI()*P81/45)+3))/(3600*(I$2^2*COS(PI()*P81/90)+2*J$2^2-I$2^2)^(3/2)))/Q$7 -> 1 | S81: =Q81-COS(P81*PI()/180)*H$2/100/Q$6 -> 0.6064535888 | T81: =SIN(P81*PI()/180)*H$2/100/Q$6 -> -9.639107056e-17 | U81: =SQRT(SUMSQ(S81,T81)) -> 0.6064535888 | V81: =(U81-U80)/U81*100 -> 0.5946469887 | W81: =DEGREES(ATAN2(S81,T81)) -> -9.106717526e-15 | X81: =IF(DEGREES(ATAN2(S81,T81))<0,360+DEGREES(ATAN2(S81,T81)),DEGREES(ATAN2(S81,T81))) -> 360 | Z81: =U81*5+Z80 -> 149.6473288 | AB81: =Q81-COS(P81*PI()/180)*H$7/100/Q$6 -> 0.5277443065 | AC81: =SIN(P81*PI()/180)*H$7/100/Q$6 -> -1.156692847e-16 | AD81: =SQRT(SUMSQ(AB81,AC81)) -> 0.5277443065 | AE81: =(AD81-AD80)/AD81*100 -> 0.5054717395 | AF81: =DEGREES(ATAN2(AB81,AC81)) -> -1.255790304e-14 | AG81: =IF(DEGREES(ATAN2(AB81,AC81))<0,360+DEGREES(ATAN2(AB81,AC81)),DEGREES(ATAN2(AB81,AC81))) -> 360 | AI81: =AD81*5+AI80 -> 150.8174737 | AK81: 1
